Publisher Label,Publisher URI,"Body Name","Service Area Categorisation","Service Division Categorisation","Expenses Type","Date","Transaction Number","Amount","Capital or Revenue","Supplier Name","Merchant Category"
"Peterborough","http://opendatacommunities.org/id/unitary-authority/peterborough","Peterborough City Council","Children's & Safeguarding","Child Health","Services",01/12/2017 00:00:00,30139178,5000,"Revenue","Scope","Purchased Social Care Services"
"Peterborough","http://opendatacommunities.org/id/unitary-authority/peterborough","Peterborough City Council","Peterborough Serco Strategic Partnership","Peterborough Serco Strategic Partnership","Services",01/12/2017 00:00:00,30146132,799.26,"Revenue","Rossendales C B Ltd","Debt Collection"
"Peterborough","http://opendatacommunities.org/id/unitary-authority/peterborough","Peterborough City Council","Education","Special Educational Needs / Inclusion","Services",01/12/2017 00:00:00,30148954,10416.66,"Revenue","Scope","Hired Services"
"Peterborough","http://opendatacommunities.org/id/unitary-authority/peterborough","Peterborough City Council","Corporate","Corporate","Non Revenue",01/12/2017 00:00:00,30149994,59344.03,"Capital","CEL Leadwork Contracts Ltd","Building And Site Works"
"Peterborough","http://opendatacommunities.org/id/unitary-authority/peterborough","Peterborough City Council","Peterborough Serco Strategic Partnership","Peterborough Serco Strategic Partnership","Customer and client receipts - Fees & Charges",01/12/2017 00:00:00,30150172,588,"Revenue","Woodglen Leisure","Refunds"
"Peterborough","http://opendatacommunities.org/id/unitary-authority/peterborough","Peterborough City Council","Adults","Independent Sector Placements","Services",01/12/2017 00:00:00,30151182,2357.14,"Revenue","Linkage Community Trust Limited","Residential Care"
"Peterborough","http://opendatacommunities.org/id/unitary-authority/peterborough","Peterborough City Council","Children's & Safeguarding","Child Health","Services",01/12/2017 00:00:00,30151433,5000,"Revenue","Scope","Purchased Social Care Services"
"Peterborough","http://opendatacommunities.org/id/unitary-authority/peterborough","Peterborough City Council","City Servs & Communications","Markets, Tourism & Events","Grounds Maintenance",01/12/2017 00:00:00,30151858,2520,"Revenue","ATG Access Ltd","Grounds Maintenance"
"Peterborough","http://opendatacommunities.org/id/unitary-authority/peterborough","Peterborough City Council","Corporate","Corporate","Non Revenue",01/12/2017 00:00:00,30152286,4300,"Capital","NPS Peterborough Ltd","Consultants Fees"
"Peterborough","http://opendatacommunities.org/id/unitary-authority/peterborough","Peterborough City Council","Adults","Independent Sector Placements","Services",01/12/2017 00:00:00,30152356,-12382.29,"Revenue","Alysia Caring Ltd T/a Cherry Blossom care Home","Residential Care"
"Peterborough","http://opendatacommunities.org/id/unitary-authority/peterborough","Peterborough City Council","Adults","Independent Sector Placements","Services",01/12/2017 00:00:00,30152360,-13342.56,"Revenue","Alysia Caring Ltd T/a Cherry Blossom care Home","Residential Care"
"Peterborough","http://opendatacommunities.org/id/unitary-authority/peterborough","Peterborough City Council","Sustainable Growth Strategy","Housing & Strategic Planning","Services",01/12/2017 00:00:00,30153002,9500,"Revenue","Objective Keystone Ltd","Computer Software"
"Peterborough","http://opendatacommunities.org/id/unitary-authority/peterborough","Peterborough City Council","Children's & Safeguarding","Access to Resources & Specialist Commissioning","Services",01/12/2017 00:00:00,30153199,10992,"Revenue","Positive Steps (Care Services) Ltd","Boarding Out Allowances"
"Peterborough","http://opendatacommunities.org/id/unitary-authority/peterborough","Peterborough City Council","Commissioning and Commercial Operations","Commissioning","Services",01/12/2017 00:00:00,30153209,3946.1,"Revenue","121 Social Care Limited","Hired Services"
"Peterborough","http://opendatacommunities.org/id/unitary-authority/peterborough","Peterborough City Council","Adults","Independent Sector Placements","Services",01/12/2017 00:00:00,30153214,506.65,"Revenue","Avery House (Peterborough) t/a Brighterkind","Residential Care"
"Peterborough","http://opendatacommunities.org/id/unitary-authority/peterborough","Peterborough City Council","Adults","Independent Sector Placements","Services",01/12/2017 00:00:00,30153438,14588,"Revenue","Decoy Farm","Residential Care"
"Peterborough","http://opendatacommunities.org/id/unitary-authority/peterborough","Peterborough City Council","Adults","Independent Sector Placements","Services",01/12/2017 00:00:00,30153503,8328.92,"Revenue","Home From Home Care","Residential Care"
"Peterborough","http://opendatacommunities.org/id/unitary-authority/peterborough","Peterborough City Council","Adults","Independent Sector Placements","Services",01/12/2017 00:00:00,30153505,6354.32,"Revenue","Home From Home Care","Residential Care"
"Peterborough","http://opendatacommunities.org/id/unitary-authority/peterborough","Peterborough City Council","Adults","Independent Sector Placements","Services",01/12/2017 00:00:00,30153506,979.8,"Revenue","Mencap","Home Care"
"Peterborough","http://opendatacommunities.org/id/unitary-authority/peterborough","Peterborough City Council","Adults","Independent Sector Placements","Services",01/12/2017 00:00:00,30153507,7814.04,"Revenue","Home From Home Care","Residential Care"
"Peterborough","http://opendatacommunities.org/id/unitary-authority/peterborough","Peterborough City Council","Adults","Independent Sector Placements","Services",01/12/2017 00:00:00,30153508,7002.04,"Revenue","Home From Home Care","Residential Care"
"Peterborough","http://opendatacommunities.org/id/unitary-authority/peterborough","Peterborough City Council","Financial Services","Finance","Agency Staff",01/12/2017 00:00:00,30153733,770,"Revenue","Morgan Hunt UK Ltd","External Temporary Staff"
"Peterborough","http://opendatacommunities.org/id/unitary-authority/peterborough","Peterborough City Council","Adults","Independent Sector Placements","Services",01/12/2017 00:00:00,30153788,6966.72,"Revenue","Autism Care (UK) Ltd","Residential Care"
"Peterborough","http://opendatacommunities.org/id/unitary-authority/peterborough","Peterborough City Council","Commissioning and Commercial Operations","Clare Lodge","Agency Staff",01/12/2017 00:00:00,30153941,528,"Revenue","Wrixon Care Services","External Temporary Staff"
"Peterborough","http://opendatacommunities.org/id/unitary-authority/peterborough","Peterborough City Council","Adults","Independent Sector Placements","Services",01/12/2017 00:00:00,30154000,3785.4,"Revenue","Community Care Solutions Ltd","Residential Care"
"Peterborough","http://opendatacommunities.org/id/unitary-authority/peterborough","Peterborough City Council","Adults","Independent Sector Placements","Services",01/12/2017 00:00:00,30154023,3400,"Revenue","EXCELCARE GLENNFIELD HOUSE","Residential Care"
"Peterborough","http://opendatacommunities.org/id/unitary-authority/peterborough","Peterborough City Council","Adults","Independent Sector Placements","Services",01/12/2017 00:00:00,30154025,1680,"Revenue","EXCELCARE GLENNFIELD HOUSE","Residential Care"
"Peterborough","http://opendatacommunities.org/id/unitary-authority/peterborough","Peterborough City Council","Adults","Independent Sector Placements","Services",01/12/2017 00:00:00,30154026,3720,"Revenue","EXCELCARE GLENNFIELD HOUSE","Residential Care"
"Peterborough","http://opendatacommunities.org/id/unitary-authority/peterborough","Peterborough City Council","Adults","Independent Sector Placements","Services",01/12/2017 00:00:00,30154027,3200,"Revenue","EXCELCARE GLENNFIELD HOUSE","Residential Care"
"Peterborough","http://opendatacommunities.org/id/unitary-authority/peterborough","Peterborough City Council","Commissioning and Commercial Operations","Clare Lodge","Agency Staff",01/12/2017 00:00:00,30154065,1728,"Revenue","Wrixon Care Services","External Temporary Staff"
"Peterborough","http://opendatacommunities.org/id/unitary-authority/peterborough","Peterborough City Council","Adults","Independent Sector Placements","Services",01/12/2017 00:00:00,30154067,1811.24,"Revenue","Excelcare Aliwal Manor","Residential Care"
"Peterborough","http://opendatacommunities.org/id/unitary-authority/peterborough","Peterborough City Council","Various","Various","Services",01/12/2017 00:00:00,30154096,1421.17,"Revenue","Whistl UK Ltd","Postage"
"Peterborough","http://opendatacommunities.org/id/unitary-authority/peterborough","Peterborough City Council","Commissioning and Commercial Operations","Clare Lodge","Cleaning & Domestic Supplies",01/12/2017 00:00:00,30154161,639.25,"Revenue","Bunzl UK Ltd t/a Industrial Supplies","Cleaning Materials"
"Peterborough","http://opendatacommunities.org/id/unitary-authority/peterborough","Peterborough City Council","Adults","Independent Sector Placements","Services",01/12/2017 00:00:00,30154166,2128.92,"Revenue","Alysia Caring Ltd T/a Cherry Blossom care Home","Residential Care"
"Peterborough","http://opendatacommunities.org/id/unitary-authority/peterborough","Peterborough City Council","Adults","Independent Sector Placements","Services",01/12/2017 00:00:00,30154168,1013.44,"Revenue","Alysia Caring Ltd T/a Cherry Blossom care Home","Residential Care"
"Peterborough","http://opendatacommunities.org/id/unitary-authority/peterborough","Peterborough City Council","Adults","Independent Sector Placements","Services",01/12/2017 00:00:00,30154169,3460.44,"Revenue","Alysia Caring Ltd T/a Cherry Blossom care Home","Residential Care"
"Peterborough","http://opendatacommunities.org/id/unitary-authority/peterborough","Peterborough City Council","Adults","Independent Sector Placements","Services",01/12/2017 00:00:00,30154170,2909.28,"Revenue","Alysia Caring Ltd T/a Cherry Blossom care Home","Residential Care"
"Peterborough","http://opendatacommunities.org/id/unitary-authority/peterborough","Peterborough City Council","Adults","Independent Sector Placements","Services",01/12/2017 00:00:00,30154171,2739.2,"Revenue","Alysia Caring Ltd T/a Cherry Blossom care Home","Residential Care"
"Peterborough","http://opendatacommunities.org/id/unitary-authority/peterborough","Peterborough City Council","Adults","Independent Sector Placements","Services",01/12/2017 00:00:00,30154172,3100,"Revenue","Alysia Caring Ltd T/a Cherry Blossom care Home","Residential Care"
"Peterborough","http://opendatacommunities.org/id/unitary-authority/peterborough","Peterborough City Council","Adults","Independent Sector Placements","Services",01/12/2017 00:00:00,30154173,3100,"Revenue","Alysia Caring Ltd T/a Cherry Blossom care Home","Residential Care"
"Peterborough","http://opendatacommunities.org/id/unitary-authority/peterborough","Peterborough City Council","Adults","Independent Sector Placements","Services",01/12/2017 00:00:00,30154176,1900.52,"Revenue","Alysia Caring Ltd T/a Cherry Blossom care Home","Residential Care"
"Peterborough","http://opendatacommunities.org/id/unitary-authority/peterborough","Peterborough City Council","Adults","Independent Sector Placements","Services",01/12/2017 00:00:00,30154177,2467.48,"Revenue","Alysia Caring Ltd T/a Cherry Blossom care Home","Residential Care"
"Peterborough","http://opendatacommunities.org/id/unitary-authority/peterborough","Peterborough City Council","Adults","Independent Sector Placements","Services",01/12/2017 00:00:00,30154188,1775.76,"Revenue","Alysia Caring Ltd T/a Cherry Blossom care Home","Residential Care"
"Peterborough","http://opendatacommunities.org/id/unitary-authority/peterborough","Peterborough City Council","Adults","Independent Sector Placements","Services",01/12/2017 00:00:00,30154190,2952.8,"Revenue","Alysia Caring Ltd T/a Cherry Blossom care Home","Residential Care"
"Peterborough","http://opendatacommunities.org/id/unitary-authority/peterborough","Peterborough City Council","Adults","Independent Sector Placements","Services",01/12/2017 00:00:00,30154192,1862.2,"Revenue","Alysia Caring Ltd T/a Cherry Blossom care Home","Residential Care"
"Peterborough","http://opendatacommunities.org/id/unitary-authority/peterborough","Peterborough City Council","Adults","Independent Sector Placements","Services",01/12/2017 00:00:00,30154193,3600,"Revenue","Alysia Caring Ltd T/a Cherry Blossom care Home","Residential Care"
"Peterborough","http://opendatacommunities.org/id/unitary-authority/peterborough","Peterborough City Council","Adults","Independent Sector Placements","Services",01/12/2017 00:00:00,30154268,1884.08,"Revenue","The Cedars Bourne Care Home","Residential Care"
"Peterborough","http://opendatacommunities.org/id/unitary-authority/peterborough","Peterborough City Council","Adults","Independent Sector Placements","Services",01/12/2017 00:00:00,30154269,2424,"Revenue","The Regard Partnership Limited","Residential Care"
"Peterborough","http://opendatacommunities.org/id/unitary-authority/peterborough","Peterborough City Council","Adults","Independent Sector Placements","Services",01/12/2017 00:00:00,30154270,3674.44,"Revenue","Consensus Support Services Ltd","Residential Care"
"Peterborough","http://opendatacommunities.org/id/unitary-authority/peterborough","Peterborough City Council","Adults","Independent Sector Placements","Services",01/12/2017 00:00:00,30154271,562.4,"Revenue","Mencap","Home Care"
"Peterborough","http://opendatacommunities.org/id/unitary-authority/peterborough","Peterborough City Council","Adults","Independent Sector Placements","Services",01/12/2017 00:00:00,30154273,1500.64,"Revenue","Mencap","Home Care"
"Peterborough","http://opendatacommunities.org/id/unitary-authority/peterborough","Peterborough City Council","Adults","Independent Sector Placements","Services",01/12/2017 00:00:00,30154274,6302.2,"Revenue","Mencap","Residential Care"
"Peterborough","http://opendatacommunities.org/id/unitary-authority/peterborough","Peterborough City Council","Adults","Independent Sector Placements","Services",01/12/2017 00:00:00,30154276,852,"Revenue","Mencap","Home Care"
"Peterborough","http://opendatacommunities.org/id/unitary-authority/peterborough","Peterborough City Council","Adults","Independent Sector Placements","Services",01/12/2017 00:00:00,30154278,1636.8,"Revenue","Mencap","Home Care"
"Peterborough","http://opendatacommunities.org/id/unitary-authority/peterborough","Peterborough City Council","Adults","Independent Sector Placements","Services",01/12/2017 00:00:00,30154279,6492,"Revenue","Mencap","Home Care"
"Peterborough","http://opendatacommunities.org/id/unitary-authority/peterborough","Peterborough City Council","Adults","Independent Sector Placements","Services",01/12/2017 00:00:00,30154280,695.8,"Revenue","Mencap","Home Care"
"Peterborough","http://opendatacommunities.org/id/unitary-authority/peterborough","Peterborough City Council","Adults","Independent Sector Placements","Services",01/12/2017 00:00:00,30154281,1671.04,"Revenue","Mencap","Home Care"
"Peterborough","http://opendatacommunities.org/id/unitary-authority/peterborough","Peterborough City Council","Financial Services","Finance","Agency Staff",01/12/2017 00:00:00,30154284,4875,"Revenue","Green Park Interim and Exec Ltd","External Temporary Staff"
"Peterborough","http://opendatacommunities.org/id/unitary-authority/peterborough","Peterborough City Council","Adults","Independent Sector Placements","Services",01/12/2017 00:00:00,30154322,1107.6,"Revenue","Mencap","Home Care"
"Peterborough","http://opendatacommunities.org/id/unitary-authority/peterborough","Peterborough City Council","Adults","Independent Sector Placements","Services",01/12/2017 00:00:00,30154323,6548.8,"Revenue","Mencap","Home Care"
"Peterborough","http://opendatacommunities.org/id/unitary-authority/peterborough","Peterborough City Council","Adults","Independent Sector Placements","Services",01/12/2017 00:00:00,30154324,1306.4,"Revenue","Mencap","Home Care"
"Peterborough","http://opendatacommunities.org/id/unitary-authority/peterborough","Peterborough City Council","Adults","Independent Sector Placements","Services",01/12/2017 00:00:00,30154326,1542,"Revenue","Mencap","Home Care"
"Peterborough","http://opendatacommunities.org/id/unitary-authority/peterborough","Peterborough City Council","Adults","Independent Sector Placements","Services",01/12/2017 00:00:00,30154327,5199.8,"Revenue","Mencap","Home Care"
"Peterborough","http://opendatacommunities.org/id/unitary-authority/peterborough","Peterborough City Council","Adults","Independent Sector Placements","Services",01/12/2017 00:00:00,30154364,568,"Revenue","Mencap","Home Care"
"Peterborough","http://opendatacommunities.org/id/unitary-authority/peterborough","Peterborough City Council","Adults","Independent Sector Placements","Services",01/12/2017 00:00:00,30154365,7425.6,"Revenue","Mencap","Home Care"
"Peterborough","http://opendatacommunities.org/id/unitary-authority/peterborough","Peterborough City Council","Adults","Independent Sector Placements","Services",01/12/2017 00:00:00,30154366,3369.24,"Revenue","Mencap","Home Care"
"Peterborough","http://opendatacommunities.org/id/unitary-authority/peterborough","Peterborough City Council","Adults","Independent Sector Placements","Services",01/12/2017 00:00:00,30154369,852,"Revenue","Mencap","Home Care"
"Peterborough","http://opendatacommunities.org/id/unitary-authority/peterborough","Peterborough City Council","Adults","Independent Sector Placements","Services",01/12/2017 00:00:00,30154370,681.6,"Revenue","Mencap","Home Care"
"Peterborough","http://opendatacommunities.org/id/unitary-authority/peterborough","Peterborough City Council","Adults","Independent Sector Placements","Services",01/12/2017 00:00:00,30154371,2215.2,"Revenue","Mencap","Home Care"
"Peterborough","http://opendatacommunities.org/id/unitary-authority/peterborough","Peterborough City Council","Communities","Performance & Information","Services",01/12/2017 00:00:00,30154524,3181.5,"Revenue","Act Now Training Ltd","Hired Services"
"Peterborough","http://opendatacommunities.org/id/unitary-authority/peterborough","Peterborough City Council","Adults","Independent Sector Placements","Services",01/12/2017 00:00:00,30154609,1078,"Revenue","K2 CARE LTD","Home Care"
"Peterborough","http://opendatacommunities.org/id/unitary-authority/peterborough","Peterborough City Council","Adults","Independent Sector Placements","Services",01/12/2017 00:00:00,30154610,2531.43,"Revenue","K2 CARE LTD","Home Care"
"Peterborough","http://opendatacommunities.org/id/unitary-authority/peterborough","Peterborough City Council","Adults","Independent Sector Placements","Services",01/12/2017 00:00:00,30154612,1064,"Revenue","K2 CARE LTD","Home Care"
"Peterborough","http://opendatacommunities.org/id/unitary-authority/peterborough","Peterborough City Council","Adults","Independent Sector Placements","Services",01/12/2017 00:00:00,30154613,952,"Revenue","K2 CARE LTD","Home Care"
"Peterborough","http://opendatacommunities.org/id/unitary-authority/peterborough","Peterborough City Council","Adults","Independent Sector Placements","Services",01/12/2017 00:00:00,30154614,686,"Revenue","K2 CARE LTD","Home Care"
"Peterborough","http://opendatacommunities.org/id/unitary-authority/peterborough","Peterborough City Council","Adults","Independent Sector Placements","Services",01/12/2017 00:00:00,30154615,2359,"Revenue","K2 CARE LTD","Home Care"
"Peterborough","http://opendatacommunities.org/id/unitary-authority/peterborough","Peterborough City Council","Adults","Independent Sector Placements","Services",01/12/2017 00:00:00,30154616,1066.33,"Revenue","K2 CARE LTD","Home Care"
"Peterborough","http://opendatacommunities.org/id/unitary-authority/peterborough","Peterborough City Council","Adults","Independent Sector Placements","Services",01/12/2017 00:00:00,30154617,882,"Revenue","K2 CARE LTD","Home Care"
"Peterborough","http://opendatacommunities.org/id/unitary-authority/peterborough","Peterborough City Council","Adults","Independent Sector Placements","Services",01/12/2017 00:00:00,30154618,784,"Revenue","K2 CARE LTD","Home Care"
"Peterborough","http://opendatacommunities.org/id/unitary-authority/peterborough","Peterborough City Council","Adults","Independent Sector Placements","Services",01/12/2017 00:00:00,30154619,2682.86,"Revenue","K2 CARE LTD","Home Care"
"Peterborough","http://opendatacommunities.org/id/unitary-authority/peterborough","Peterborough City Council","Adults","Independent Sector Placements","Services",01/12/2017 00:00:00,30154620,1380.17,"Revenue","K2 CARE LTD","Home Care"
"Peterborough","http://opendatacommunities.org/id/unitary-authority/peterborough","Peterborough City Council","HR","HR WFD & Training","Training Expenses",01/12/2017 00:00:00,30154782,850,"Revenue","East of England LGA","Training"
"Peterborough","http://opendatacommunities.org/id/unitary-authority/peterborough","Peterborough City Council","Adults","Independent Sector Placements","Services",01/12/2017 00:00:00,30154829,3100,"Revenue","Alysia Caring Ltd T/a Cherry Blossom care Home","Residential Care"
"Peterborough","http://opendatacommunities.org/id/unitary-authority/peterborough","Peterborough City Council","Adults","Independent Sector Placements","Services",01/12/2017 00:00:00,30154957,1097.88,"Revenue","Avery House (Peterborough) t/a Brighterkind","Residential Care"
"Peterborough","http://opendatacommunities.org/id/unitary-authority/peterborough","Peterborough City Council","Corporate","Corporate","Non Revenue",01/12/2017 00:00:00,30154960,65692.23,"Capital","Coulson & Son Ltd","Building And Site Works"
"Peterborough","http://opendatacommunities.org/id/unitary-authority/peterborough","Peterborough City Council","Adults","Independent Sector Placements","Services",01/12/2017 00:00:00,30154969,1612.64,"Revenue","Avery House (Peterborough) t/a Brighterkind","Residential Care"
"Peterborough","http://opendatacommunities.org/id/unitary-authority/peterborough","Peterborough City Council","Adults","Independent Sector Placements","Services",01/12/2017 00:00:00,30154970,1235.8,"Revenue","Avery House (Peterborough) t/a Brighterkind","Residential Care"
"Peterborough","http://opendatacommunities.org/id/unitary-authority/peterborough","Peterborough City Council","Adults","Independent Sector Placements","Services",01/12/2017 00:00:00,30154971,2210.6,"Revenue","Avery House (Peterborough) t/a Brighterkind","Residential Care"
"Peterborough","http://opendatacommunities.org/id/unitary-authority/peterborough","Peterborough City Council","Adults","Independent Sector Placements","Services",01/12/2017 00:00:00,30154990,977.68,"Revenue","Avery House (Peterborough) t/a Brighterkind","Residential Care"
"Peterborough","http://opendatacommunities.org/id/unitary-authority/peterborough","Peterborough City Council","Adults","Independent Sector Placements","Services",01/12/2017 00:00:00,30154991,1284.08,"Revenue","Avery House (Peterborough) t/a Brighterkind","Residential Care"
"Peterborough","http://opendatacommunities.org/id/unitary-authority/peterborough","Peterborough City Council","Adults","Independent Sector Placements","Services",01/12/2017 00:00:00,30155011,1821.88,"Revenue","Avery House (Peterborough) t/a Brighterkind","Residential Care"
"Peterborough","http://opendatacommunities.org/id/unitary-authority/peterborough","Peterborough City Council","Adults","Independent Sector Placements","Services",01/12/2017 00:00:00,30155012,1284.08,"Revenue","Avery House (Peterborough) t/a Brighterkind","Residential Care"
"Peterborough","http://opendatacommunities.org/id/unitary-authority/peterborough","Peterborough City Council","Adults","Independent Sector Placements","Services",01/12/2017 00:00:00,30155013,999.36,"Revenue","Avery House (Peterborough) t/a Brighterkind","Residential Care"
"Peterborough","http://opendatacommunities.org/id/unitary-authority/peterborough","Peterborough City Council","Adults","Independent Sector Placements","Services",01/12/2017 00:00:00,30155014,832.32,"Revenue","Avery House (Peterborough) t/a Brighterkind","Residential Care"
"Peterborough","http://opendatacommunities.org/id/unitary-authority/peterborough","Peterborough City Council","Adults","Independent Sector Placements","Services",01/12/2017 00:00:00,30155015,1501.32,"Revenue","Avery House (Peterborough) t/a Brighterkind","Residential Care"
"Peterborough","http://opendatacommunities.org/id/unitary-authority/peterborough","Peterborough City Council","Adults","Independent Sector Placements","Services",01/12/2017 00:00:00,30155016,3700,"Revenue","Avery House (Peterborough) t/a Brighterkind","Residential Care"
"Peterborough","http://opendatacommunities.org/id/unitary-authority/peterborough","Peterborough City Council","Adults","Independent Sector Placements","Services",01/12/2017 00:00:00,30155017,2421.88,"Revenue","Avery House (Peterborough) t/a Brighterkind","Residential Care"
"Peterborough","http://opendatacommunities.org/id/unitary-authority/peterborough","Peterborough City Council","Adults","Independent Sector Placements","Services",01/12/2017 00:00:00,30155049,1292.08,"Revenue","Avery House (Peterborough) t/a Brighterkind","Residential Care"
"Peterborough","http://opendatacommunities.org/id/unitary-authority/peterborough","Peterborough City Council","Adults","Independent Sector Placements","Services",01/12/2017 00:00:00,30155050,1284.08,"Revenue","Avery House (Peterborough) t/a Brighterkind","Residential Care"
"Peterborough","http://opendatacommunities.org/id/unitary-authority/peterborough","Peterborough City Council","Adults","Independent Sector Placements","Services",01/12/2017 00:00:00,30155051,939.16,"Revenue","Avery House (Peterborough) t/a Brighterkind","Residential Care"
"Peterborough","http://opendatacommunities.org/id/unitary-authority/peterborough","Peterborough City Council","Adults","Independent Sector Placements","Services",01/12/2017 00:00:00,30155052,2450.24,"Revenue","Avery House (Peterborough) t/a Brighterkind","Residential Care"
"Peterborough","http://opendatacommunities.org/id/unitary-authority/peterborough","Peterborough City Council","Adults","Independent Sector Placements","Services",01/12/2017 00:00:00,30155053,1494.44,"Revenue","Avery House (Peterborough) t/a Brighterkind","Residential Care"
"Peterborough","http://opendatacommunities.org/id/unitary-authority/peterborough","Peterborough City Council","Adults","Independent Sector Placements","Services",01/12/2017 00:00:00,30155054,1195.64,"Revenue","Avery House (Peterborough) t/a Brighterkind","Residential Care"
"Peterborough","http://opendatacommunities.org/id/unitary-authority/peterborough","Peterborough City Council","Adults","Independent Sector Placements","Services",01/12/2017 00:00:00,30155055,1884.08,"Revenue","Avery House (Peterborough) t/a Brighterkind","Residential Care"
"Peterborough","http://opendatacommunities.org/id/unitary-authority/peterborough","Peterborough City Council","Adults","Independent Sector Placements","Services",01/12/2017 00:00:00,30155056,838.64,"Revenue","Avery House (Peterborough) t/a Brighterkind","Residential Care"
"Peterborough","http://opendatacommunities.org/id/unitary-authority/peterborough","Peterborough City Council","Adults","Independent Sector Placements","Services",01/12/2017 00:00:00,30155069,1576.24,"Revenue","Avery House (Peterborough) t/a Brighterkind","Residential Care"
"Peterborough","http://opendatacommunities.org/id/unitary-authority/peterborough","Peterborough City Council","Adults","Independent Sector Placements","Services",01/12/2017 00:00:00,30155071,2516.74,"Revenue","K2 CARE LTD","Home Care"
"Peterborough","http://opendatacommunities.org/id/unitary-authority/peterborough","Peterborough City Council","Adults","Independent Sector Placements","Services",01/12/2017 00:00:00,30155073,753.67,"Revenue","K2 CARE LTD","Home Care"
"Peterborough","http://opendatacommunities.org/id/unitary-authority/peterborough","Peterborough City Council","Adults","Independent Sector Placements","Services",01/12/2017 00:00:00,30155150,1257.9,"Revenue","K2 CARE LTD","Home Care"
"Peterborough","http://opendatacommunities.org/id/unitary-authority/peterborough","Peterborough City Council","Adults","Independent Sector Placements","Services",01/12/2017 00:00:00,30155153,553,"Revenue","K2 CARE LTD","Home Care"
"Peterborough","http://opendatacommunities.org/id/unitary-authority/peterborough","Peterborough City Council","Adults","Independent Sector Placements","Services",01/12/2017 00:00:00,30155158,2516.74,"Revenue","K2 CARE LTD","Home Care"
"Peterborough","http://opendatacommunities.org/id/unitary-authority/peterborough","Peterborough City Council","Adults","Independent Sector Placements","Services",01/12/2017 00:00:00,30155175,1614.08,"Revenue","Avery House (Peterborough) t/a Brighterkind","Residential Care"
"Peterborough","http://opendatacommunities.org/id/unitary-authority/peterborough","Peterborough City Council","Adults","Independent Sector Placements","Services",01/12/2017 00:00:00,30155176,2173.24,"Revenue","Avery House (Peterborough) t/a Brighterkind","Residential Care"
"Peterborough","http://opendatacommunities.org/id/unitary-authority/peterborough","Peterborough City Council","Corporate Property","Office Accomodation","Repair & Maintenance of Buildings",01/12/2017 00:00:00,30155182,4407.99,"Revenue","Baker Perkins Ltd","Service Charges - Premises"
"Peterborough","http://opendatacommunities.org/id/unitary-authority/peterborough","Peterborough City Council","Adults","Independent Sector Placements","Services",01/12/2017 00:00:00,30155186,1202.04,"Revenue","Avery House (Peterborough) t/a Brighterkind","Residential Care"
"Peterborough","http://opendatacommunities.org/id/unitary-authority/peterborough","Peterborough City Council","Adults","Independent Sector Placements","Services",01/12/2017 00:00:00,30155188,1680.72,"Revenue","Avery House (Peterborough) t/a Brighterkind","Residential Care"
"Peterborough","http://opendatacommunities.org/id/unitary-authority/peterborough","Peterborough City Council","Adults","Independent Sector Placements","Services",01/12/2017 00:00:00,30155192,671.68,"Revenue","Avery House (Peterborough) t/a Brighterkind","Residential Care"
"Peterborough","http://opendatacommunities.org/id/unitary-authority/peterborough","Peterborough City Council","Westcombe Engineering","Westcombe Engineering","Tools, Equipment, Furniture & Materials",01/12/2017 00:00:00,30155269,982,"Revenue","Barron Clark Castings Ltd","Items For Resale"
"Peterborough","http://opendatacommunities.org/id/unitary-authority/peterborough","Peterborough City Council","Westcombe Engineering","Westcombe Engineering","Tools, Equipment, Furniture & Materials",01/12/2017 00:00:00,30155280,2313.34,"Revenue","Barron Clark Castings Ltd","Items For Resale"
"Peterborough","http://opendatacommunities.org/id/unitary-authority/peterborough","Peterborough City Council","Westcombe Engineering","Westcombe Engineering","Tools, Equipment, Furniture & Materials",01/12/2017 00:00:00,30155284,1162,"Revenue","Barron Clark Castings Ltd","Items For Resale"
"Peterborough","http://opendatacommunities.org/id/unitary-authority/peterborough","Peterborough City Council","Adults","OP/PD/SI","Third Party Payments",01/12/2017 00:00:00,30155503,5293.75,"Revenue","The Dales Trust T/A Dhiverse","Third Party Payments - Contract"
"Peterborough","http://opendatacommunities.org/id/unitary-authority/peterborough","Peterborough City Council","Vivacity/Cultural Services","Cultural Services","Energy Costs",01/12/2017 00:00:00,30155635,1830.74,"Revenue","Corona Energy Retail 4 Limited","Gas"
"Peterborough","http://opendatacommunities.org/id/unitary-authority/peterborough","Peterborough City Council","Corporate","Corporate","Non Revenue",01/12/2017 00:00:00,30155641,750,"Capital","Trowers & Hamlins LLP","Professional/Legal Fees"
"Peterborough","http://opendatacommunities.org/id/unitary-authority/peterborough","Peterborough City Council","Corporate Property","Commercial Propety","Services",01/12/2017 00:00:00,30155661,1500,"Revenue","Wilks Head & Eve","Professional Services"
"Peterborough","http://opendatacommunities.org/id/unitary-authority/peterborough","Peterborough City Council","Vivacity/Cultural Services","Cultural Services","Energy Costs",01/12/2017 00:00:00,30155673,3415.23,"Revenue","Corona Energy Retail 4 Limited","Gas"
"Peterborough","http://opendatacommunities.org/id/unitary-authority/peterborough","Peterborough City Council","Vivacity/Cultural Services","Cultural Services","Energy Costs",01/12/2017 00:00:00,30155673,1196.19,"Revenue","Corona Energy Retail 4 Limited","Gas"
"Peterborough","http://opendatacommunities.org/id/unitary-authority/peterborough","Peterborough City Council","Education","PFI","Energy Costs",01/12/2017 00:00:00,30155676,692.95,"Revenue","Corona Energy Retail 4 Limited","Gas"
"Peterborough","http://opendatacommunities.org/id/unitary-authority/peterborough","Peterborough City Council","Education","PFI","Energy Costs",01/12/2017 00:00:00,30155676,652.07,"Revenue","Corona Energy Retail 4 Limited","Gas"
"Peterborough","http://opendatacommunities.org/id/unitary-authority/peterborough","Peterborough City Council","Education","PFI","Energy Costs",01/12/2017 00:00:00,30155676,667.75,"Revenue","Corona Energy Retail 4 Limited","Gas"
"Peterborough","http://opendatacommunities.org/id/unitary-authority/peterborough","Peterborough City Council","Education","PFI","Energy Costs",01/12/2017 00:00:00,30155676,945.58,"Revenue","Corona Energy Retail 4 Limited","Gas"
"Peterborough","http://opendatacommunities.org/id/unitary-authority/peterborough","Peterborough City Council","Vivacity/Cultural Services","Cultural Services","Energy Costs",01/12/2017 00:00:00,30155677,964.53,"Revenue","Corona Energy Retail 4 Limited","Gas"
"Peterborough","http://opendatacommunities.org/id/unitary-authority/peterborough","Peterborough City Council","Cemeteries, Cremation & Registrars","Bereavement Service","Energy Costs",01/12/2017 00:00:00,30155677,1716.29,"Revenue","Corona Energy Retail 4 Limited","Gas"
"Peterborough","http://opendatacommunities.org/id/unitary-authority/peterborough","Peterborough City Council","Cemeteries, Cremation & Registrars","Bereavement Service","Energy Costs",01/12/2017 00:00:00,30155677,587.1,"Revenue","Corona Energy Retail 4 Limited","Gas"
"Peterborough","http://opendatacommunities.org/id/unitary-authority/peterborough","Peterborough City Council","City Servs & Communications","Markets, Tourism & Events","Energy Costs",01/12/2017 00:00:00,30155680,793.11,"Revenue","British Gas Business","Electricity"
"Peterborough","http://opendatacommunities.org/id/unitary-authority/peterborough","Peterborough City Council","Corporate Property","Office Accomodation","Energy Costs",01/12/2017 00:00:00,30155680,1003.61,"Revenue","British Gas Business","Electricity"
"Peterborough","http://opendatacommunities.org/id/unitary-authority/peterborough","Peterborough City Council","Amey Peterborough & Waste Management","Waste & Operational Svs Mgmt","Energy Costs",01/12/2017 00:00:00,30155680,588.06,"Revenue","British Gas Business","Electricity"
"Peterborough","http://opendatacommunities.org/id/unitary-authority/peterborough","Peterborough City Council","Vivacity/Cultural Services","Cultural Services","Energy Costs",01/12/2017 00:00:00,30155680,1269.83,"Revenue","British Gas Business","Electricity"
"Peterborough","http://opendatacommunities.org/id/unitary-authority/peterborough","Peterborough City Council","Corporate Property","Commercial Propety","Energy Costs",01/12/2017 00:00:00,30155685,1159.32,"Revenue","Corona Energy Retail 4 Limited","Gas"
"Peterborough","http://opendatacommunities.org/id/unitary-authority/peterborough","Peterborough City Council","Westcombe Engineering","Westcombe Engineering","Energy Costs",01/12/2017 00:00:00,30155790,946.6,"Revenue","British Gas Business","Electricity"
"Peterborough","http://opendatacommunities.org/id/unitary-authority/peterborough","Peterborough City Council","Corporate Property","Commercial Propety","Energy Costs",01/12/2017 00:00:00,30155790,705.04,"Revenue","British Gas Business","Electricity"
"Peterborough","http://opendatacommunities.org/id/unitary-authority/peterborough","Peterborough City Council","Amey Peterborough & Waste Management","Waste & Operational Svs Mgmt","Energy Costs",01/12/2017 00:00:00,30155790,1194.25,"Revenue","British Gas Business","Electricity"
"Peterborough","http://opendatacommunities.org/id/unitary-authority/peterborough","Peterborough City Council","Education","Pupil Referral Unit","Energy Costs",01/12/2017 00:00:00,30155790,573.24,"Revenue","British Gas Business","Electricity"
"Peterborough","http://opendatacommunities.org/id/unitary-authority/peterborough","Peterborough City Council","ICT","ICT","Tools, Equipment, Furniture & Materials",01/12/2017 00:00:00,30155791,1841.88,"Revenue","Serco Ltd","Computer Hardware"
"Peterborough","http://opendatacommunities.org/id/unitary-authority/peterborough","Peterborough City Council","Adults","Independent Sector Placements","Services",01/12/2017 00:00:00,30155920,3244.56,"Revenue","K2 CARE LTD","Home Care"
"Peterborough","http://opendatacommunities.org/id/unitary-authority/peterborough","Peterborough City Council","Adults","Independent Sector Placements","Services",01/12/2017 00:00:00,30155921,979.22,"Revenue","K2 CARE LTD","Home Care"
"Peterborough","http://opendatacommunities.org/id/unitary-authority/peterborough","Peterborough City Council","Adults","Independent Sector Placements","Services",01/12/2017 00:00:00,30155922,2506.68,"Revenue","K2 CARE LTD","Home Care"
"Peterborough","http://opendatacommunities.org/id/unitary-authority/peterborough","Peterborough City Council","Adults","Independent Sector Placements","Services",01/12/2017 00:00:00,30155923,580.8,"Revenue","K2 CARE LTD","Home Care"
"Peterborough","http://opendatacommunities.org/id/unitary-authority/peterborough","Peterborough City Council","Adults","Independent Sector Placements","Services",01/12/2017 00:00:00,30155924,2016,"Revenue","K2 CARE LTD","Home Care"
"Peterborough","http://opendatacommunities.org/id/unitary-authority/peterborough","Peterborough City Council","Adults","Independent Sector Placements","Services",01/12/2017 00:00:00,30155940,3180,"Revenue","Barchester Healthcare (Werrington Lodge)","Residential Care"
"Peterborough","http://opendatacommunities.org/id/unitary-authority/peterborough","Peterborough City Council","Adults","Independent Sector Placements","Services",01/12/2017 00:00:00,30155941,3180,"Revenue","Barchester Healthcare (Werrington Lodge)","Residential Care"
"Peterborough","http://opendatacommunities.org/id/unitary-authority/peterborough","Peterborough City Council","Adults","Independent Sector Placements","Services",01/12/2017 00:00:00,30155948,-4883.57,"Revenue","Barchester Healthcare (Werrington Lodge)","Residential Care"
"Peterborough","http://opendatacommunities.org/id/unitary-authority/peterborough","Peterborough City Council","Vivacity/Cultural Services","Cultural Services","Energy Costs",01/12/2017 00:00:00,30155960,1404.41,"Revenue","British Gas Business","Electricity"
"Peterborough","http://opendatacommunities.org/id/unitary-authority/peterborough","Peterborough City Council","Amey Peterborough & Waste Management","Waste & Operational Svs Mgmt","Energy Costs",01/12/2017 00:00:00,30155961,912.22,"Revenue","British Gas Business","Electricity"
"Peterborough","http://opendatacommunities.org/id/unitary-authority/peterborough","Peterborough City Council","Communities","Housing","Services",01/12/2017 00:00:00,30155971,507.5,"Revenue","Eastfield Guesthouse","Homelessness Bed & Breakfast Costs"
"Peterborough","http://opendatacommunities.org/id/unitary-authority/peterborough","Peterborough City Council","Adults","Independent Sector Placements","Services",01/12/2017 00:00:00,30155988,1942.4,"Revenue","Benell Care Services Ltd","Residential Care"
"Peterborough","http://opendatacommunities.org/id/unitary-authority/peterborough","Peterborough City Council","Children's & Safeguarding","External Education Placements","Services",01/12/2017 00:00:00,30156020,4201.33,"Revenue","Maplefields Academy","Education Expenses"
"Peterborough","http://opendatacommunities.org/id/unitary-authority/peterborough","Peterborough City Council","Adults","Independent Sector Placements","Services",01/12/2017 00:00:00,30156032,1542.86,"Revenue","LAVENDER HOUSE RESIDENTIAL HOME","Residential Care"
"Peterborough","http://opendatacommunities.org/id/unitary-authority/peterborough","Peterborough City Council","Adults","Independent Sector Placements","Services",01/12/2017 00:00:00,30156048,1301.34,"Revenue","LAVENDER HOUSE RESIDENTIAL HOME","Residential Care"
"Peterborough","http://opendatacommunities.org/id/unitary-authority/peterborough","Peterborough City Council","Communities","Housing","Services",01/12/2017 00:00:00,30156064,525,"Revenue","Eastfield Guesthouse","Homelessness Bed & Breakfast Costs"
"Peterborough","http://opendatacommunities.org/id/unitary-authority/peterborough","Peterborough City Council","Adults","Independent Sector Placements","Services",01/12/2017 00:00:00,30156066,838.8,"Revenue","Cross Keys Homes","Home Care"
"Peterborough","http://opendatacommunities.org/id/unitary-authority/peterborough","Peterborough City Council","Adults","Independent Sector Placements","Services",01/12/2017 00:00:00,30156067,1256.6,"Revenue","LAVENDER HOUSE RESIDENTIAL HOME","Residential Care"
"Peterborough","http://opendatacommunities.org/id/unitary-authority/peterborough","Peterborough City Council","Communities","Housing","Services",01/12/2017 00:00:00,30156076,525,"Revenue","Eastfield Guesthouse","Homelessness Bed & Breakfast Costs"
"Peterborough","http://opendatacommunities.org/id/unitary-authority/peterborough","Peterborough City Council","Communities","Housing","Services",01/12/2017 00:00:00,30156085,525,"Revenue","Eastfield Guesthouse","Homelessness Bed & Breakfast Costs"
"Peterborough","http://opendatacommunities.org/id/unitary-authority/peterborough","Peterborough City Council","Communities","Housing","Services",01/12/2017 00:00:00,30156086,525,"Revenue","Eastfield Guesthouse","Homelessness Bed & Breakfast Costs"
"Peterborough","http://opendatacommunities.org/id/unitary-authority/peterborough","Peterborough City Council","Communities","Housing","Services",01/12/2017 00:00:00,30156087,525,"Revenue","Eastfield Guesthouse","Homelessness Bed & Breakfast Costs"
"Peterborough","http://opendatacommunities.org/id/unitary-authority/peterborough","Peterborough City Council","Communities","Housing","Services",01/12/2017 00:00:00,30156088,525,"Revenue","Eastfield Guesthouse","Homelessness Bed & Breakfast Costs"
"Peterborough","http://opendatacommunities.org/id/unitary-authority/peterborough","Peterborough City Council","Communities","Housing","Services",01/12/2017 00:00:00,30156089,525,"Revenue","Eastfield Guesthouse","Homelessness Bed & Breakfast Costs"
"Peterborough","http://opendatacommunities.org/id/unitary-authority/peterborough","Peterborough City Council","Communities","Housing","Services",01/12/2017 00:00:00,30156095,525,"Revenue","Eastfield Guesthouse","Homelessness Bed & Breakfast Costs"
"Peterborough","http://opendatacommunities.org/id/unitary-authority/peterborough","Peterborough City Council","Adults","Independent Sector Placements","Services",01/12/2017 00:00:00,30156115,3756,"Revenue","Turning Point Services Ltd","Residential Care"
"Peterborough","http://opendatacommunities.org/id/unitary-authority/peterborough","Peterborough City Council","Adults","Independent Sector Placements","Services",01/12/2017 00:00:00,30156119,1043.6,"Revenue","Park Vista Care Home","Residential Care"
"Peterborough","http://opendatacommunities.org/id/unitary-authority/peterborough","Peterborough City Council","Adults","Independent Sector Placements","Services",01/12/2017 00:00:00,30156131,3300,"Revenue","Park Vista Care Home","Residential Care"
"Peterborough","http://opendatacommunities.org/id/unitary-authority/peterborough","Peterborough City Council","Communities","Housing","Services",01/12/2017 00:00:00,30156137,507.5,"Revenue","Eastfield Guesthouse","Homelessness Bed & Breakfast Costs"
"Peterborough","http://opendatacommunities.org/id/unitary-authority/peterborough","Peterborough City Council","Communities","Housing","Services",01/12/2017 00:00:00,30156142,507.5,"Revenue","Eastfield Guesthouse","Homelessness Bed & Breakfast Costs"
"Peterborough","http://opendatacommunities.org/id/unitary-authority/peterborough","Peterborough City Council","Communities","Housing","Services",01/12/2017 00:00:00,30156146,507.5,"Revenue","Eastfield Guesthouse","Homelessness Bed & Breakfast Costs"
"Peterborough","http://opendatacommunities.org/id/unitary-authority/peterborough","Peterborough City Council","Communities","Housing","Services",01/12/2017 00:00:00,30156150,525,"Revenue","Eastfield Guesthouse","Homelessness Bed & Breakfast Costs"
"Peterborough","http://opendatacommunities.org/id/unitary-authority/peterborough","Peterborough City Council","Communities","Housing","Services",01/12/2017 00:00:00,30156158,525,"Revenue","Eastfield Guesthouse","Homelessness Bed & Breakfast Costs"
"Peterborough","http://opendatacommunities.org/id/unitary-authority/peterborough","Peterborough City Council","Adults","Independent Sector Placements","Services",01/12/2017 00:00:00,30156168,625,"Revenue","Park Vista Care Home","Residential Care"
"Peterborough","http://opendatacommunities.org/id/unitary-authority/peterborough","Peterborough City Council","Adults","Independent Sector Placements","Services",01/12/2017 00:00:00,30156267,1071,"Revenue","Kemps Place Ltd","Residential Care"
"Peterborough","http://opendatacommunities.org/id/unitary-authority/peterborough","Peterborough City Council","Adults","Independent Sector Placements","Services",01/12/2017 00:00:00,30156268,2680,"Revenue","Kemps Place Ltd","Residential Care"
"Peterborough","http://opendatacommunities.org/id/unitary-authority/peterborough","Peterborough City Council","Adults","Independent Sector Placements","Services",01/12/2017 00:00:00,30156271,2480,"Revenue","Kemps Place Ltd","Residential Care"
"Peterborough","http://opendatacommunities.org/id/unitary-authority/peterborough","Peterborough City Council","Adults","Independent Sector Placements","Services",01/12/2017 00:00:00,30156300,2162.24,"Revenue","ATCHISON, MR ALAN","Residential Care"
"Peterborough","http://opendatacommunities.org/id/unitary-authority/peterborough","Peterborough City Council","Adults","Independent Sector Placements","Services",01/12/2017 00:00:00,30156309,4288,"Revenue","ATCHISON, MR ALAN","Residential Care"
"Peterborough","http://opendatacommunities.org/id/unitary-authority/peterborough","Peterborough City Council","Adults","Independent Sector Placements","Services",01/12/2017 00:00:00,30156314,2162.28,"Revenue","ATCHISON, MR ALAN","Residential Care"
"Peterborough","http://opendatacommunities.org/id/unitary-authority/peterborough","Peterborough City Council","Adults","Independent Sector Placements","Services",01/12/2017 00:00:00,30156316,660,"Revenue","ATCHISON, MR ALAN","Day Care"
"Peterborough","http://opendatacommunities.org/id/unitary-authority/peterborough","Peterborough City Council","Adults","Independent Sector Placements","Services",01/12/2017 00:00:00,30156318,756,"Revenue","ATCHISON, MR ALAN","Residential Care"
"Peterborough","http://opendatacommunities.org/id/unitary-authority/peterborough","Peterborough City Council","Adults","Independent Sector Placements","Services",01/12/2017 00:00:00,30156320,4391.48,"Revenue","ATCHISON, MR ALAN","Residential Care"
"Peterborough","http://opendatacommunities.org/id/unitary-authority/peterborough","Peterborough City Council","Adults","Independent Sector Placements","Services",01/12/2017 00:00:00,30156325,3625.08,"Revenue","ATCHISON, MR ALAN","Residential Care"
"Peterborough","http://opendatacommunities.org/id/unitary-authority/peterborough","Peterborough City Council","Adults","Independent Sector Placements","Services",01/12/2017 00:00:00,30156326,2794.32,"Revenue","ATCHISON, MR ALAN","Residential Care"
"Peterborough","http://opendatacommunities.org/id/unitary-authority/peterborough","Peterborough City Council","Adults","Independent Sector Placements","Services",01/12/2017 00:00:00,30156327,3812.84,"Revenue","ATCHISON, MR ALAN","Residential Care"
"Peterborough","http://opendatacommunities.org/id/unitary-authority/peterborough","Peterborough City Council","Adults","Independent Sector Placements","Services",01/12/2017 00:00:00,30156330,4904,"Revenue","ATCHISON, MR ALAN","Residential Care"
"Peterborough","http://opendatacommunities.org/id/unitary-authority/peterborough","Peterborough City Council","Adults","Independent Sector Placements","Services",01/12/2017 00:00:00,30156333,3200,"Revenue","ATCHISON, MR ALAN","Residential Care"
"Peterborough","http://opendatacommunities.org/id/unitary-authority/peterborough","Peterborough City Council","Adults","Independent Sector Placements","Services",01/12/2017 00:00:00,30156335,2345.2,"Revenue","ATCHISON, MR ALAN","Residential Care"
"Peterborough","http://opendatacommunities.org/id/unitary-authority/peterborough","Peterborough City Council","Adults","Independent Sector Placements","Services",01/12/2017 00:00:00,30156336,685.28,"Revenue","ATCHISON, MR ALAN","Day Care"
"Peterborough","http://opendatacommunities.org/id/unitary-authority/peterborough","Peterborough City Council","Children's & Safeguarding","External Education Placements","Services",01/12/2017 00:00:00,30156337,6000,"Revenue","Glebe House","Boarding Out Allowances"
"Peterborough","http://opendatacommunities.org/id/unitary-authority/peterborough","Peterborough City Council","Adults","Independent Sector Placements","Services",01/12/2017 00:00:00,30156338,3065.6,"Revenue","ATCHISON, MR ALAN","Residential Care"
"Peterborough","http://opendatacommunities.org/id/unitary-authority/peterborough","Peterborough City Council","Adults","Independent Sector Placements","Services",01/12/2017 00:00:00,30156341,1954.32,"Revenue","ATCHISON, MR ALAN","Residential Care"
"Peterborough","http://opendatacommunities.org/id/unitary-authority/peterborough","Peterborough City Council","Adults","Independent Sector Placements","Services",01/12/2017 00:00:00,30156344,6121,"Revenue","ATCHISON, MR ALAN","Residential Care"
"Peterborough","http://opendatacommunities.org/id/unitary-authority/peterborough","Peterborough City Council","Adults","Independent Sector Placements","Services",01/12/2017 00:00:00,30156346,660,"Revenue","ATCHISON, MR ALAN","Day Care"
"Peterborough","http://opendatacommunities.org/id/unitary-authority/peterborough","Peterborough City Council","Adults","Independent Sector Placements","Services",01/12/2017 00:00:00,30156348,3103.92,"Revenue","ATCHISON, MR ALAN","Residential Care"
"Peterborough","http://opendatacommunities.org/id/unitary-authority/peterborough","Peterborough City Council","Adults","Independent Sector Placements","Services",01/12/2017 00:00:00,30156349,2337.52,"Revenue","ATCHISON, MR ALAN","Residential Care"
"Peterborough","http://opendatacommunities.org/id/unitary-authority/peterborough","Peterborough City Council","Adults","Independent Sector Placements","Services",01/12/2017 00:00:00,30156351,1954.32,"Revenue","ATCHISON, MR ALAN","Residential Care"
"Peterborough","http://opendatacommunities.org/id/unitary-authority/peterborough","Peterborough City Council","Adults","Independent Sector Placements","Services",01/12/2017 00:00:00,30156352,3625.08,"Revenue","ATCHISON, MR ALAN","Residential Care"
"Peterborough","http://opendatacommunities.org/id/unitary-authority/peterborough","Peterborough City Council","Adults","Independent Sector Placements","Services",01/12/2017 00:00:00,30156354,5234.52,"Revenue","ATCHISON, MR ALAN","Residential Care"
"Peterborough","http://opendatacommunities.org/id/unitary-authority/peterborough","Peterborough City Council","Peterborough Serco Strategic Partnership","Peterborough Serco Strategic Partnership","Services",01/12/2017 00:00:00,30156410,16809,"Revenue","Eastern Shires Purchasing Organisation","Cctv"
"Peterborough","http://opendatacommunities.org/id/unitary-authority/peterborough","Peterborough City Council","Adults","Independent Sector Placements","Services",01/12/2017 00:00:00,8000101783,823.2,"Revenue","Axiom Housing Association","Home Care"
"Peterborough","http://opendatacommunities.org/id/unitary-authority/peterborough","Peterborough City Council","Adults","Independent Sector Placements","Services",01/12/2017 00:00:00,8000101784,823.2,"Revenue","Axiom Housing Association","Home Care"
"Peterborough","http://opendatacommunities.org/id/unitary-authority/peterborough","Peterborough City Council","Adults","Independent Sector Placements","Services",01/12/2017 00:00:00,8000101786,529.2,"Revenue","Axiom Housing Association","Home Care"
"Peterborough","http://opendatacommunities.org/id/unitary-authority/peterborough","Peterborough City Council","Adults","Independent Sector Placements","Services",01/12/2017 00:00:00,8000101790,514.5,"Revenue","Axiom Housing Association","Home Care"
"Peterborough","http://opendatacommunities.org/id/unitary-authority/peterborough","Peterborough City Council","Adults","Independent Sector Placements","Services",01/12/2017 00:00:00,8000101793,617.4,"Revenue","Axiom Housing Association","Home Care"
"Peterborough","http://opendatacommunities.org/id/unitary-authority/peterborough","Peterborough City Council","Adults","Independent Sector Placements","Services",01/12/2017 00:00:00,8000101807,588,"Revenue","Axiom Housing Association","Home Care"
"Peterborough","http://opendatacommunities.org/id/unitary-authority/peterborough","Peterborough City Council","Adults","Independent Sector Placements","Services",01/12/2017 00:00:00,8000101811,737.94,"Revenue","Axiom Housing Association","Home Care"
"Peterborough","http://opendatacommunities.org/id/unitary-authority/peterborough","Peterborough City Council","Adults","Independent Sector Placements","Services",01/12/2017 00:00:00,8000101820,1898.78,"Revenue","Allied Healthcare (UK) Ltd","Home Care"
"Peterborough","http://opendatacommunities.org/id/unitary-authority/peterborough","Peterborough City Council","Adults","Independent Sector Placements","Services",01/12/2017 00:00:00,8000101823,1674.43,"Revenue","Allied Healthcare (UK) Ltd","Home Care"
"Peterborough","http://opendatacommunities.org/id/unitary-authority/peterborough","Peterborough City Council","Adults","Independent Sector Placements","Services",01/12/2017 00:00:00,8000101826,666.86,"Revenue","Allied Healthcare (UK) Ltd","Home Care"
"Peterborough","http://opendatacommunities.org/id/unitary-authority/peterborough","Peterborough City Council","Adults","Independent Sector Placements","Services",01/12/2017 00:00:00,8000101828,704.88,"Revenue","Allied Healthcare (UK) Ltd","Home Care"
"Peterborough","http://opendatacommunities.org/id/unitary-authority/peterborough","Peterborough City Council","Adults","Independent Sector Placements","Services",01/12/2017 00:00:00,8000101829,1656.29,"Revenue","Allied Healthcare (UK) Ltd","Home Care"
"Peterborough","http://opendatacommunities.org/id/unitary-authority/peterborough","Peterborough City Council","Adults","Independent Sector Placements","Services",01/12/2017 00:00:00,8000101831,1215.5,"Revenue","Allied Healthcare (UK) Ltd","Home Care"
"Peterborough","http://opendatacommunities.org/id/unitary-authority/peterborough","Peterborough City Council","Adults","Independent Sector Placements","Services",01/12/2017 00:00:00,8000101832,619.78,"Revenue","Allied Healthcare (UK) Ltd","Home Care"
"Peterborough","http://opendatacommunities.org/id/unitary-authority/peterborough","Peterborough City Council","Adults","Independent Sector Placements","Services",01/12/2017 00:00:00,8000101838,730.51,"Revenue","Allied Healthcare (UK) Ltd","Home Care"
"Peterborough","http://opendatacommunities.org/id/unitary-authority/peterborough","Peterborough City Council","Adults","Independent Sector Placements","Services",01/12/2017 00:00:00,8000101839,603.65,"Revenue","Allied Healthcare (UK) Ltd","Home Care"
"Peterborough","http://opendatacommunities.org/id/unitary-authority/peterborough","Peterborough City Council","Adults","Independent Sector Placements","Services",01/12/2017 00:00:00,8000101840,578.59,"Revenue","Allied Healthcare (UK) Ltd","Home Care"
"Peterborough","http://opendatacommunities.org/id/unitary-authority/peterborough","Peterborough City Council","Adults","Independent Sector Placements","Services",01/12/2017 00:00:00,8000101843,533.52,"Revenue","Allied Healthcare (UK) Ltd","Home Care"
"Peterborough","http://opendatacommunities.org/id/unitary-authority/peterborough","Peterborough City Council","Adults","Independent Sector Placements","Services",01/12/2017 00:00:00,8000101847,2749.39,"Revenue","Allied Healthcare (UK) Ltd","Home Care"
"Peterborough","http://opendatacommunities.org/id/unitary-authority/peterborough","Peterborough City Council","Adults","Independent Sector Placements","Services",01/12/2017 00:00:00,8000102767,576,"Revenue","MEARS GROUP","Home Care"
"Peterborough","http://opendatacommunities.org/id/unitary-authority/peterborough","Peterborough City Council","Adults","Independent Sector Placements","Services",01/12/2017 00:00:00,8000102769,1051.05,"Revenue","MEARS GROUP","Home Care"
"Peterborough","http://opendatacommunities.org/id/unitary-authority/peterborough","Peterborough City Council","Adults","Independent Sector Placements","Services",01/12/2017 00:00:00,8000102770,971.85,"Revenue","MEARS GROUP","Home Care"
"Peterborough","http://opendatacommunities.org/id/unitary-authority/peterborough","Peterborough City Council","Adults","Independent Sector Placements","Services",01/12/2017 00:00:00,8000102773,700.95,"Revenue","MEARS GROUP","Home Care"
"Peterborough","http://opendatacommunities.org/id/unitary-authority/peterborough","Peterborough City Council","Adults","Independent Sector Placements","Services",01/12/2017 00:00:00,8000102779,2038.95,"Revenue","MEARS GROUP","Home Care"
"Peterborough","http://opendatacommunities.org/id/unitary-authority/peterborough","Peterborough City Council","Adults","Independent Sector Placements","Services",01/12/2017 00:00:00,8000102782,629.1,"Revenue","MEARS GROUP","Home Care"
"Peterborough","http://opendatacommunities.org/id/unitary-authority/peterborough","Peterborough City Council","Adults","Independent Sector Placements","Services",01/12/2017 00:00:00,8000102783,669.6,"Revenue","MEARS GROUP","Home Care"
"Peterborough","http://opendatacommunities.org/id/unitary-authority/peterborough","Peterborough City Council","Adults","Independent Sector Placements","Services",01/12/2017 00:00:00,8000102784,614.86,"Revenue","MEARS GROUP","Home Care"
"Peterborough","http://opendatacommunities.org/id/unitary-authority/peterborough","Peterborough City Council","Adults","Independent Sector Placements","Services",01/12/2017 00:00:00,8000102785,655.2,"Revenue","MEARS GROUP","Home Care"
"Peterborough","http://opendatacommunities.org/id/unitary-authority/peterborough","Peterborough City Council","Adults","Independent Sector Placements","Services",01/12/2017 00:00:00,8000102786,904.35,"Revenue","MEARS GROUP","Home Care"
"Peterborough","http://opendatacommunities.org/id/unitary-authority/peterborough","Peterborough City Council","Adults","Independent Sector Placements","Services",01/12/2017 00:00:00,8000102787,515.55,"Revenue","MEARS GROUP","Home Care"
"Peterborough","http://opendatacommunities.org/id/unitary-authority/peterborough","Peterborough City Council","Adults","Independent Sector Placements","Services",01/12/2017 00:00:00,8000102793,835.35,"Revenue","MEARS GROUP","Home Care"
"Peterborough","http://opendatacommunities.org/id/unitary-authority/peterborough","Peterborough City Council","Adults","Independent Sector Placements","Services",01/12/2017 00:00:00,8000102798,963.3,"Revenue","MEARS GROUP","Home Care"
"Peterborough","http://opendatacommunities.org/id/unitary-authority/peterborough","Peterborough City Council","Adults","Independent Sector Placements","Services",01/12/2017 00:00:00,8000102800,796.95,"Revenue","MEARS GROUP","Home Care"
"Peterborough","http://opendatacommunities.org/id/unitary-authority/peterborough","Peterborough City Council","Adults","Independent Sector Placements","Services",01/12/2017 00:00:00,8000102809,676.95,"Revenue","MEARS GROUP","Home Care"
"Peterborough","http://opendatacommunities.org/id/unitary-authority/peterborough","Peterborough City Council","Adults","Independent Sector Placements","Services",01/12/2017 00:00:00,8000102813,832.5,"Revenue","MEARS GROUP","Home Care"
"Peterborough","http://opendatacommunities.org/id/unitary-authority/peterborough","Peterborough City Council","Adults","Independent Sector Placements","Services",01/12/2017 00:00:00,8000102815,1552.95,"Revenue","MEARS GROUP","Home Care"
"Peterborough","http://opendatacommunities.org/id/unitary-authority/peterborough","Peterborough City Council","Adults","Independent Sector Placements","Services",01/12/2017 00:00:00,8000102816,519.75,"Revenue","MEARS GROUP","Home Care"
"Peterborough","http://opendatacommunities.org/id/unitary-authority/peterborough","Peterborough City Council","Adults","Independent Sector Placements","Services",01/12/2017 00:00:00,8000102820,1284.3,"Revenue","MEARS GROUP","Home Care"
"Peterborough","http://opendatacommunities.org/id/unitary-authority/peterborough","Peterborough City Council","Adults","Independent Sector Placements","Services",01/12/2017 00:00:00,8000102833,1822.65,"Revenue","MEARS GROUP","Home Care"
"Peterborough","http://opendatacommunities.org/id/unitary-authority/peterborough","Peterborough City Council","Adults","Independent Sector Placements","Services",01/12/2017 00:00:00,8000102834,803.7,"Revenue","MEARS GROUP","Home Care"
"Peterborough","http://opendatacommunities.org/id/unitary-authority/peterborough","Peterborough City Council","Adults","Independent Sector Placements","Services",01/12/2017 00:00:00,8000102836,1873.8,"Revenue","MEARS GROUP","Home Care"
"Peterborough","http://opendatacommunities.org/id/unitary-authority/peterborough","Peterborough City Council","Adults","Independent Sector Placements","Services",01/12/2017 00:00:00,8000102838,2122.95,"Revenue","MEARS GROUP","Home Care"
"Peterborough","http://opendatacommunities.org/id/unitary-authority/peterborough","Peterborough City Council","Adults","Independent Sector Placements","Services",01/12/2017 00:00:00,8000102839,1064.55,"Revenue","MEARS GROUP","Home Care"
"Peterborough","http://opendatacommunities.org/id/unitary-authority/peterborough","Peterborough City Council","Adults","Independent Sector Placements","Services",01/12/2017 00:00:00,8000102840,1367.25,"Revenue","MEARS GROUP","Home Care"
"Peterborough","http://opendatacommunities.org/id/unitary-authority/peterborough","Peterborough City Council","Adults","Independent Sector Placements","Services",01/12/2017 00:00:00,8000102841,784.5,"Revenue","MEARS GROUP","Home Care"
"Peterborough","http://opendatacommunities.org/id/unitary-authority/peterborough","Peterborough City Council","Adults","Independent Sector Placements","Services",01/12/2017 00:00:00,8000102845,864.75,"Revenue","MEARS GROUP","Home Care"
"Peterborough","http://opendatacommunities.org/id/unitary-authority/peterborough","Peterborough City Council","Adults","Independent Sector Placements","Services",01/12/2017 00:00:00,8000102847,1761.75,"Revenue","MEARS GROUP","Home Care"
"Peterborough","http://opendatacommunities.org/id/unitary-authority/peterborough","Peterborough City Council","Adults","Independent Sector Placements","Services",01/12/2017 00:00:00,8000102848,692.55,"Revenue","MEARS GROUP","Home Care"
"Peterborough","http://opendatacommunities.org/id/unitary-authority/peterborough","Peterborough City Council","Adults","Independent Sector Placements","Services",01/12/2017 00:00:00,8000102849,737.7,"Revenue","MEARS GROUP","Home Care"
"Peterborough","http://opendatacommunities.org/id/unitary-authority/peterborough","Peterborough City Council","Adults","Independent Sector Placements","Services",01/12/2017 00:00:00,8000102851,505.5,"Revenue","MEARS GROUP","Home Care"
"Peterborough","http://opendatacommunities.org/id/unitary-authority/peterborough","Peterborough City Council","Adults","Independent Sector Placements","Services",01/12/2017 00:00:00,8000102853,1557.6,"Revenue","MEARS GROUP","Home Care"
"Peterborough","http://opendatacommunities.org/id/unitary-authority/peterborough","Peterborough City Council","Adults","Independent Sector Placements","Services",01/12/2017 00:00:00,8000102858,703.35,"Revenue","MEARS GROUP","Home Care"
"Peterborough","http://opendatacommunities.org/id/unitary-authority/peterborough","Peterborough City Council","Adults","Independent Sector Placements","Services",01/12/2017 00:00:00,8000102859,506.7,"Revenue","MEARS GROUP","Home Care"
"Peterborough","http://opendatacommunities.org/id/unitary-authority/peterborough","Peterborough City Council","Adults","Independent Sector Placements","Services",01/12/2017 00:00:00,8000102861,794.85,"Revenue","MEARS GROUP","Home Care"
"Peterborough","http://opendatacommunities.org/id/unitary-authority/peterborough","Peterborough City Council","Adults","Independent Sector Placements","Services",01/12/2017 00:00:00,8000102862,532.65,"Revenue","MEARS GROUP","Home Care"
"Peterborough","http://opendatacommunities.org/id/unitary-authority/peterborough","Peterborough City Council","Adults","Independent Sector Placements","Services",01/12/2017 00:00:00,8000102866,691.05,"Revenue","MEARS GROUP","Home Care"
"Peterborough","http://opendatacommunities.org/id/unitary-authority/peterborough","Peterborough City Council","Adults","Independent Sector Placements","Services",01/12/2017 00:00:00,8000103007,905.75,"Revenue","Sagecare","Home Care"
"Peterborough","http://opendatacommunities.org/id/unitary-authority/peterborough","Peterborough City Council","Adults","Independent Sector Placements","Services",01/12/2017 00:00:00,8000103011,3516.25,"Revenue","Sagecare","Home Care"
"Peterborough","http://opendatacommunities.org/id/unitary-authority/peterborough","Peterborough City Council","Adults","Independent Sector Placements","Services",01/12/2017 00:00:00,8000103013,858.5,"Revenue","Sagecare","Home Care"
"Peterborough","http://opendatacommunities.org/id/unitary-authority/peterborough","Peterborough City Council","Adults","Independent Sector Placements","Services",01/12/2017 00:00:00,8000103014,728.75,"Revenue","Sagecare","Home Care"
"Peterborough","http://opendatacommunities.org/id/unitary-authority/peterborough","Peterborough City Council","Adults","Independent Sector Placements","Services",01/12/2017 00:00:00,8000103016,551,"Revenue","Sagecare","Home Care"
"Peterborough","http://opendatacommunities.org/id/unitary-authority/peterborough","Peterborough City Council","Adults","Independent Sector Placements","Services",01/12/2017 00:00:00,8000103019,1890,"Revenue","Sagecare","Home Care"
"Peterborough","http://opendatacommunities.org/id/unitary-authority/peterborough","Peterborough City Council","Adults","Independent Sector Placements","Services",01/12/2017 00:00:00,8000103020,936.25,"Revenue","Sagecare","Home Care"
"Peterborough","http://opendatacommunities.org/id/unitary-authority/peterborough","Peterborough City Council","Adults","Independent Sector Placements","Services",01/12/2017 00:00:00,8000103021,595,"Revenue","Sagecare","Home Care"
"Peterborough","http://opendatacommunities.org/id/unitary-authority/peterborough","Peterborough City Council","Adults","Independent Sector Placements","Services",01/12/2017 00:00:00,8000103022,1038.75,"Revenue","Sagecare","Home Care"
"Peterborough","http://opendatacommunities.org/id/unitary-authority/peterborough","Peterborough City Council","Adults","Independent Sector Placements","Services",01/12/2017 00:00:00,8000103027,888.43,"Revenue","Sagecare","Home Care"
"Peterborough","http://opendatacommunities.org/id/unitary-authority/peterborough","Peterborough City Council","Adults","Independent Sector Placements","Services",01/12/2017 00:00:00,8000103029,586.74,"Revenue","Sagecare","Home Care"
"Peterborough","http://opendatacommunities.org/id/unitary-authority/peterborough","Peterborough City Council","Adults","Independent Sector Placements","Services",01/12/2017 00:00:00,8000103032,969.51,"Revenue","Sagecare","Home Care"
"Peterborough","http://opendatacommunities.org/id/unitary-authority/peterborough","Peterborough City Council","Adults","Independent Sector Placements","Services",01/12/2017 00:00:00,8000103033,2140.22,"Revenue","Sagecare","Home Care"
"Peterborough","http://opendatacommunities.org/id/unitary-authority/peterborough","Peterborough City Council","Adults","Independent Sector Placements","Services",01/12/2017 00:00:00,8000103036,653.96,"Revenue","Sagecare","Home Care"
"Peterborough","http://opendatacommunities.org/id/unitary-authority/peterborough","Peterborough City Council","Adults","Independent Sector Placements","Services",01/12/2017 00:00:00,8000103042,725.11,"Revenue","Sagecare","Home Care"
"Peterborough","http://opendatacommunities.org/id/unitary-authority/peterborough","Peterborough City Council","Adults","Independent Sector Placements","Services",01/12/2017 00:00:00,8000103044,677.75,"Revenue","Sagecare","Home Care"
"Peterborough","http://opendatacommunities.org/id/unitary-authority/peterborough","Peterborough City Council","Adults","Independent Sector Placements","Services",01/12/2017 00:00:00,8000103047,941.33,"Revenue","Sagecare","Home Care"
"Peterborough","http://opendatacommunities.org/id/unitary-authority/peterborough","Peterborough City Council","Adults","Independent Sector Placements","Services",01/12/2017 00:00:00,8000103049,686.07,"Revenue","Sagecare","Home Care"
"Peterborough","http://opendatacommunities.org/id/unitary-authority/peterborough","Peterborough City Council","Adults","Independent Sector Placements","Services",01/12/2017 00:00:00,8000103054,777.55,"Revenue","Sagecare","Home Care"
"Peterborough","http://opendatacommunities.org/id/unitary-authority/peterborough","Peterborough City Council","Adults","Independent Sector Placements","Services",01/12/2017 00:00:00,8000103055,594.13,"Revenue","Sagecare","Home Care"
"Peterborough","http://opendatacommunities.org/id/unitary-authority/peterborough","Peterborough City Council","Adults","Independent Sector Placements","Services",01/12/2017 00:00:00,8000103060,709.86,"Revenue","Sagecare","Home Care"
"Peterborough","http://opendatacommunities.org/id/unitary-authority/peterborough","Peterborough City Council","Adults","Independent Sector Placements","Services",01/12/2017 00:00:00,8000103061,1112.27,"Revenue","Sagecare","Home Care"
"Peterborough","http://opendatacommunities.org/id/unitary-authority/peterborough","Peterborough City Council","Adults","Independent Sector Placements","Services",01/12/2017 00:00:00,8000103063,599.91,"Revenue","Sagecare","Home Care"
"Peterborough","http://opendatacommunities.org/id/unitary-authority/peterborough","Peterborough City Council","Adults","Independent Sector Placements","Services",01/12/2017 00:00:00,8000103064,572.19,"Revenue","Sagecare","Home Care"
"Peterborough","http://opendatacommunities.org/id/unitary-authority/peterborough","Peterborough City Council","Adults","Independent Sector Placements","Services",01/12/2017 00:00:00,8000103068,588.36,"Revenue","Sagecare","Home Care"
"Peterborough","http://opendatacommunities.org/id/unitary-authority/peterborough","Peterborough City Council","Adults","Independent Sector Placements","Services",01/12/2017 00:00:00,8000103072,634.33,"Revenue","Sagecare","Home Care"
"Peterborough","http://opendatacommunities.org/id/unitary-authority/peterborough","Peterborough City Council","Adults","Independent Sector Placements","Services",01/12/2017 00:00:00,8000103073,509.36,"Revenue","Sagecare","Home Care"
"Peterborough","http://opendatacommunities.org/id/unitary-authority/peterborough","Peterborough City Council","Adults","Independent Sector Placements","Services",01/12/2017 00:00:00,8000103076,1207.67,"Revenue","Sagecare","Home Care"
"Peterborough","http://opendatacommunities.org/id/unitary-authority/peterborough","Peterborough City Council","Adults","Independent Sector Placements","Services",01/12/2017 00:00:00,8000103078,1533.38,"Revenue","Sagecare","Home Care"
"Peterborough","http://opendatacommunities.org/id/unitary-authority/peterborough","Peterborough City Council","Adults","Independent Sector Placements","Services",01/12/2017 00:00:00,8000103081,1968.12,"Revenue","Sagecare","Home Care"
"Peterborough","http://opendatacommunities.org/id/unitary-authority/peterborough","Peterborough City Council","Adults","Independent Sector Placements","Services",01/12/2017 00:00:00,8000103082,876.65,"Revenue","Sagecare","Home Care"
"Peterborough","http://opendatacommunities.org/id/unitary-authority/peterborough","Peterborough City Council","Adults","Independent Sector Placements","Services",01/12/2017 00:00:00,8000103083,1358.28,"Revenue","Sagecare","Home Care"
"Peterborough","http://opendatacommunities.org/id/unitary-authority/peterborough","Peterborough City Council","Adults","Independent Sector Placements","Services",01/12/2017 00:00:00,8000103085,740.36,"Revenue","Sagecare","Home Care"
"Peterborough","http://opendatacommunities.org/id/unitary-authority/peterborough","Peterborough City Council","Adults","Independent Sector Placements","Services",01/12/2017 00:00:00,8000103087,783.55,"Revenue","Sagecare","Home Care"
"Peterborough","http://opendatacommunities.org/id/unitary-authority/peterborough","Peterborough City Council","Adults","Independent Sector Placements","Services",01/12/2017 00:00:00,8000103088,672.21,"Revenue","Sagecare","Home Care"
"Peterborough","http://opendatacommunities.org/id/unitary-authority/peterborough","Peterborough City Council","Adults","Independent Sector Placements","Services",01/12/2017 00:00:00,8000103091,1003.23,"Revenue","Sagecare","Home Care"
"Peterborough","http://opendatacommunities.org/id/unitary-authority/peterborough","Peterborough City Council","Adults","Independent Sector Placements","Services",01/12/2017 00:00:00,8000103092,1294.76,"Revenue","Sagecare","Home Care"
"Peterborough","http://opendatacommunities.org/id/unitary-authority/peterborough","Peterborough City Council","Adults","Independent Sector Placements","Services",01/12/2017 00:00:00,8000103094,782.63,"Revenue","Sagecare","Home Care"
"Peterborough","http://opendatacommunities.org/id/unitary-authority/peterborough","Peterborough City Council","Adults","Independent Sector Placements","Services",01/12/2017 00:00:00,8000103095,1013.63,"Revenue","Sagecare","Home Care"
"Peterborough","http://opendatacommunities.org/id/unitary-authority/peterborough","Peterborough City Council","Adults","Independent Sector Placements","Services",01/12/2017 00:00:00,8000103096,1655.81,"Revenue","Sagecare","Home Care"
"Peterborough","http://opendatacommunities.org/id/unitary-authority/peterborough","Peterborough City Council","Adults","Independent Sector Placements","Services",01/12/2017 00:00:00,8000103097,1940.4,"Revenue","Sagecare","Home Care"
"Peterborough","http://opendatacommunities.org/id/unitary-authority/peterborough","Peterborough City Council","Adults","Independent Sector Placements","Services",01/12/2017 00:00:00,8000103098,1746.36,"Revenue","Sagecare","Home Care"
"Peterborough","http://opendatacommunities.org/id/unitary-authority/peterborough","Peterborough City Council","Adults","Independent Sector Placements","Services",01/12/2017 00:00:00,8000103101,675.91,"Revenue","Sagecare","Home Care"
"Peterborough","http://opendatacommunities.org/id/unitary-authority/peterborough","Peterborough City Council","Adults","Independent Sector Placements","Services",01/12/2017 00:00:00,8000103103,1746.36,"Revenue","Sagecare","Home Care"
"Peterborough","http://opendatacommunities.org/id/unitary-authority/peterborough","Peterborough City Council","Adults","Independent Sector Placements","Services",01/12/2017 00:00:00,8000103106,873.64,"Revenue","Sagecare","Home Care"
"Peterborough","http://opendatacommunities.org/id/unitary-authority/peterborough","Peterborough City Council","Adults","Independent Sector Placements","Services",01/12/2017 00:00:00,8000103107,587.43,"Revenue","Sagecare","Home Care"
"Peterborough","http://opendatacommunities.org/id/unitary-authority/peterborough","Peterborough City Council","Adults","Independent Sector Placements","Services",01/12/2017 00:00:00,8000103111,884.04,"Revenue","Sagecare","Home Care"
"Peterborough","http://opendatacommunities.org/id/unitary-authority/peterborough","Peterborough City Council","Adults","Independent Sector Placements","Services",01/12/2017 00:00:00,8000103112,861.4,"Revenue","Sagecare","Home Care"
"Peterborough","http://opendatacommunities.org/id/unitary-authority/peterborough","Peterborough City Council","Adults","Independent Sector Placements","Services",01/12/2017 00:00:00,8000103113,640.1,"Revenue","Sagecare","Home Care"
"Peterborough","http://opendatacommunities.org/id/unitary-authority/peterborough","Peterborough City Council","Adults","Independent Sector Placements","Services",01/12/2017 00:00:00,8000103118,1940.4,"Revenue","Sagecare","Home Care"
"Peterborough","http://opendatacommunities.org/id/unitary-authority/peterborough","Peterborough City Council","Adults","Independent Sector Placements","Services",01/12/2017 00:00:00,8000103123,2106.72,"Revenue","Sagecare","Home Care"
"Peterborough","http://opendatacommunities.org/id/unitary-authority/peterborough","Peterborough City Council","Adults","Independent Sector Placements","Services",01/12/2017 00:00:00,8000103126,582.12,"Revenue","Sagecare","Home Care"
"Peterborough","http://opendatacommunities.org/id/unitary-authority/peterborough","Peterborough City Council","Adults","Independent Sector Placements","Services",01/12/2017 00:00:00,8000103129,550.24,"Revenue","Sagecare","Home Care"
"Peterborough","http://opendatacommunities.org/id/unitary-authority/peterborough","Peterborough City Council","Adults","Independent Sector Placements","Services",01/12/2017 00:00:00,8000103191,796.95,"Revenue","Cozy Care","Home Care"
"Peterborough","http://opendatacommunities.org/id/unitary-authority/peterborough","Peterborough City Council","Adults","Independent Sector Placements","Services",01/12/2017 00:00:00,8000103195,579.6,"Revenue","Cozy Care","Home Care"
"Peterborough","http://opendatacommunities.org/id/unitary-authority/peterborough","Peterborough City Council","Adults","Independent Sector Placements","Services",01/12/2017 00:00:00,8000103198,524.4,"Revenue","Cozy Care","Home Care"
"Peterborough","http://opendatacommunities.org/id/unitary-authority/peterborough","Peterborough City Council","Adults","Independent Sector Placements","Services",01/12/2017 00:00:00,8000103199,876.3,"Revenue","Cozy Care","Home Care"
"Peterborough","http://opendatacommunities.org/id/unitary-authority/peterborough","Peterborough City Council","Adults","Independent Sector Placements","Services",01/12/2017 00:00:00,8000103200,607.2,"Revenue","Cozy Care","Home Care"
"Peterborough","http://opendatacommunities.org/id/unitary-authority/peterborough","Peterborough City Council","Adults","Independent Sector Placements","Services",01/12/2017 00:00:00,8000103203,900.45,"Revenue","Cozy Care","Home Care"
"Peterborough","http://opendatacommunities.org/id/unitary-authority/peterborough","Peterborough City Council","Children's & Safeguarding","Commissioning - CSC","Third Party Payments",01/12/2017 00:00:00,8000104840,560482.97,"Revenue","TACT","Third Party Payments - Contract"
"Peterborough","http://opendatacommunities.org/id/unitary-authority/peterborough","Peterborough City Council","Children's & Safeguarding","Children's Social Care","Agency Staff",03/12/2017 00:00:00,30157502,4499.18,"Revenue","Sanctuary Personnel Ltd","External Temporary Staff"
"Peterborough","http://opendatacommunities.org/id/unitary-authority/peterborough","Peterborough City Council","Adults","Independent Sector Placements","Services",04/12/2017 00:00:00,30153230,4405.4,"Revenue","OAKFIELD (EASTON MAUDIT) LTD","Residential Care"
"Peterborough","http://opendatacommunities.org/id/unitary-authority/peterborough","Peterborough City Council","Children's & Safeguarding","CSC Quality Assurance","Services",04/12/2017 00:00:00,30153240,918.45,"Revenue","Crisp, Mr Brian","Consultants Fees"
"Peterborough","http://opendatacommunities.org/id/unitary-authority/peterborough","Peterborough City Council","ICT","ICT","Services",04/12/2017 00:00:00,30153252,5915,"Revenue","Imperial Civil Enforcement Solutions","Computer Software"
"Peterborough","http://opendatacommunities.org/id/unitary-authority/peterborough","Peterborough City Council","Corporate Property","Office Accomodation","Cleaning & Domestic Supplies",04/12/2017 00:00:00,30153274,1477.28,"Revenue","Beebys Ltd","Cleaning"
"Peterborough","http://opendatacommunities.org/id/unitary-authority/peterborough","Peterborough City Council","Financial Services","Insurance","Services",04/12/2017 00:00:00,30153284,3454.5,"Revenue","Browne Jacobson","Legal Costs"
"Peterborough","http://opendatacommunities.org/id/unitary-authority/peterborough","Peterborough City Council","Sustainable Growth Strategy","Housing & Strategic Planning","Services",04/12/2017 00:00:00,30153334,7200,"Revenue","Objective Keystone Ltd","Computer Software"
"Peterborough","http://opendatacommunities.org/id/unitary-authority/peterborough","Peterborough City Council","Public Health","PH Commissioning","Third Party Payments",04/12/2017 00:00:00,30153383,506,"Revenue","Thomas Walker Surgery","Third Party Payments - Contract"
"Peterborough","http://opendatacommunities.org/id/unitary-authority/peterborough","Peterborough City Council","Public Health","PH Commissioning","Third Party Payments",04/12/2017 00:00:00,30153386,621,"Revenue","Park Medical Centre","Third Party Payments - Contract"
"Peterborough","http://opendatacommunities.org/id/unitary-authority/peterborough","Peterborough City Council","Public Health","PH Commissioning","Third Party Payments",04/12/2017 00:00:00,30153387,1648,"Revenue","Old Fletton Medical Practice","Third Party Payments - Contract"
"Peterborough","http://opendatacommunities.org/id/unitary-authority/peterborough","Peterborough City Council","Public Health","PH Commissioning","Third Party Payments",04/12/2017 00:00:00,30153388,705,"Revenue","Nene Valley Medical Practice","Third Party Payments - Contract"
"Peterborough","http://opendatacommunities.org/id/unitary-authority/peterborough","Peterborough City Council","Public Health","PH Commissioning","Third Party Payments",04/12/2017 00:00:00,30153389,575,"Revenue","Minster Medical Practice","Third Party Payments - Contract"
"Peterborough","http://opendatacommunities.org/id/unitary-authority/peterborough","Peterborough City Council","Corporate","Corporate","Non Revenue",04/12/2017 00:00:00,30153398,1000,"Capital","Family Voice Peterborough","Grant Payment"
"Peterborough","http://opendatacommunities.org/id/unitary-authority/peterborough","Peterborough City Council","Communities","Cohesion","Public Transport",04/12/2017 00:00:00,30153406,942.5,"Revenue","PARCA","Bus Fares"
"Peterborough","http://opendatacommunities.org/id/unitary-authority/peterborough","Peterborough City Council","Adults","Finance","Agency Staff",04/12/2017 00:00:00,30153412,1941.18,"Revenue","Badenoch & Clark Ltd","External Temporary Staff"
"Peterborough","http://opendatacommunities.org/id/unitary-authority/peterborough","Peterborough City Council","Adults","Mental Capacity Act & DoLs","Services",04/12/2017 00:00:00,30153641,1146,"Revenue","Raj Medical Consultancy Limited","Hired Services"
"Peterborough","http://opendatacommunities.org/id/unitary-authority/peterborough","Peterborough City Council","Education","Pupil Referral Unit","Agency Staff",04/12/2017 00:00:00,30153695,590,"Revenue","Grade A Recruitment Ltd","Supply Teachers"
"Peterborough","http://opendatacommunities.org/id/unitary-authority/peterborough","Peterborough City Council","Adults","Independent Sector Placements","Services",04/12/2017 00:00:00,30153815,1085.72,"Revenue","GCH (North London) Ltd - Tudors","Residential Care"
"Peterborough","http://opendatacommunities.org/id/unitary-authority/peterborough","Peterborough City Council","Adults","Independent Sector Placements","Services",04/12/2017 00:00:00,30153816,1312.08,"Revenue","GCH (North London) Ltd - Tudors","Residential Care"
"Peterborough","http://opendatacommunities.org/id/unitary-authority/peterborough","Peterborough City Council","Adults","Independent Sector Placements","Services",04/12/2017 00:00:00,30153817,972.96,"Revenue","GCH (North London) Ltd - Tudors","Residential Care"
"Peterborough","http://opendatacommunities.org/id/unitary-authority/peterborough","Peterborough City Council","Adults","Independent Sector Placements","Services",04/12/2017 00:00:00,30153818,1484.08,"Revenue","GCH (North London) Ltd - Tudors","Residential Care"
"Peterborough","http://opendatacommunities.org/id/unitary-authority/peterborough","Peterborough City Council","Adults","Independent Sector Placements","Services",04/12/2017 00:00:00,30153819,1143.92,"Revenue","GCH (North London) Ltd - Tudors","Residential Care"
"Peterborough","http://opendatacommunities.org/id/unitary-authority/peterborough","Peterborough City Council","Adults","Independent Sector Placements","Services",04/12/2017 00:00:00,30153820,1288.08,"Revenue","GCH (North London) Ltd - Tudors","Residential Care"
"Peterborough","http://opendatacommunities.org/id/unitary-authority/peterborough","Peterborough City Council","Adults","Independent Sector Placements","Services",04/12/2017 00:00:00,30153821,1038.44,"Revenue","GCH (North London) Ltd - Tudors","Residential Care"
"Peterborough","http://opendatacommunities.org/id/unitary-authority/peterborough","Peterborough City Council","Adults","Independent Sector Placements","Services",04/12/2017 00:00:00,30153824,1384.08,"Revenue","GCH (North London) Ltd - Tudors","Residential Care"
"Peterborough","http://opendatacommunities.org/id/unitary-authority/peterborough","Peterborough City Council","Adults","Independent Sector Placements","Services",04/12/2017 00:00:00,30153825,1721.96,"Revenue","GCH (North London) Ltd - Tudors","Residential Care"
"Peterborough","http://opendatacommunities.org/id/unitary-authority/peterborough","Peterborough City Council","Adults","Independent Sector Placements","Services",04/12/2017 00:00:00,30153828,1261.4,"Revenue","GCH (North London) Ltd - Tudors","Residential Care"
"Peterborough","http://opendatacommunities.org/id/unitary-authority/peterborough","Peterborough City Council","Adults","Independent Sector Placements","Services",04/12/2017 00:00:00,30153829,1064.8,"Revenue","GCH (North London) Ltd - Tudors","Residential Care"
"Peterborough","http://opendatacommunities.org/id/unitary-authority/peterborough","Peterborough City Council","Adults","Independent Sector Placements","Services",04/12/2017 00:00:00,30153830,1776.24,"Revenue","GCH (North London) Ltd - Tudors","Residential Care"
"Peterborough","http://opendatacommunities.org/id/unitary-authority/peterborough","Peterborough City Council","Adults","Independent Sector Placements","Services",04/12/2017 00:00:00,30153831,2021.88,"Revenue","GCH (North London) Ltd - Tudors","Residential Care"
"Peterborough","http://opendatacommunities.org/id/unitary-authority/peterborough","Peterborough City Council","Adults","Independent Sector Placements","Services",04/12/2017 00:00:00,30153832,1114.68,"Revenue","GCH (North London) Ltd - Tudors","Residential Care"
"Peterborough","http://opendatacommunities.org/id/unitary-authority/peterborough","Peterborough City Council","Adults","Independent Sector Placements","Services",04/12/2017 00:00:00,30153833,724.24,"Revenue","GCH (North London) Ltd - Tudors","Residential Care"
"Peterborough","http://opendatacommunities.org/id/unitary-authority/peterborough","Peterborough City Council","Adults","Independent Sector Placements","Services",04/12/2017 00:00:00,30153835,1038.44,"Revenue","GCH (North London) Ltd - Tudors","Residential Care"
"Peterborough","http://opendatacommunities.org/id/unitary-authority/peterborough","Peterborough City Council","Adults","Independent Sector Placements","Services",04/12/2017 00:00:00,30153836,1284.08,"Revenue","GCH (North London) Ltd - Tudors","Residential Care"
"Peterborough","http://opendatacommunities.org/id/unitary-authority/peterborough","Peterborough City Council","Adults","Independent Sector Placements","Services",04/12/2017 00:00:00,30153837,1008.76,"Revenue","GCH (North London) Ltd - Tudors","Residential Care"
"Peterborough","http://opendatacommunities.org/id/unitary-authority/peterborough","Peterborough City Council","Adults","Independent Sector Placements","Services",04/12/2017 00:00:00,30153838,1640.28,"Revenue","GCH (North London) Ltd - Tudors","Residential Care"
"Peterborough","http://opendatacommunities.org/id/unitary-authority/peterborough","Peterborough City Council","Adults","Independent Sector Placements","Services",04/12/2017 00:00:00,30153839,701.2,"Revenue","GCH (North London) Ltd - Tudors","Residential Care"
"Peterborough","http://opendatacommunities.org/id/unitary-authority/peterborough","Peterborough City Council","Adults","Independent Sector Placements","Services",04/12/2017 00:00:00,30153840,1208.8,"Revenue","GCH (North London) Ltd - Tudors","Residential Care"
"Peterborough","http://opendatacommunities.org/id/unitary-authority/peterborough","Peterborough City Council","Adults","Independent Sector Placements","Services",04/12/2017 00:00:00,30153841,1707.72,"Revenue","GCH (North London) Ltd - Tudors","Residential Care"
"Peterborough","http://opendatacommunities.org/id/unitary-authority/peterborough","Peterborough City Council","Adults","Independent Sector Placements","Services",04/12/2017 00:00:00,30153842,1239.6,"Revenue","GCH (North London) Ltd - Tudors","Residential Care"
"Peterborough","http://opendatacommunities.org/id/unitary-authority/peterborough","Peterborough City Council","Adults","Independent Sector Placements","Services",04/12/2017 00:00:00,30153843,1172.28,"Revenue","GCH (North London) Ltd - Tudors","Residential Care"
"Peterborough","http://opendatacommunities.org/id/unitary-authority/peterborough","Peterborough City Council","Adults","Independent Sector Placements","Services",04/12/2017 00:00:00,30153845,1133.24,"Revenue","GCH (North London) Ltd - Tudors","Residential Care"
"Peterborough","http://opendatacommunities.org/id/unitary-authority/peterborough","Peterborough City Council","Corporate Property","Commercial Propety","Repair & Maintenance of Buildings",04/12/2017 00:00:00,30153930,1786,"Revenue","Tesam Distribution Ltd","Premises Repairs"
"Peterborough","http://opendatacommunities.org/id/unitary-authority/peterborough","Peterborough City Council","Westcombe Engineering","Westcombe Engineering","Tools, Equipment, Furniture & Materials",04/12/2017 00:00:00,30153938,655.41,"Revenue","M O 8 Specialities Ltd","Materials"
"Peterborough","http://opendatacommunities.org/id/unitary-authority/peterborough","Peterborough City Council","Adults","Independent Sector Placements","Services",04/12/2017 00:00:00,30153952,1236.29,"Revenue","Pilgrim Havens","Residential Care"
"Peterborough","http://opendatacommunities.org/id/unitary-authority/peterborough","Peterborough City Council","Adults","Independent Sector Placements","Services",04/12/2017 00:00:00,30153953,1585.2,"Revenue","Pilgrim Havens","Residential Care"
"Peterborough","http://opendatacommunities.org/id/unitary-authority/peterborough","Peterborough City Council","Adults","Independent Sector Placements","Services",04/12/2017 00:00:00,30153954,1284.08,"Revenue","Pilgrim Havens","Residential Care"
"Peterborough","http://opendatacommunities.org/id/unitary-authority/peterborough","Peterborough City Council","Adults","Independent Sector Placements","Services",04/12/2017 00:00:00,30153955,889.12,"Revenue","Pilgrim Havens","Residential Care"
"Peterborough","http://opendatacommunities.org/id/unitary-authority/peterborough","Peterborough City Council","Adults","Independent Sector Placements","Services",04/12/2017 00:00:00,30153956,1631.76,"Revenue","Pilgrim Havens","Residential Care"
"Peterborough","http://opendatacommunities.org/id/unitary-authority/peterborough","Peterborough City Council","Adults","Independent Sector Placements","Services",04/12/2017 00:00:00,30153957,926.64,"Revenue","Pilgrim Havens","Residential Care"
"Peterborough","http://opendatacommunities.org/id/unitary-authority/peterborough","Peterborough City Council","Adults","Independent Sector Placements","Services",04/12/2017 00:00:00,30153958,1320.08,"Revenue","Pilgrim Havens","Residential Care"
"Peterborough","http://opendatacommunities.org/id/unitary-authority/peterborough","Peterborough City Council","Commissioning and Commercial Operations","Clare Lodge","Agency Staff",04/12/2017 00:00:00,30154066,1776,"Revenue","Wrixon Care Services","External Temporary Staff"
"Peterborough","http://opendatacommunities.org/id/unitary-authority/peterborough","Peterborough City Council","Adults","Independent Sector Placements","Services",04/12/2017 00:00:00,30154112,7121.94,"Revenue","GCH (North London) Ltd - Tudors","Residential Care"
"Peterborough","http://opendatacommunities.org/id/unitary-authority/peterborough","Peterborough City Council","Corporate","Corporate","Non Revenue",04/12/2017 00:00:00,30154151,5332,"Capital","Enterprise Managed Services Limited","Infrastructure"
"Peterborough","http://opendatacommunities.org/id/unitary-authority/peterborough","Peterborough City Council","City Servs & Communications","Markets, Tourism & Events","Services",04/12/2017 00:00:00,30154157,2586.63,"Revenue","Enterprise Managed Services Limited","Conferences/Events"
"Peterborough","http://opendatacommunities.org/id/unitary-authority/peterborough","Peterborough City Council","Adults","Independent Sector Placements","Services",04/12/2017 00:00:00,30154197,3880.88,"Revenue","Bandrum Nursing Home Ltd","Residential Care"
"Peterborough","http://opendatacommunities.org/id/unitary-authority/peterborough","Peterborough City Council","Adults","Independent Sector Placements","Services",04/12/2017 00:00:00,30154198,3880.88,"Revenue","Bandrum Nursing Home Ltd","Residential Care"
"Peterborough","http://opendatacommunities.org/id/unitary-authority/peterborough","Peterborough City Council","Adults","Independent Sector Placements","Contract Hire and Operating Leases",04/12/2017 00:00:00,30154255,595,"Revenue","Peterborough Cars","Hired Transport"
"Peterborough","http://opendatacommunities.org/id/unitary-authority/peterborough","Peterborough City Council","Adults","Independent Sector Placements","Services",04/12/2017 00:00:00,30154267,2181.6,"Revenue","Southwark Park Nursing Homes - Blenheim Care Centre","Residential Care"
"Peterborough","http://opendatacommunities.org/id/unitary-authority/peterborough","Peterborough City Council","Education","Pupil Referral Unit","Agency Staff",04/12/2017 00:00:00,30154287,2453.9,"Revenue","Grade A Recruitment Ltd","Supply Teachers"
"Peterborough","http://opendatacommunities.org/id/unitary-authority/peterborough","Peterborough City Council","Communities","Targeted Youth Service","Catering",04/12/2017 00:00:00,30154415,1702.55,"Revenue","Thomas Deacon Academy","Catering"
"Peterborough","http://opendatacommunities.org/id/unitary-authority/peterborough","Peterborough City Council","Children's & Safeguarding","Children's Social Care","Services",04/12/2017 00:00:00,30154763,1100,"Revenue","Paul Stainton Media Ltd","Hired Services"
"Peterborough","http://opendatacommunities.org/id/unitary-authority/peterborough","Peterborough City Council","ICT","ICT","Services",04/12/2017 00:00:00,30155679,6392.28,"Revenue","Capita Business Services Ltd","Computer Software"
"Peterborough","http://opendatacommunities.org/id/unitary-authority/peterborough","Peterborough City Council","Adults","Independent Sector Placements","Services",04/12/2017 00:00:00,30156116,18274.2,"Revenue","BRAIN INJURY REHABILITATION TRUST","Residential Care"
"Peterborough","http://opendatacommunities.org/id/unitary-authority/peterborough","Peterborough City Council","Other - Exclude","Other","Other Grants, reimbursements and contributions",04/12/2017 00:00:00,30156225,6270,"Revenue","Redacted Personal Information","Refunds"
"Peterborough","http://opendatacommunities.org/id/unitary-authority/peterborough","Peterborough City Council","Commissioning and Commercial Operations","Early Years & Quality Improvement","Services",04/12/2017 00:00:00,30156234,999.6,"Revenue","Redacted Personal Information","Grant Payment"
"Peterborough","http://opendatacommunities.org/id/unitary-authority/peterborough","Peterborough City Council","Commissioning and Commercial Operations","Early Years & Quality Improvement","Services",04/12/2017 00:00:00,30156235,1791.84,"Revenue","Redacted Personal Information","Grant Payment"
"Peterborough","http://opendatacommunities.org/id/unitary-authority/peterborough","Peterborough City Council","HR","HR","Services",04/12/2017 00:00:00,30156388,21269.23,"Revenue","Edenred","Childcare"
"Peterborough","http://opendatacommunities.org/id/unitary-authority/peterborough","Peterborough City Council","Adults","Independent Sector Placements","Services",04/12/2017 00:00:00,30156430,-8484.45,"Revenue","BRAIN INJURY REHABILITATION TRUST","Residential Care"
"Peterborough","http://opendatacommunities.org/id/unitary-authority/peterborough","Peterborough City Council","Adults","Independent Sector Placements","Services",04/12/2017 00:00:00,30156477,1234.2,"Revenue","Carewatch Care Services Ltd","Home Care"
"Peterborough","http://opendatacommunities.org/id/unitary-authority/peterborough","Peterborough City Council","Adults","Independent Sector Placements","Services",04/12/2017 00:00:00,30156478,663.3,"Revenue","Carewatch Care Services Ltd","Home Care"
"Peterborough","http://opendatacommunities.org/id/unitary-authority/peterborough","Peterborough City Council","Adults","Independent Sector Placements","Services",04/12/2017 00:00:00,30156492,1788.6,"Revenue","Carewatch Care Services Ltd","Home Care"
"Peterborough","http://opendatacommunities.org/id/unitary-authority/peterborough","Peterborough City Council","Adults","Independent Sector Placements","Services",04/12/2017 00:00:00,30156493,752.4,"Revenue","Carewatch Care Services Ltd","Home Care"
"Peterborough","http://opendatacommunities.org/id/unitary-authority/peterborough","Peterborough City Council","Adults","Independent Sector Placements","Services",04/12/2017 00:00:00,30156506,1650,"Revenue","Carewatch Care Services Ltd","Home Care"
"Peterborough","http://opendatacommunities.org/id/unitary-authority/peterborough","Peterborough City Council","Adults","Independent Sector Placements","Services",04/12/2017 00:00:00,30156510,1092.3,"Revenue","Carewatch Care Services Ltd","Home Care"
"Peterborough","http://opendatacommunities.org/id/unitary-authority/peterborough","Peterborough City Council","Adults","Independent Sector Placements","Services",04/12/2017 00:00:00,30156512,501.6,"Revenue","Carewatch Care Services Ltd","Home Care"
"Peterborough","http://opendatacommunities.org/id/unitary-authority/peterborough","Peterborough City Council","Adults","Independent Sector Placements","Services",04/12/2017 00:00:00,30156516,633.6,"Revenue","Carewatch Care Services Ltd","Home Care"
"Peterborough","http://opendatacommunities.org/id/unitary-authority/peterborough","Peterborough City Council","Adults","Independent Sector Placements","Services",04/12/2017 00:00:00,30156517,570.9,"Revenue","Carewatch Care Services Ltd","Home Care"
"Peterborough","http://opendatacommunities.org/id/unitary-authority/peterborough","Peterborough City Council","Adults","Independent Sector Placements","Services",04/12/2017 00:00:00,30156518,719.4,"Revenue","Carewatch Care Services Ltd","Home Care"
"Peterborough","http://opendatacommunities.org/id/unitary-authority/peterborough","Peterborough City Council","Adults","Independent Sector Placements","Services",04/12/2017 00:00:00,30156519,660,"Revenue","Carewatch Care Services Ltd","Home Care"
"Peterborough","http://opendatacommunities.org/id/unitary-authority/peterborough","Peterborough City Council","Adults","Independent Sector Placements","Services",04/12/2017 00:00:00,30156527,1848,"Revenue","Carewatch Care Services Ltd","Home Care"
"Peterborough","http://opendatacommunities.org/id/unitary-authority/peterborough","Peterborough City Council","Adults","Independent Sector Placements","Services",04/12/2017 00:00:00,30156529,1848,"Revenue","Carewatch Care Services Ltd","Home Care"
"Peterborough","http://opendatacommunities.org/id/unitary-authority/peterborough","Peterborough City Council","Adults","Independent Sector Placements","Services",04/12/2017 00:00:00,30156532,1009.8,"Revenue","Carewatch Care Services Ltd","Home Care"
"Peterborough","http://opendatacommunities.org/id/unitary-authority/peterborough","Peterborough City Council","Adults","Independent Sector Placements","Services",04/12/2017 00:00:00,30156538,1663.2,"Revenue","Carewatch Care Services Ltd","Home Care"
"Peterborough","http://opendatacommunities.org/id/unitary-authority/peterborough","Peterborough City Council","Adults","Independent Sector Placements","Services",04/12/2017 00:00:00,30156546,1663.2,"Revenue","Carewatch Care Services Ltd","Home Care"
"Peterborough","http://opendatacommunities.org/id/unitary-authority/peterborough","Peterborough City Council","Adults","Independent Sector Placements","Services",04/12/2017 00:00:00,30156564,660,"Revenue","Carewatch Care Services Ltd","Home Care"
"Peterborough","http://opendatacommunities.org/id/unitary-authority/peterborough","Peterborough City Council","Adults","Independent Sector Placements","Services",04/12/2017 00:00:00,30156565,825,"Revenue","Carewatch Care Services Ltd","Home Care"
"Peterborough","http://opendatacommunities.org/id/unitary-authority/peterborough","Peterborough City Council","Adults","Independent Sector Placements","Services",04/12/2017 00:00:00,30156602,752.4,"Revenue","Carewatch Care Services Ltd","Home Care"
"Peterborough","http://opendatacommunities.org/id/unitary-authority/peterborough","Peterborough City Council","Adults","Independent Sector Placements","Services",04/12/2017 00:00:00,30156607,1656.6,"Revenue","Carewatch Care Services Ltd","Home Care"
"Peterborough","http://opendatacommunities.org/id/unitary-authority/peterborough","Peterborough City Council","Adults","Independent Sector Placements","Services",04/12/2017 00:00:00,30156622,871.2,"Revenue","Carewatch Care Services Ltd","Home Care"
"Peterborough","http://opendatacommunities.org/id/unitary-authority/peterborough","Peterborough City Council","Adults","Independent Sector Placements","Services",04/12/2017 00:00:00,30156623,514.8,"Revenue","Carewatch Care Services Ltd","Home Care"
"Peterborough","http://opendatacommunities.org/id/unitary-authority/peterborough","Peterborough City Council","Corporate","Corporate","Non Revenue",04/12/2017 00:00:00,30156624,837563.81,"Balance Sheet","Teachers Pensions","Pensions"
"Peterborough","http://opendatacommunities.org/id/unitary-authority/peterborough","Peterborough City Council","Adults","Independent Sector Placements","Services",04/12/2017 00:00:00,30156655,3600,"Revenue","LESTER HALL APARTMENTS LTD","Residential Care"
"Peterborough","http://opendatacommunities.org/id/unitary-authority/peterborough","Peterborough City Council","Adults","Independent Sector Placements","Services",04/12/2017 00:00:00,30156657,1768.92,"Revenue","Ashmere","Residential Care"
"Peterborough","http://opendatacommunities.org/id/unitary-authority/peterborough","Peterborough City Council","Adults","Independent Sector Placements","Services",04/12/2017 00:00:00,30156663,7927.52,"Revenue","Fins Care Ltd t/a St Margarets Rest Home","Residential Care"
"Peterborough","http://opendatacommunities.org/id/unitary-authority/peterborough","Peterborough City Council","Peterborough Serco Strategic Partnership","Peterborough Serco Strategic Partnership","Services",04/12/2017 00:00:00,30156664,1895,"Revenue","Inform CPI Ltd","Consultants Fees"
"Peterborough","http://opendatacommunities.org/id/unitary-authority/peterborough","Peterborough City Council","Adults","Day opportunities - Older People","Agency Staff",06/12/2017 00:00:00,30144257,6700,"Revenue","Caritas Recruitment","External Temporary Staff"
"Peterborough","http://opendatacommunities.org/id/unitary-authority/peterborough","Peterborough City Council","Adults","Independent Sector Placements","Services",06/12/2017 00:00:00,30144362,1923.75,"Revenue","Midco Care Limited","Home Care"
"Peterborough","http://opendatacommunities.org/id/unitary-authority/peterborough","Peterborough City Council","Adults","Independent Sector Placements","Services",06/12/2017 00:00:00,30145266,630,"Revenue","Midco Care Limited","Home Care"
"Peterborough","http://opendatacommunities.org/id/unitary-authority/peterborough","Peterborough City Council","Adults","Independent Sector Placements","Services",06/12/2017 00:00:00,30145267,2250,"Revenue","Midco Care Limited","Home Care"
"Peterborough","http://opendatacommunities.org/id/unitary-authority/peterborough","Peterborough City Council","Adults","Independent Sector Placements","Services",06/12/2017 00:00:00,30146902,2520,"Revenue","Midco Care Limited","Home Care"
"Peterborough","http://opendatacommunities.org/id/unitary-authority/peterborough","Peterborough City Council","Adults","Independent Sector Placements","Services",06/12/2017 00:00:00,30146903,2520,"Revenue","Midco Care Limited","Home Care"
"Peterborough","http://opendatacommunities.org/id/unitary-authority/peterborough","Peterborough City Council","Adults","Independent Sector Placements","Services",06/12/2017 00:00:00,30150005,1380,"Revenue","Midco Care Limited","Home Care"
"Peterborough","http://opendatacommunities.org/id/unitary-authority/peterborough","Peterborough City Council","Adults","Independent Sector Placements","Services",06/12/2017 00:00:00,30150020,1470,"Revenue","Midco Care Limited","Home Care"
"Peterborough","http://opendatacommunities.org/id/unitary-authority/peterborough","Peterborough City Council","Adults","Independent Sector Placements","Services",06/12/2017 00:00:00,30150023,1470,"Revenue","Midco Care Limited","Home Care"
"Peterborough","http://opendatacommunities.org/id/unitary-authority/peterborough","Peterborough City Council","Adults","Independent Sector Placements","Services",06/12/2017 00:00:00,30150927,1192.5,"Revenue","Midco Care Limited","Home Care"
"Peterborough","http://opendatacommunities.org/id/unitary-authority/peterborough","Peterborough City Council","Adults","Independent Sector Placements","Services",06/12/2017 00:00:00,30150928,1260,"Revenue","Midco Care Limited","Home Care"
"Peterborough","http://opendatacommunities.org/id/unitary-authority/peterborough","Peterborough City Council","Adults","Independent Sector Placements","Services",06/12/2017 00:00:00,30150931,1380,"Revenue","Midco Care Limited","Home Care"
"Peterborough","http://opendatacommunities.org/id/unitary-authority/peterborough","Peterborough City Council","Adults","Independent Sector Placements","Services",06/12/2017 00:00:00,30150932,1890,"Revenue","Midco Care Limited","Home Care"
"Peterborough","http://opendatacommunities.org/id/unitary-authority/peterborough","Peterborough City Council","Corporate","Corporate","Non Revenue",06/12/2017 00:00:00,30151926,547.47,"Capital","Vix Technology UK Ltd","Infrastructure"
"Peterborough","http://opendatacommunities.org/id/unitary-authority/peterborough","Peterborough City Council","Corporate","Corporate","Non Revenue",06/12/2017 00:00:00,30151949,787,"Capital","NPS Peterborough Ltd","Consultants Fees"
"Peterborough","http://opendatacommunities.org/id/unitary-authority/peterborough","Peterborough City Council","Corporate","Corporate","Non Revenue",06/12/2017 00:00:00,30152012,1696,"Capital","NPS Peterborough Ltd","Consultants Fees"
"Peterborough","http://opendatacommunities.org/id/unitary-authority/peterborough","Peterborough City Council","Legal & Democratic","Legal Services","Agency Staff",06/12/2017 00:00:00,30152947,682,"Revenue","Venn Group Ltd","External Temporary Staff"
"Peterborough","http://opendatacommunities.org/id/unitary-authority/peterborough","Peterborough City Council","Public Health","PH Commissioning","Third Party Payments",06/12/2017 00:00:00,30153382,2100.5,"Revenue","Thistlemoor Healthcare & Management Ltd","Third Party Payments - Contract"
"Peterborough","http://opendatacommunities.org/id/unitary-authority/peterborough","Peterborough City Council","Corporate Items","Corporate Services","Services",06/12/2017 00:00:00,30153441,1868.93,"Revenue","Barnack Parish Council","Precept Charges"
"Peterborough","http://opendatacommunities.org/id/unitary-authority/peterborough","Peterborough City Council","Financial Services","Finance","Services",06/12/2017 00:00:00,30153510,7244.3,"Revenue","Allen Lane Recruitment","Consultants Fees"
"Peterborough","http://opendatacommunities.org/id/unitary-authority/peterborough","Peterborough City Council","Education","Pupil Referral Unit","Agency Staff",06/12/2017 00:00:00,30153513,1035,"Revenue","Teaching Personnel Ltd","Supply Teachers"
"Peterborough","http://opendatacommunities.org/id/unitary-authority/peterborough","Peterborough City Council","Education","Service Director Education","Agency Staff",06/12/2017 00:00:00,30153542,10400,"Revenue","Terry Reynolds Education Consulting Ltd","External Temporary Staff"
"Peterborough","http://opendatacommunities.org/id/unitary-authority/peterborough","Peterborough City Council","Adults","Finance","Services",06/12/2017 00:00:00,30153566,2906,"Revenue","Pinsent Masons","Legal Costs"
"Peterborough","http://opendatacommunities.org/id/unitary-authority/peterborough","Peterborough City Council","Energy","Environment Capital","Services",06/12/2017 00:00:00,30153570,12880,"Revenue","Pinsent Masons","Legal Costs"
"Peterborough","http://opendatacommunities.org/id/unitary-authority/peterborough","Peterborough City Council","Energy","Environment Capital","Services",06/12/2017 00:00:00,30153572,7129.8,"Revenue","Pinsent Masons","Legal Costs"
"Peterborough","http://opendatacommunities.org/id/unitary-authority/peterborough","Peterborough City Council","Energy","Environment Capital","Services",06/12/2017 00:00:00,30153575,1870,"Revenue","Pinsent Masons","Legal Costs"
"Peterborough","http://opendatacommunities.org/id/unitary-authority/peterborough","Peterborough City Council","Energy","Environment Capital","Services",06/12/2017 00:00:00,30153576,7090,"Revenue","Pinsent Masons","Legal Costs"
"Peterborough","http://opendatacommunities.org/id/unitary-authority/peterborough","Peterborough City Council","Commissioning and Commercial Operations","Commissioning","Services",06/12/2017 00:00:00,30153691,5541.66,"Revenue","Wayahead Training Limited","Hired Services"
"Peterborough","http://opendatacommunities.org/id/unitary-authority/peterborough","Peterborough City Council","Commissioning and Commercial Operations","Clare Lodge","Agency Staff",06/12/2017 00:00:00,30153705,1225,"Revenue","Mana Resourcing Ltd","Supply Teachers"
"Peterborough","http://opendatacommunities.org/id/unitary-authority/peterborough","Peterborough City Council","Children's & Safeguarding","Children's Social Care","Agency Staff",06/12/2017 00:00:00,30153752,1406,"Revenue","NonStop Recruitment Ltd","External Temporary Staff"
"Peterborough","http://opendatacommunities.org/id/unitary-authority/peterborough","Peterborough City Council","Children's & Safeguarding","Children's Social Care","Public Transport",06/12/2017 00:00:00,30153776,4297.4,"Revenue","R S P LTD","Rail Fares"
"Peterborough","http://opendatacommunities.org/id/unitary-authority/peterborough","Peterborough City Council","Peterborough Highway Services","Highway & Drainage Control","Agency Staff",06/12/2017 00:00:00,30153798,1584,"Revenue","Matchtech","External Temporary Staff"
"Peterborough","http://opendatacommunities.org/id/unitary-authority/peterborough","Peterborough City Council","Legal & Democratic","Legal Services","Agency Staff",06/12/2017 00:00:00,30153860,2084.4,"Revenue","Venn Group Ltd","External Temporary Staff"
"Peterborough","http://opendatacommunities.org/id/unitary-authority/peterborough","Peterborough City Council","Legal & Democratic","Legal Services","Agency Staff",06/12/2017 00:00:00,30153861,1446.28,"Revenue","Venn Group Ltd","External Temporary Staff"
"Peterborough","http://opendatacommunities.org/id/unitary-authority/peterborough","Peterborough City Council","Legal & Democratic","Legal Services","Agency Staff",06/12/2017 00:00:00,30153862,649,"Revenue","Venn Group Ltd","External Temporary Staff"
"Peterborough","http://opendatacommunities.org/id/unitary-authority/peterborough","Peterborough City Council","Legal & Democratic","Legal Services","Agency Staff",06/12/2017 00:00:00,30153863,914.36,"Revenue","Venn Group Ltd","External Temporary Staff"
"Peterborough","http://opendatacommunities.org/id/unitary-authority/peterborough","Peterborough City Council","Legal & Democratic","Legal Services","Agency Staff",06/12/2017 00:00:00,30153864,995.94,"Revenue","Venn Group Ltd","External Temporary Staff"
"Peterborough","http://opendatacommunities.org/id/unitary-authority/peterborough","Peterborough City Council","Legal & Democratic","Legal Services","Agency Staff",06/12/2017 00:00:00,30153865,1702,"Revenue","Venn Group Ltd","External Temporary Staff"
"Peterborough","http://opendatacommunities.org/id/unitary-authority/peterborough","Peterborough City Council","Legal & Democratic","Legal Services","Agency Staff",06/12/2017 00:00:00,30153866,996.41,"Revenue","Venn Group Ltd","External Temporary Staff"
"Peterborough","http://opendatacommunities.org/id/unitary-authority/peterborough","Peterborough City Council","Energy","Environment Capital","Repair & Maintenance of Buildings",06/12/2017 00:00:00,30153936,1430,"Revenue","M J Greaves","Premises Repairs"
"Peterborough","http://opendatacommunities.org/id/unitary-authority/peterborough","Peterborough City Council","Peterborough Highway Services","Network and Traffic Management","Services",06/12/2017 00:00:00,30153943,603.48,"Revenue","Johnston Press Midlands Division","Advertising"
"Peterborough","http://opendatacommunities.org/id/unitary-authority/peterborough","Peterborough City Council","Adults","Independent Sector Placements","Services",06/12/2017 00:00:00,30153951,7966.75,"Revenue","NEW BOUNDARIES COMMUNITY SERVICES LTD","Residential Care"
"Peterborough","http://opendatacommunities.org/id/unitary-authority/peterborough","Peterborough City Council","Adults","Independent Sector Placements","Services",06/12/2017 00:00:00,30154001,1225,"Revenue","Oakhouse Homecare Cambs Ltd","Residential Care"
"Peterborough","http://opendatacommunities.org/id/unitary-authority/peterborough","Peterborough City Council","Communities","Parking","Services",06/12/2017 00:00:00,30154010,6584,"Revenue","24181-TEC-Bulk-Issue","Hired Services"
"Peterborough","http://opendatacommunities.org/id/unitary-authority/peterborough","Peterborough City Council","Commissioning and Commercial Operations","Clare Lodge","Agency Staff",06/12/2017 00:00:00,30154068,1072,"Revenue","Wrixon Care Services","External Temporary Staff"
"Peterborough","http://opendatacommunities.org/id/unitary-authority/peterborough","Peterborough City Council","Adults","Independent Sector Placements","Services",06/12/2017 00:00:00,30154069,1952.01,"Revenue","Bestcare Ltd","Residential Care"
"Peterborough","http://opendatacommunities.org/id/unitary-authority/peterborough","Peterborough City Council","Commissioning and Commercial Operations","Clare Lodge","Agency Staff",06/12/2017 00:00:00,30154074,2040,"Revenue","Wrixon Care Services","External Temporary Staff"
"Peterborough","http://opendatacommunities.org/id/unitary-authority/peterborough","Peterborough City Council","Commissioning and Commercial Operations","Clare Lodge","Agency Staff",06/12/2017 00:00:00,30154076,528,"Revenue","Wrixon Care Services","External Temporary Staff"
"Peterborough","http://opendatacommunities.org/id/unitary-authority/peterborough","Peterborough City Council","Adults","Independent Sector Placements","Services",06/12/2017 00:00:00,30154079,3224,"Revenue","STAR RESIDENTIAL HOME LTD","Residential Care"
"Peterborough","http://opendatacommunities.org/id/unitary-authority/peterborough","Peterborough City Council","Adults","Independent Sector Placements","Services",06/12/2017 00:00:00,30154084,-4803,"Revenue","STAR RESIDENTIAL HOME LTD","Residential Care"
"Peterborough","http://opendatacommunities.org/id/unitary-authority/peterborough","Peterborough City Council","Commissioning and Commercial Operations","Clare Lodge","Services",06/12/2017 00:00:00,30154091,544.68,"Revenue","Excell Network Solutions Ltd","Telephones"
"Peterborough","http://opendatacommunities.org/id/unitary-authority/peterborough","Peterborough City Council","City Servs & Communications","Regulatory Services","Services",06/12/2017 00:00:00,30154106,832.67,"Revenue","Cambridgeshire & Peterborough Fire Authority","Hired Services"
"Peterborough","http://opendatacommunities.org/id/unitary-authority/peterborough","Peterborough City Council","Adults","Independent Sector Placements","Services",06/12/2017 00:00:00,30154124,1284.08,"Revenue","Maxey House Res Home","Residential Care"
"Peterborough","http://opendatacommunities.org/id/unitary-authority/peterborough","Peterborough City Council","Adults","Independent Sector Placements","Services",06/12/2017 00:00:00,30154125,1229.72,"Revenue","Maxey House Res Home","Residential Care"
"Peterborough","http://opendatacommunities.org/id/unitary-authority/peterborough","Peterborough City Council","Adults","Independent Sector Placements","Services",06/12/2017 00:00:00,30154126,995.8,"Revenue","Maxey House Res Home","Residential Care"
"Peterborough","http://opendatacommunities.org/id/unitary-authority/peterborough","Peterborough City Council","Adults","Independent Sector Placements","Services",06/12/2017 00:00:00,30154127,1011.84,"Revenue","Maxey House Res Home","Residential Care"
"Peterborough","http://opendatacommunities.org/id/unitary-authority/peterborough","Peterborough City Council","Adults","Independent Sector Placements","Services",06/12/2017 00:00:00,30154134,1676.24,"Revenue","Maxey House Res Home","Residential Care"
"Peterborough","http://opendatacommunities.org/id/unitary-authority/peterborough","Peterborough City Council","Adults","Independent Sector Placements","Services",06/12/2017 00:00:00,30154135,1821.88,"Revenue","Maxey House Res Home","Residential Care"
"Peterborough","http://opendatacommunities.org/id/unitary-authority/peterborough","Peterborough City Council","Adults","Independent Sector Placements","Services",06/12/2017 00:00:00,30154136,1027.36,"Revenue","Maxey House Res Home","Residential Care"
"Peterborough","http://opendatacommunities.org/id/unitary-authority/peterborough","Peterborough City Council","City Servs & Communications","Markets, Tourism & Events","Services",06/12/2017 00:00:00,30154138,14095.4,"Revenue","F R Systems Ltd","Conferences/Events"
"Peterborough","http://opendatacommunities.org/id/unitary-authority/peterborough","Peterborough City Council","Adults","Independent Sector Placements","Agency Staff",06/12/2017 00:00:00,30154165,5588.94,"Revenue","Swim Recruitment","External Temporary Staff"
"Peterborough","http://opendatacommunities.org/id/unitary-authority/peterborough","Peterborough City Council","Adults","Independent Sector Placements","Services",06/12/2017 00:00:00,30154195,1123.68,"Revenue","Maxey House Res Home","Residential Care"
"Peterborough","http://opendatacommunities.org/id/unitary-authority/peterborough","Peterborough City Council","Adults","Independent Sector Placements","Services",06/12/2017 00:00:00,30154196,1003.19,"Revenue","Maxey House Res Home","Residential Care"
"Peterborough","http://opendatacommunities.org/id/unitary-authority/peterborough","Peterborough City Council","Adults","Independent Sector Placements","Services",06/12/2017 00:00:00,30154203,1064.84,"Revenue","Maxey House Res Home","Residential Care"
"Peterborough","http://opendatacommunities.org/id/unitary-authority/peterborough","Peterborough City Council","Adults","Independent Sector Placements","Services",06/12/2017 00:00:00,30154205,1244.68,"Revenue","Maxey House Res Home","Residential Care"
"Peterborough","http://opendatacommunities.org/id/unitary-authority/peterborough","Peterborough City Council","Adults","Independent Sector Placements","Services",06/12/2017 00:00:00,30154257,1008.68,"Revenue","Oakhouse Homecare Cambs Ltd","Residential Care"
"Peterborough","http://opendatacommunities.org/id/unitary-authority/peterborough","Peterborough City Council","Adults","Independent Sector Placements","Services",06/12/2017 00:00:00,30154310,13300,"Revenue","Exclusive Secure Care Services","Home Care"
"Peterborough","http://opendatacommunities.org/id/unitary-authority/peterborough","Peterborough City Council","Corporate","Corporate","Non Revenue",06/12/2017 00:00:00,30154312,16265,"Capital","Cambridgeshire County Council","IT Equipment"
"Peterborough","http://opendatacommunities.org/id/unitary-authority/peterborough","Peterborough City Council","Corporate","Corporate","Non Revenue",06/12/2017 00:00:00,30154313,522411,"Capital","Cambridgeshire County Council","IT Equipment"
"Peterborough","http://opendatacommunities.org/id/unitary-authority/peterborough","Peterborough City Council","Children's & Safeguarding","Commissioning - CSC","Services",06/12/2017 00:00:00,30154321,750.4,"Revenue","Sahara Community Care Services","Purchased Social Care Services"
"Peterborough","http://opendatacommunities.org/id/unitary-authority/peterborough","Peterborough City Council","Education","School Improvement","Services",06/12/2017 00:00:00,30154418,2000,"Revenue","Hair@theAcademy(Devon) Ltd","Education Expenses"
"Peterborough","http://opendatacommunities.org/id/unitary-authority/peterborough","Peterborough City Council","Adults","Day opportunities - Older People","Agency Staff",06/12/2017 00:00:00,30154549,1221,"Revenue","Medicare First","External Temporary Staff"
"Peterborough","http://opendatacommunities.org/id/unitary-authority/peterborough","Peterborough City Council","Adults","Independent Sector Placements","Services",06/12/2017 00:00:00,30154622,1260,"Revenue","Thera East Anglia","Day Care"
"Peterborough","http://opendatacommunities.org/id/unitary-authority/peterborough","Peterborough City Council","Adults","Independent Sector Placements","Services",06/12/2017 00:00:00,30154623,2440,"Revenue","Thera East Anglia","Day Care"
"Peterborough","http://opendatacommunities.org/id/unitary-authority/peterborough","Peterborough City Council","Adults","Independent Sector Placements","Services",06/12/2017 00:00:00,30154624,504,"Revenue","Thera East Anglia","Day Care"
"Peterborough","http://opendatacommunities.org/id/unitary-authority/peterborough","Peterborough City Council","Communities","Housing","Services",06/12/2017 00:00:00,30154641,595.56,"Revenue","DA Rosalia Hotel","Homelessness Bed & Breakfast Costs"
"Peterborough","http://opendatacommunities.org/id/unitary-authority/peterborough","Peterborough City Council","Communities","Housing","Services",06/12/2017 00:00:00,30154642,553.02,"Revenue","DA Rosalia Hotel","Homelessness Bed & Breakfast Costs"
"Peterborough","http://opendatacommunities.org/id/unitary-authority/peterborough","Peterborough City Council","Communities","Housing","Services",06/12/2017 00:00:00,30154643,1834.56,"Revenue","DA Rosalia Hotel","Homelessness Bed & Breakfast Costs"
"Peterborough","http://opendatacommunities.org/id/unitary-authority/peterborough","Peterborough City Council","Communities","Housing","Services",06/12/2017 00:00:00,30154644,595.56,"Revenue","DA Rosalia Hotel","Homelessness Bed & Breakfast Costs"
"Peterborough","http://opendatacommunities.org/id/unitary-authority/peterborough","Peterborough City Council","Communities","Housing","Services",06/12/2017 00:00:00,30154645,595.56,"Revenue","DA Rosalia Hotel","Homelessness Bed & Breakfast Costs"
"Peterborough","http://opendatacommunities.org/id/unitary-authority/peterborough","Peterborough City Council","Communities","Housing","Services",06/12/2017 00:00:00,30154646,714.56,"Revenue","DA Rosalia Hotel","Homelessness Bed & Breakfast Costs"
"Peterborough","http://opendatacommunities.org/id/unitary-authority/peterborough","Peterborough City Council","Communities","Housing","Services",06/12/2017 00:00:00,30154647,1120,"Revenue","DA Rosalia Hotel","Homelessness Bed & Breakfast Costs"
"Peterborough","http://opendatacommunities.org/id/unitary-authority/peterborough","Peterborough City Council","Communities","Housing","Services",06/12/2017 00:00:00,30154648,1120,"Revenue","DA Rosalia Hotel","Homelessness Bed & Breakfast Costs"
"Peterborough","http://opendatacommunities.org/id/unitary-authority/peterborough","Peterborough City Council","Communities","Housing","Services",06/12/2017 00:00:00,30154649,595.56,"Revenue","DA Rosalia Hotel","Homelessness Bed & Breakfast Costs"
"Peterborough","http://opendatacommunities.org/id/unitary-authority/peterborough","Peterborough City Council","Communities","Housing","Services",06/12/2017 00:00:00,30154650,916.7,"Revenue","DA Rosalia Hotel","Homelessness Bed & Breakfast Costs"
"Peterborough","http://opendatacommunities.org/id/unitary-authority/peterborough","Peterborough City Council","Communities","Housing","Services",06/12/2017 00:00:00,30154651,595.56,"Revenue","DA Rosalia Hotel","Homelessness Bed & Breakfast Costs"
"Peterborough","http://opendatacommunities.org/id/unitary-authority/peterborough","Peterborough City Council","Communities","Housing","Services",06/12/2017 00:00:00,30154653,714.56,"Revenue","DA Rosalia Hotel","Homelessness Bed & Breakfast Costs"
"Peterborough","http://opendatacommunities.org/id/unitary-authority/peterborough","Peterborough City Council","Communities","Housing","Services",06/12/2017 00:00:00,30154654,595.56,"Revenue","DA Rosalia Hotel","Homelessness Bed & Breakfast Costs"
"Peterborough","http://opendatacommunities.org/id/unitary-authority/peterborough","Peterborough City Council","Communities","Housing","Services",06/12/2017 00:00:00,30154655,714.56,"Revenue","DA Rosalia Hotel","Homelessness Bed & Breakfast Costs"
"Peterborough","http://opendatacommunities.org/id/unitary-authority/peterborough","Peterborough City Council","Communities","Housing","Services",06/12/2017 00:00:00,30154656,714.56,"Revenue","DA Rosalia Hotel","Homelessness Bed & Breakfast Costs"
"Peterborough","http://opendatacommunities.org/id/unitary-authority/peterborough","Peterborough City Council","Communities","Housing","Services",06/12/2017 00:00:00,30154657,1310.12,"Revenue","DA Rosalia Hotel","Homelessness Bed & Breakfast Costs"
"Peterborough","http://opendatacommunities.org/id/unitary-authority/peterborough","Peterborough City Council","Communities","Housing","Services",06/12/2017 00:00:00,30154658,524.44,"Revenue","DA Rosalia Hotel","Homelessness Bed & Breakfast Costs"
"Peterborough","http://opendatacommunities.org/id/unitary-authority/peterborough","Peterborough City Council","Communities","Housing","Services",06/12/2017 00:00:00,30154659,595.56,"Revenue","DA Rosalia Hotel","Homelessness Bed & Breakfast Costs"
"Peterborough","http://opendatacommunities.org/id/unitary-authority/peterborough","Peterborough City Council","Communities","Housing","Services",06/12/2017 00:00:00,30154660,595.56,"Revenue","DA Rosalia Hotel","Homelessness Bed & Breakfast Costs"
"Peterborough","http://opendatacommunities.org/id/unitary-authority/peterborough","Peterborough City Council","Communities","Housing","Services",06/12/2017 00:00:00,30154661,714.56,"Revenue","DA Rosalia Hotel","Homelessness Bed & Breakfast Costs"
"Peterborough","http://opendatacommunities.org/id/unitary-authority/peterborough","Peterborough City Council","Communities","Housing","Services",06/12/2017 00:00:00,30154662,714.56,"Revenue","DA Rosalia Hotel","Homelessness Bed & Breakfast Costs"
"Peterborough","http://opendatacommunities.org/id/unitary-authority/peterborough","Peterborough City Council","Communities","Housing","Services",06/12/2017 00:00:00,30154663,595.56,"Revenue","DA Rosalia Hotel","Homelessness Bed & Breakfast Costs"
"Peterborough","http://opendatacommunities.org/id/unitary-authority/peterborough","Peterborough City Council","Communities","Housing","Services",06/12/2017 00:00:00,30154664,595.56,"Revenue","DA Rosalia Hotel","Homelessness Bed & Breakfast Costs"
"Peterborough","http://opendatacommunities.org/id/unitary-authority/peterborough","Peterborough City Council","Communities","Housing","Services",06/12/2017 00:00:00,30154665,816.62,"Revenue","DA Rosalia Hotel","Homelessness Bed & Breakfast Costs"
"Peterborough","http://opendatacommunities.org/id/unitary-authority/peterborough","Peterborough City Council","Communities","Housing","Services",06/12/2017 00:00:00,30154666,816.62,"Revenue","DA Rosalia Hotel","Homelessness Bed & Breakfast Costs"
"Peterborough","http://opendatacommunities.org/id/unitary-authority/peterborough","Peterborough City Council","Communities","Housing","Services",06/12/2017 00:00:00,30154667,816.62,"Revenue","DA Rosalia Hotel","Homelessness Bed & Breakfast Costs"
"Peterborough","http://opendatacommunities.org/id/unitary-authority/peterborough","Peterborough City Council","Communities","Housing","Services",06/12/2017 00:00:00,30154668,595.56,"Revenue","DA Rosalia Hotel","Homelessness Bed & Breakfast Costs"
"Peterborough","http://opendatacommunities.org/id/unitary-authority/peterborough","Peterborough City Council","Communities","Housing","Services",06/12/2017 00:00:00,30154669,595.56,"Revenue","DA Rosalia Hotel","Homelessness Bed & Breakfast Costs"
"Peterborough","http://opendatacommunities.org/id/unitary-authority/peterborough","Peterborough City Council","Communities","Housing","Services",06/12/2017 00:00:00,30154670,714.56,"Revenue","DA Rosalia Hotel","Homelessness Bed & Breakfast Costs"
"Peterborough","http://opendatacommunities.org/id/unitary-authority/peterborough","Peterborough City Council","Adults","Independent Sector Placements","Services",06/12/2017 00:00:00,30154676,2440,"Revenue","Thera East Anglia","Day Care"
"Peterborough","http://opendatacommunities.org/id/unitary-authority/peterborough","Peterborough City Council","Adults","Independent Sector Placements","Services",06/12/2017 00:00:00,30154677,504,"Revenue","Thera East Anglia","Day Care"
"Peterborough","http://opendatacommunities.org/id/unitary-authority/peterborough","Peterborough City Council","Adults","Independent Sector Placements","Services",06/12/2017 00:00:00,30154678,1952,"Revenue","Thera East Anglia","Day Care"
"Peterborough","http://opendatacommunities.org/id/unitary-authority/peterborough","Peterborough City Council","Adults","Independent Sector Placements","Services",06/12/2017 00:00:00,30154679,549,"Revenue","Thera East Anglia","Day Care"
"Peterborough","http://opendatacommunities.org/id/unitary-authority/peterborough","Peterborough City Council","Adults","Independent Sector Placements","Services",06/12/2017 00:00:00,30154680,860,"Revenue","Thera East Anglia","Day Care"
"Peterborough","http://opendatacommunities.org/id/unitary-authority/peterborough","Peterborough City Council","Adults","Independent Sector Placements","Services",06/12/2017 00:00:00,30154681,1260,"Revenue","Thera East Anglia","Day Care"
"Peterborough","http://opendatacommunities.org/id/unitary-authority/peterborough","Peterborough City Council","Adults","Independent Sector Placements","Services",06/12/2017 00:00:00,30154682,688,"Revenue","Thera East Anglia","Day Care"
"Peterborough","http://opendatacommunities.org/id/unitary-authority/peterborough","Peterborough City Council","Adults","Independent Sector Placements","Services",06/12/2017 00:00:00,30154683,2440,"Revenue","Thera East Anglia","Day Care"
"Peterborough","http://opendatacommunities.org/id/unitary-authority/peterborough","Peterborough City Council","Adults","Independent Sector Placements","Services",06/12/2017 00:00:00,30154717,2440,"Revenue","Thera East Anglia","Day Care"
"Peterborough","http://opendatacommunities.org/id/unitary-authority/peterborough","Peterborough City Council","Adults","Independent Sector Placements","Services",06/12/2017 00:00:00,30154718,3515,"Revenue","Thera East Anglia","Day Care"
"Peterborough","http://opendatacommunities.org/id/unitary-authority/peterborough","Peterborough City Council","Adults","Independent Sector Placements","Services",06/12/2017 00:00:00,30154719,2440,"Revenue","Thera East Anglia","Day Care"
"Peterborough","http://opendatacommunities.org/id/unitary-authority/peterborough","Peterborough City Council","Adults","Independent Sector Placements","Services",06/12/2017 00:00:00,30154721,1464,"Revenue","Thera East Anglia","Day Care"
"Peterborough","http://opendatacommunities.org/id/unitary-authority/peterborough","Peterborough City Council","Adults","Independent Sector Placements","Services",06/12/2017 00:00:00,30154741,860,"Revenue","Thera East Anglia","Day Care"
"Peterborough","http://opendatacommunities.org/id/unitary-authority/peterborough","Peterborough City Council","Adults","Independent Sector Placements","Services",06/12/2017 00:00:00,30154742,2440,"Revenue","Thera East Anglia","Day Care"
"Peterborough","http://opendatacommunities.org/id/unitary-authority/peterborough","Peterborough City Council","Adults","Independent Sector Placements","Services",06/12/2017 00:00:00,30154744,1260,"Revenue","Thera East Anglia","Day Care"
"Peterborough","http://opendatacommunities.org/id/unitary-authority/peterborough","Peterborough City Council","Adults","Independent Sector Placements","Services",06/12/2017 00:00:00,30154745,1008,"Revenue","Thera East Anglia","Day Care"
"Peterborough","http://opendatacommunities.org/id/unitary-authority/peterborough","Peterborough City Council","Adults","Independent Sector Placements","Services",06/12/2017 00:00:00,30154746,1260,"Revenue","Thera East Anglia","Day Care"
"Peterborough","http://opendatacommunities.org/id/unitary-authority/peterborough","Peterborough City Council","Adults","Independent Sector Placements","Services",06/12/2017 00:00:00,30154747,2440,"Revenue","Thera East Anglia","Day Care"
"Peterborough","http://opendatacommunities.org/id/unitary-authority/peterborough","Peterborough City Council","Children's & Safeguarding","External Education Placements","Services",06/12/2017 00:00:00,30154750,18454.29,"Revenue","Blue Mountain Homes","Boarding Out Allowances"
"Peterborough","http://opendatacommunities.org/id/unitary-authority/peterborough","Peterborough City Council","Adults","Day opportunities - Older People","Agency Staff",06/12/2017 00:00:00,30154765,5061.6,"Revenue","Commercial Services Trading Limited","External Temporary Staff"
"Peterborough","http://opendatacommunities.org/id/unitary-authority/peterborough","Peterborough City Council","Westcombe Engineering","Westcombe Engineering","Tools, Equipment, Furniture & Materials",06/12/2017 00:00:00,30154766,1975,"Revenue","RMS Engineers LTD","Equipment Repairs"
"Peterborough","http://opendatacommunities.org/id/unitary-authority/peterborough","Peterborough City Council","Children's & Safeguarding","Commissioning - CSC","Services",06/12/2017 00:00:00,30154800,1709.87,"Revenue","K2 CARE LTD","Purchased Social Care Services"
"Peterborough","http://opendatacommunities.org/id/unitary-authority/peterborough","Peterborough City Council","Legal & Democratic","Legal Services","Services",06/12/2017 00:00:00,30154860,550,"Revenue","Sleight, Mr Nigel","Legal Costs"
"Peterborough","http://opendatacommunities.org/id/unitary-authority/peterborough","Peterborough City Council","Adults","Independent Sector Placements","Contract Hire and Operating Leases",06/12/2017 00:00:00,30154881,513.4,"Revenue","Peterborough Cars","Hired Transport"
"Peterborough","http://opendatacommunities.org/id/unitary-authority/peterborough","Peterborough City Council","Communities","Parking","Services",06/12/2017 00:00:00,30154883,600,"Revenue","Allison, Ms Caroline","Legal Costs"
"Peterborough","http://opendatacommunities.org/id/unitary-authority/peterborough","Peterborough City Council","Corporate","Corporate","Non Revenue",06/12/2017 00:00:00,30154930,1495,"Capital","Dolphin Mobility East Midlands Ltd","Grant Payment"
"Peterborough","http://opendatacommunities.org/id/unitary-authority/peterborough","Peterborough City Council","Corporate","Corporate","Non Revenue",06/12/2017 00:00:00,30154978,3913,"Capital","Casbon Building Services","Grant Payment"
"Peterborough","http://opendatacommunities.org/id/unitary-authority/peterborough","Peterborough City Council","Corporate","Corporate","Non Revenue",06/12/2017 00:00:00,30155040,3903,"Capital","Casbon Building Services","Grant Payment"
"Peterborough","http://opendatacommunities.org/id/unitary-authority/peterborough","Peterborough City Council","Peterborough Highway Services","Transport & Infrastructure Commissioning","Services",06/12/2017 00:00:00,30155088,7712.61,"Revenue","Stagecoach in Peterborough","Contractors"
"Peterborough","http://opendatacommunities.org/id/unitary-authority/peterborough","Peterborough City Council","Education","Special Educational Needs / Inclusion","Services",06/12/2017 00:00:00,30155138,660.28,"Revenue","Children's Therapy Solutions Ltd","Occupational Health"
"Peterborough","http://opendatacommunities.org/id/unitary-authority/peterborough","Peterborough City Council","Education","Special Educational Needs / Inclusion","Services",06/12/2017 00:00:00,30155139,621.04,"Revenue","Children's Therapy Solutions Ltd","Occupational Health"
"Peterborough","http://opendatacommunities.org/id/unitary-authority/peterborough","Peterborough City Council","Westcombe Engineering","Westcombe Engineering","Tools, Equipment, Furniture & Materials",06/12/2017 00:00:00,30155353,756.2,"Revenue","Brammer","Items For Resale"
"Peterborough","http://opendatacommunities.org/id/unitary-authority/peterborough","Peterborough City Council","Peterborough Highway Services","Transport & Infrastructure Commissioning","Services",06/12/2017 00:00:00,30155426,185197.99,"Revenue","Stagecoach in Peterborough","Contractors"
"Peterborough","http://opendatacommunities.org/id/unitary-authority/peterborough","Peterborough City Council","Peterborough Highway Services","Transport & Infrastructure Commissioning","Services",06/12/2017 00:00:00,30155428,651.35,"Revenue","Diamond Coaches","Contractors"
"Peterborough","http://opendatacommunities.org/id/unitary-authority/peterborough","Peterborough City Council","Westcombe Engineering","Westcombe Engineering","Tools, Equipment, Furniture & Materials",06/12/2017 00:00:00,30155486,811.44,"Revenue","Eaton Ltd","Items For Resale"
"Peterborough","http://opendatacommunities.org/id/unitary-authority/peterborough","Peterborough City Council","Legal & Democratic","Legal Services","Agency Staff",06/12/2017 00:00:00,30155582,854.4,"Revenue","Reed Specialist Recruitment Limited","External Temporary Staff"
"Peterborough","http://opendatacommunities.org/id/unitary-authority/peterborough","Peterborough City Council","Development and Construction","Development Management","Agency Staff",06/12/2017 00:00:00,30155583,1000.21,"Revenue","Reed Specialist Recruitment Limited","External Temporary Staff"
"Peterborough","http://opendatacommunities.org/id/unitary-authority/peterborough","Peterborough City Council","Children's & Safeguarding","Early Help ASC/CSC","Agency Staff",06/12/2017 00:00:00,30155585,528.88,"Revenue","Reed Specialist Recruitment Limited","External Temporary Staff"
"Peterborough","http://opendatacommunities.org/id/unitary-authority/peterborough","Peterborough City Council","Development and Construction","Development Management","Agency Staff",06/12/2017 00:00:00,30155587,1170,"Revenue","Reed Specialist Recruitment Limited","External Temporary Staff"
"Peterborough","http://opendatacommunities.org/id/unitary-authority/peterborough","Peterborough City Council","Commissioning and Commercial Operations","Commissioning Team","Agency Staff",06/12/2017 00:00:00,30155588,1808.35,"Revenue","Reed Specialist Recruitment Limited","External Temporary Staff"
"Peterborough","http://opendatacommunities.org/id/unitary-authority/peterborough","Peterborough City Council","Legal & Democratic","Legal Services","Agency Staff",06/12/2017 00:00:00,30155590,1386.53,"Revenue","Reed Specialist Recruitment Limited","External Temporary Staff"
"Peterborough","http://opendatacommunities.org/id/unitary-authority/peterborough","Peterborough City Council","Corporate","Corporate","Non Revenue",06/12/2017 00:00:00,30155591,2583.6,"Capital","Reed Specialist Recruitment Limited","Consultants Fees"
"Peterborough","http://opendatacommunities.org/id/unitary-authority/peterborough","Peterborough City Council","Cemeteries, Cremation & Registrars","Registration Service","Rents",06/12/2017 00:00:00,30155596,11469,"Revenue","The Lawns(Peterborough) Ltd","Rent"
"Peterborough","http://opendatacommunities.org/id/unitary-authority/peterborough","Peterborough City Council","Cemeteries, Cremation & Registrars","Registration Service","Repair & Maintenance of Buildings",06/12/2017 00:00:00,30155597,2950,"Revenue","The Lawns(Peterborough) Ltd","Service Charges - Premises"
"Peterborough","http://opendatacommunities.org/id/unitary-authority/peterborough","Peterborough City Council","Adults","Finance","Agency Staff",06/12/2017 00:00:00,30155601,1308.42,"Revenue","Reed Specialist Recruitment Limited","External Temporary Staff"
"Peterborough","http://opendatacommunities.org/id/unitary-authority/peterborough","Peterborough City Council","Legal & Democratic","Legal Services","Agency Staff",06/12/2017 00:00:00,30155602,2025.38,"Revenue","Reed Specialist Recruitment Limited","External Temporary Staff"
"Peterborough","http://opendatacommunities.org/id/unitary-authority/peterborough","Peterborough City Council","Commissioning and Commercial Operations","Commissioning Team","Agency Staff",06/12/2017 00:00:00,30155603,2243.6,"Revenue","Reed Specialist Recruitment Limited","External Temporary Staff"
"Peterborough","http://opendatacommunities.org/id/unitary-authority/peterborough","Peterborough City Council","Financial Services","Finance","Agency Staff",06/12/2017 00:00:00,30155604,646.76,"Revenue","Reed Specialist Recruitment Limited","External Temporary Staff"
"Peterborough","http://opendatacommunities.org/id/unitary-authority/peterborough","Peterborough City Council","Adults","Finance","Agency Staff",06/12/2017 00:00:00,30155605,2433.6,"Revenue","Reed Specialist Recruitment Limited","External Temporary Staff"
"Peterborough","http://opendatacommunities.org/id/unitary-authority/peterborough","Peterborough City Council","City Servs & Communications","Regulatory Services","Agency Staff",06/12/2017 00:00:00,30155611,1209.53,"Revenue","Reed Specialist Recruitment Limited","External Temporary Staff"
"Peterborough","http://opendatacommunities.org/id/unitary-authority/peterborough","Peterborough City Council","City Servs & Communications","Markets, Tourism & Events","Rents",06/12/2017 00:00:00,30155649,1834.47,"Revenue","Jones Lang LaSalle","Rent"
"Peterborough","http://opendatacommunities.org/id/unitary-authority/peterborough","Peterborough City Council","Commissioning and Commercial Operations","Early Years & Quality Improvement","Rents",06/12/2017 00:00:00,30155666,560,"Revenue","Italian Community Association","Hire of Premises"
"Peterborough","http://opendatacommunities.org/id/unitary-authority/peterborough","Peterborough City Council","Corporate","Corporate","Non Revenue",06/12/2017 00:00:00,30155682,3382.5,"Capital","NPS Peterborough Ltd","Consultants Fees"
"Peterborough","http://opendatacommunities.org/id/unitary-authority/peterborough","Peterborough City Council","Commissioning and Commercial Operations","Early Years & Quality Improvement","Services",06/12/2017 00:00:00,30155699,910,"Revenue","Orton Longueville Playgroup","Grant Payment"
"Peterborough","http://opendatacommunities.org/id/unitary-authority/peterborough","Peterborough City Council","Commissioning and Commercial Operations","Early Years & Quality Improvement","Services",06/12/2017 00:00:00,30155702,546,"Revenue","Busy Bunnies Braybrook","Grant Payment"
"Peterborough","http://opendatacommunities.org/id/unitary-authority/peterborough","Peterborough City Council","Commissioning and Commercial Operations","Early Years & Quality Improvement","Services",06/12/2017 00:00:00,30155703,910,"Revenue","Herlington Pre-School","Grant Payment"
"Peterborough","http://opendatacommunities.org/id/unitary-authority/peterborough","Peterborough City Council","Commissioning and Commercial Operations","Early Years & Quality Improvement","Services",06/12/2017 00:00:00,30155706,546,"Revenue","Anna-Ca-Soo Day Nursery","Grant Payment"
"Peterborough","http://opendatacommunities.org/id/unitary-authority/peterborough","Peterborough City Council","Communities","Targeted Youth Service","Services",06/12/2017 00:00:00,30155734,5340,"Revenue","Peterborough Open Awards Centre CIC","Programmes"
"Peterborough","http://opendatacommunities.org/id/unitary-authority/peterborough","Peterborough City Council","Education","Special Educational Needs / Inclusion","Services",06/12/2017 00:00:00,30155744,6762.6,"Revenue","Sonova UK Ltd","Education Expenses"
"Peterborough","http://opendatacommunities.org/id/unitary-authority/peterborough","Peterborough City Council","Children's & Safeguarding","External Education Placements","Services",06/12/2017 00:00:00,30155775,15000,"Revenue","Barford Children's Services","Boarding Out Allowances"
"Peterborough","http://opendatacommunities.org/id/unitary-authority/peterborough","Peterborough City Council","Communities","Housing","Services",06/12/2017 00:00:00,30155807,625,"Revenue","Record Property Solutions","Financial Assistance"
"Peterborough","http://opendatacommunities.org/id/unitary-authority/peterborough","Peterborough City Council","Children's & Safeguarding","External Education Placements","Services",06/12/2017 00:00:00,30155808,15000,"Revenue","Barford Children's Services","Boarding Out Allowances"
"Peterborough","http://opendatacommunities.org/id/unitary-authority/peterborough","Peterborough City Council","Children's & Safeguarding","External Education Placements","Services",06/12/2017 00:00:00,30155809,16285.71,"Revenue","Barford Children's Services","Boarding Out Allowances"
"Peterborough","http://opendatacommunities.org/id/unitary-authority/peterborough","Peterborough City Council","Adults","Independent Sector Placements","Services",06/12/2017 00:00:00,30155989,873.28,"Revenue","Maxey House Res Home","Residential Care"
"Peterborough","http://opendatacommunities.org/id/unitary-authority/peterborough","Peterborough City Council","Adults","Independent Sector Placements","Services",06/12/2017 00:00:00,30156079,46296.6,"Revenue","Turning Point Services Ltd","Residential Care"
"Peterborough","http://opendatacommunities.org/id/unitary-authority/peterborough","Peterborough City Council","Adults","Independent Sector Placements","Services",06/12/2017 00:00:00,30156080,51650.1,"Revenue","Turning Point Services Ltd","Residential Care"
"Peterborough","http://opendatacommunities.org/id/unitary-authority/peterborough","Peterborough City Council","Adults","Independent Sector Placements","Services",06/12/2017 00:00:00,30156081,38085.3,"Revenue","Turning Point Services Ltd","Residential Care"
"Peterborough","http://opendatacommunities.org/id/unitary-authority/peterborough","Peterborough City Council","Adults","Independent Sector Placements","Services",06/12/2017 00:00:00,30156082,42264,"Revenue","Turning Point Services Ltd","Residential Care"
"Peterborough","http://opendatacommunities.org/id/unitary-authority/peterborough","Peterborough City Council","Adults","Independent Sector Placements","Services",06/12/2017 00:00:00,30156083,37963.8,"Revenue","Turning Point Services Ltd","Residential Care"
"Peterborough","http://opendatacommunities.org/id/unitary-authority/peterborough","Peterborough City Council","Adults","Independent Sector Placements","Services",06/12/2017 00:00:00,30156084,46254.6,"Revenue","Turning Point Services Ltd","Residential Care"
"Peterborough","http://opendatacommunities.org/id/unitary-authority/peterborough","Peterborough City Council","Adults","Independent Sector Placements","Services",06/12/2017 00:00:00,30156096,124887,"Revenue","Turning Point Services Ltd","Residential Care"
"Peterborough","http://opendatacommunities.org/id/unitary-authority/peterborough","Peterborough City Council","Adults","Independent Sector Placements","Services",06/12/2017 00:00:00,30156097,40873.2,"Revenue","Turning Point Services Ltd","Residential Care"
"Peterborough","http://opendatacommunities.org/id/unitary-authority/peterborough","Peterborough City Council","Adults","Independent Sector Placements","Services",06/12/2017 00:00:00,30156098,30762.3,"Revenue","Turning Point Services Ltd","Residential Care"
"Peterborough","http://opendatacommunities.org/id/unitary-authority/peterborough","Peterborough City Council","Adults","Independent Sector Placements","Services",06/12/2017 00:00:00,30156102,87244.5,"Revenue","Turning Point Services Ltd","Residential Care"
"Peterborough","http://opendatacommunities.org/id/unitary-authority/peterborough","Peterborough City Council","Adults","Independent Sector Placements","Services",06/12/2017 00:00:00,30156104,52043.1,"Revenue","Turning Point Services Ltd","Residential Care"
"Peterborough","http://opendatacommunities.org/id/unitary-authority/peterborough","Peterborough City Council","Adults","Independent Sector Placements","Services",06/12/2017 00:00:00,30156105,35084.7,"Revenue","Turning Point Services Ltd","Residential Care"
"Peterborough","http://opendatacommunities.org/id/unitary-authority/peterborough","Peterborough City Council","Adults","Independent Sector Placements","Services",06/12/2017 00:00:00,30156107,37846.5,"Revenue","Turning Point Services Ltd","Residential Care"
"Peterborough","http://opendatacommunities.org/id/unitary-authority/peterborough","Peterborough City Council","Adults","Independent Sector Placements","Services",06/12/2017 00:00:00,30156110,48554.1,"Revenue","Turning Point Services Ltd","Residential Care"
"Peterborough","http://opendatacommunities.org/id/unitary-authority/peterborough","Peterborough City Council","Adults","Independent Sector Placements","Services",06/12/2017 00:00:00,30156112,42264,"Revenue","Turning Point Services Ltd","Residential Care"
"Peterborough","http://opendatacommunities.org/id/unitary-authority/peterborough","Peterborough City Council","Adults","Independent Sector Placements","Services",06/12/2017 00:00:00,30156118,48554.1,"Revenue","Turning Point Services Ltd","Residential Care"
"Peterborough","http://opendatacommunities.org/id/unitary-authority/peterborough","Peterborough City Council","Communities","Housing","Services",06/12/2017 00:00:00,30156239,816,"Revenue","Property 77","Financial Assistance"
"Peterborough","http://opendatacommunities.org/id/unitary-authority/peterborough","Peterborough City Council","Commissioning and Commercial Operations","Early Years & Quality Improvement","Services",06/12/2017 00:00:00,30156240,1365,"Revenue","Paston & Gunthorpe Pre-School","Grant Payment"
"Peterborough","http://opendatacommunities.org/id/unitary-authority/peterborough","Peterborough City Council","Legal & Democratic","Legal Services","Agency Staff",06/12/2017 00:00:00,30156280,-1960.42,"Revenue","Venn Group Ltd","External Temporary Staff"
"Peterborough","http://opendatacommunities.org/id/unitary-authority/peterborough","Peterborough City Council","City Servs & Communications","Markets, Tourism & Events","Services",06/12/2017 00:00:00,30156292,1499.43,"Revenue","Vivacity Culture and Leisure","Conferences/Events"
"Peterborough","http://opendatacommunities.org/id/unitary-authority/peterborough","Peterborough City Council","Communities","Housing","Services",06/12/2017 00:00:00,30156294,595.56,"Revenue","DA Rosalia Hotel","Homelessness Bed & Breakfast Costs"
"Peterborough","http://opendatacommunities.org/id/unitary-authority/peterborough","Peterborough City Council","Communities","Housing","Services",06/12/2017 00:00:00,30156297,933.38,"Revenue","DA Rosalia Hotel","Homelessness Bed & Breakfast Costs"
"Peterborough","http://opendatacommunities.org/id/unitary-authority/peterborough","Peterborough City Council","Communities","Housing","Services",06/12/2017 00:00:00,30156301,510.48,"Revenue","DA Rosalia Hotel","Homelessness Bed & Breakfast Costs"
"Peterborough","http://opendatacommunities.org/id/unitary-authority/peterborough","Peterborough City Council","Communities","Housing","Services",06/12/2017 00:00:00,30156305,816.62,"Revenue","DA Rosalia Hotel","Homelessness Bed & Breakfast Costs"
"Peterborough","http://opendatacommunities.org/id/unitary-authority/peterborough","Peterborough City Council","Communities","Housing","Services",06/12/2017 00:00:00,30156307,714.56,"Revenue","DA Rosalia Hotel","Homelessness Bed & Breakfast Costs"
"Peterborough","http://opendatacommunities.org/id/unitary-authority/peterborough","Peterborough City Council","Communities","Housing","Services",06/12/2017 00:00:00,30156310,714.56,"Revenue","DA Rosalia Hotel","Homelessness Bed & Breakfast Costs"
"Peterborough","http://opendatacommunities.org/id/unitary-authority/peterborough","Peterborough City Council","Communities","Housing","Services",06/12/2017 00:00:00,30156312,816.62,"Revenue","DA Rosalia Hotel","Homelessness Bed & Breakfast Costs"
"Peterborough","http://opendatacommunities.org/id/unitary-authority/peterborough","Peterborough City Council","Communities","Housing","Services",06/12/2017 00:00:00,30156321,1310.12,"Revenue","DA Rosalia Hotel","Homelessness Bed & Breakfast Costs"
"Peterborough","http://opendatacommunities.org/id/unitary-authority/peterborough","Peterborough City Council","Communities","Housing","Services",06/12/2017 00:00:00,30156323,816.62,"Revenue","DA Rosalia Hotel","Homelessness Bed & Breakfast Costs"
"Peterborough","http://opendatacommunities.org/id/unitary-authority/peterborough","Peterborough City Council","Development and Construction","Development Management","Agency Staff",06/12/2017 00:00:00,30156535,1000.21,"Revenue","Reed Specialist Recruitment Limited","External Temporary Staff"
"Peterborough","http://opendatacommunities.org/id/unitary-authority/peterborough","Peterborough City Council","Children's & Safeguarding","Early Help ASC/CSC","Agency Staff",06/12/2017 00:00:00,30156542,539.55,"Revenue","Reed Specialist Recruitment Limited","External Temporary Staff"
"Peterborough","http://opendatacommunities.org/id/unitary-authority/peterborough","Peterborough City Council","Commissioning and Commercial Operations","Commissioning Team","Agency Staff",06/12/2017 00:00:00,30156545,1808.35,"Revenue","Reed Specialist Recruitment Limited","External Temporary Staff"
"Peterborough","http://opendatacommunities.org/id/unitary-authority/peterborough","Peterborough City Council","Development and Construction","Development Management","Agency Staff",06/12/2017 00:00:00,30156554,1161.88,"Revenue","Reed Specialist Recruitment Limited","External Temporary Staff"
"Peterborough","http://opendatacommunities.org/id/unitary-authority/peterborough","Peterborough City Council","Adults","Finance","Agency Staff",06/12/2017 00:00:00,30156561,2433.6,"Revenue","Reed Specialist Recruitment Limited","External Temporary Staff"
"Peterborough","http://opendatacommunities.org/id/unitary-authority/peterborough","Peterborough City Council","Peterborough Highway Services","Highway Services - HoS","Agency Staff",06/12/2017 00:00:00,30156563,849.46,"Revenue","Reed Specialist Recruitment Limited","External Temporary Staff"
"Peterborough","http://opendatacommunities.org/id/unitary-authority/peterborough","Peterborough City Council","Commissioning and Commercial Operations","Commissioning Team","Agency Staff",06/12/2017 00:00:00,30156568,2243.6,"Revenue","Reed Specialist Recruitment Limited","External Temporary Staff"
"Peterborough","http://opendatacommunities.org/id/unitary-authority/peterborough","Peterborough City Council","Adults","Finance","Agency Staff",06/12/2017 00:00:00,30156570,1308.42,"Revenue","Reed Specialist Recruitment Limited","External Temporary Staff"
"Peterborough","http://opendatacommunities.org/id/unitary-authority/peterborough","Peterborough City Council","Cemeteries, Cremation & Registrars","Bereavement Service","Repair & Maintenance of Buildings",06/12/2017 00:00:00,30156586,1596.18,"Revenue","Facultatieve Technologies Ltd","Cremators"
"Peterborough","http://opendatacommunities.org/id/unitary-authority/peterborough","Peterborough City Council","Adults","Independent Sector Placements","Services",06/12/2017 00:00:00,30156647,-102684.66,"Revenue","Turning Point Services Ltd","Residential Care"
"Peterborough","http://opendatacommunities.org/id/unitary-authority/peterborough","Peterborough City Council","Adults","Independent Sector Placements","Services",06/12/2017 00:00:00,30156648,-124425.68,"Revenue","Turning Point Services Ltd","Residential Care"
"Peterborough","http://opendatacommunities.org/id/unitary-authority/peterborough","Peterborough City Council","Adults","Independent Sector Placements","Services",06/12/2017 00:00:00,30156649,-4812.15,"Revenue","Turning Point Services Ltd","Residential Care"
"Peterborough","http://opendatacommunities.org/id/unitary-authority/peterborough","Peterborough City Council","Adults","Independent Sector Placements","Services",06/12/2017 00:00:00,30156650,-102684.66,"Revenue","Turning Point Services Ltd","Residential Care"
"Peterborough","http://opendatacommunities.org/id/unitary-authority/peterborough","Peterborough City Council","Adults","Independent Sector Placements","Services",06/12/2017 00:00:00,30156651,-119613.53,"Revenue","Turning Point Services Ltd","Residential Care"
"Peterborough","http://opendatacommunities.org/id/unitary-authority/peterborough","Peterborough City Council","Adults","Independent Sector Placements","Services",06/12/2017 00:00:00,30156652,-102684.66,"Revenue","Turning Point Services Ltd","Residential Care"
"Peterborough","http://opendatacommunities.org/id/unitary-authority/peterborough","Peterborough City Council","Adults","Independent Sector Placements","Services",06/12/2017 00:00:00,30156667,10313.02,"Revenue","Country Court Care Homes Ltd (St Johns)","Residential Care"
"Peterborough","http://opendatacommunities.org/id/unitary-authority/peterborough","Peterborough City Council","Adults","Independent Sector Placements","Services",06/12/2017 00:00:00,30156668,1652,"Revenue","K2 CARE LTD","Home Care"
"Peterborough","http://opendatacommunities.org/id/unitary-authority/peterborough","Peterborough City Council","Adults","Independent Sector Placements","Services",06/12/2017 00:00:00,30156670,973,"Revenue","Sahara Community Care Services","Home Care"
"Peterborough","http://opendatacommunities.org/id/unitary-authority/peterborough","Peterborough City Council","Adults","Independent Sector Placements","Services",06/12/2017 00:00:00,30156672,854,"Revenue","Sahara Community Care Services","Home Care"
"Peterborough","http://opendatacommunities.org/id/unitary-authority/peterborough","Peterborough City Council","Adults","Independent Sector Placements","Services",06/12/2017 00:00:00,30156674,1206.33,"Revenue","Sahara Community Care Services","Home Care"
"Peterborough","http://opendatacommunities.org/id/unitary-authority/peterborough","Peterborough City Council","Adults","Independent Sector Placements","Services",06/12/2017 00:00:00,30156681,896,"Revenue","Sahara Community Care Services","Home Care"
"Peterborough","http://opendatacommunities.org/id/unitary-authority/peterborough","Peterborough City Council","Adults","Independent Sector Placements","Services",06/12/2017 00:00:00,30156683,861,"Revenue","Sahara Community Care Services","Home Care"
"Peterborough","http://opendatacommunities.org/id/unitary-authority/peterborough","Peterborough City Council","Adults","Independent Sector Placements","Services",06/12/2017 00:00:00,30156698,749,"Revenue","Sahara Community Care Services","Home Care"
"Peterborough","http://opendatacommunities.org/id/unitary-authority/peterborough","Peterborough City Council","Adults","Independent Sector Placements","Services",06/12/2017 00:00:00,30156699,686,"Revenue","Sahara Community Care Services","Home Care"
"Peterborough","http://opendatacommunities.org/id/unitary-authority/peterborough","Peterborough City Council","Adults","Independent Sector Placements","Services",06/12/2017 00:00:00,30156700,1680,"Revenue","Sahara Community Care Services","Home Care"
"Peterborough","http://opendatacommunities.org/id/unitary-authority/peterborough","Peterborough City Council","Adults","Independent Sector Placements","Services",06/12/2017 00:00:00,30156702,577.5,"Revenue","Sahara Community Care Services","Home Care"
"Peterborough","http://opendatacommunities.org/id/unitary-authority/peterborough","Peterborough City Council","Communities","Housing","Services",06/12/2017 00:00:00,30156754,600,"Revenue","Redacted Personal Information","Financial Assistance"
"Peterborough","http://opendatacommunities.org/id/unitary-authority/peterborough","Peterborough City Council","Education","Schools Finance","Services",06/12/2017 00:00:00,30156761,4371.88,"Revenue","CLEAPSS","Subscriptions"
"Peterborough","http://opendatacommunities.org/id/unitary-authority/peterborough","Peterborough City Council","Adults","Independent Sector Placements","Services",06/12/2017 00:00:00,30156762,1176,"Revenue","Sahara Community Care Services","Home Care"
"Peterborough","http://opendatacommunities.org/id/unitary-authority/peterborough","Peterborough City Council","Adults","Independent Sector Placements","Services",06/12/2017 00:00:00,30156785,882,"Revenue","Sahara Community Care Services","Home Care"
"Peterborough","http://opendatacommunities.org/id/unitary-authority/peterborough","Peterborough City Council","Adults","Independent Sector Placements","Services",06/12/2017 00:00:00,30156786,609,"Revenue","Sahara Community Care Services","Home Care"
"Peterborough","http://opendatacommunities.org/id/unitary-authority/peterborough","Peterborough City Council","Adults","Independent Sector Placements","Services",06/12/2017 00:00:00,30156819,1568,"Revenue","Sahara Community Care Services","Home Care"
"Peterborough","http://opendatacommunities.org/id/unitary-authority/peterborough","Peterborough City Council","Adults","Independent Sector Placements","Services",06/12/2017 00:00:00,30156820,889,"Revenue","Sahara Community Care Services","Home Care"
"Peterborough","http://opendatacommunities.org/id/unitary-authority/peterborough","Peterborough City Council","Adults","Independent Sector Placements","Services",06/12/2017 00:00:00,30156821,1099,"Revenue","Sahara Community Care Services","Home Care"
"Peterborough","http://opendatacommunities.org/id/unitary-authority/peterborough","Peterborough City Council","Corporate","Corporate","Non Revenue",06/12/2017 00:00:00,30156846,1977.62,"Balance Sheet","The Prudential Assurance Company Ltd","Pensions"
"Peterborough","http://opendatacommunities.org/id/unitary-authority/peterborough","Peterborough City Council","Corporate","Corporate","Non Revenue",06/12/2017 00:00:00,30156849,4781.54,"Balance Sheet","The Prudential Assurance Company Ltd","Pensions"
"Peterborough","http://opendatacommunities.org/id/unitary-authority/peterborough","Peterborough City Council","Adults","Mental Capacity Act & DoLs","Services",06/12/2017 00:00:00,30156866,1488.8,"Revenue","Dr Nauman Khalil Ltd","Hired Services"
"Peterborough","http://opendatacommunities.org/id/unitary-authority/peterborough","Peterborough City Council","Corporate","Corporate","Non Revenue",06/12/2017 00:00:00,30156902,10000,"Capital","Kevin Sanders Events","Grant Payment"
"Peterborough","http://opendatacommunities.org/id/unitary-authority/peterborough","Peterborough City Council","Cemeteries, Cremation & Registrars","Bereavement Service","Training Expenses",06/12/2017 00:00:00,30156950,650,"Revenue","Peterborough Regional College","Training"
"Peterborough","http://opendatacommunities.org/id/unitary-authority/peterborough","Peterborough City Council","Adults","Independent Sector Placements","Services",06/12/2017 00:00:00,30156959,2821.4,"Revenue","STAR RESIDENTIAL HOME LTD","Residential Care"
"Peterborough","http://opendatacommunities.org/id/unitary-authority/peterborough","Peterborough City Council","Adults","Independent Sector Placements","Services",06/12/2017 00:00:00,30156960,1768.12,"Revenue","STAR RESIDENTIAL HOME LTD","Residential Care"
"Peterborough","http://opendatacommunities.org/id/unitary-authority/peterborough","Peterborough City Council","Adults","Independent Sector Placements","Services",06/12/2017 00:00:00,30156961,1490.24,"Revenue","STAR RESIDENTIAL HOME LTD","Residential Care"
"Peterborough","http://opendatacommunities.org/id/unitary-authority/peterborough","Peterborough City Council","Adults","Independent Sector Placements","Services",06/12/2017 00:00:00,30156962,2660.72,"Revenue","STAR RESIDENTIAL HOME LTD","Residential Care"
"Peterborough","http://opendatacommunities.org/id/unitary-authority/peterborough","Peterborough City Council","Adults","Independent Sector Placements","Services",06/12/2017 00:00:00,30156963,2821.4,"Revenue","STAR RESIDENTIAL HOME LTD","Residential Care"
"Peterborough","http://opendatacommunities.org/id/unitary-authority/peterborough","Peterborough City Council","Adults","Independent Sector Placements","Services",06/12/2017 00:00:00,30156964,2687.2,"Revenue","STAR RESIDENTIAL HOME LTD","Residential Care"
"Peterborough","http://opendatacommunities.org/id/unitary-authority/peterborough","Peterborough City Council","Corporate","Corporate","Non Revenue",06/12/2017 00:00:00,30156965,4653.28,"Capital","NPS Peterborough Ltd","Consultants Fees"
"Peterborough","http://opendatacommunities.org/id/unitary-authority/peterborough","Peterborough City Council","Adults","Independent Sector Placements","Services",06/12/2017 00:00:00,30156967,2687.2,"Revenue","STAR RESIDENTIAL HOME LTD","Residential Care"
"Peterborough","http://opendatacommunities.org/id/unitary-authority/peterborough","Peterborough City Council","Adults","Independent Sector Placements","Services",06/12/2017 00:00:00,30156968,3048,"Revenue","STAR RESIDENTIAL HOME LTD","Residential Care"
"Peterborough","http://opendatacommunities.org/id/unitary-authority/peterborough","Peterborough City Council","Adults","Independent Sector Placements","Services",06/12/2017 00:00:00,30156969,2600.8,"Revenue","STAR RESIDENTIAL HOME LTD","Residential Care"
"Peterborough","http://opendatacommunities.org/id/unitary-authority/peterborough","Peterborough City Council","Adults","Independent Sector Placements","Services",06/12/2017 00:00:00,30156970,2582.2,"Revenue","STAR RESIDENTIAL HOME LTD","Residential Care"
"Peterborough","http://opendatacommunities.org/id/unitary-authority/peterborough","Peterborough City Council","Adults","Independent Sector Placements","Services",06/12/2017 00:00:00,30156971,3224,"Revenue","STAR RESIDENTIAL HOME LTD","Residential Care"
"Peterborough","http://opendatacommunities.org/id/unitary-authority/peterborough","Peterborough City Council","Adults","Independent Sector Placements","Services",06/12/2017 00:00:00,30156973,1425,"Revenue","STAR RESIDENTIAL HOME LTD","Residential Care"
"Peterborough","http://opendatacommunities.org/id/unitary-authority/peterborough","Peterborough City Council","Adults","Independent Sector Placements","Services",06/12/2017 00:00:00,30156974,2877.07,"Revenue","STAR RESIDENTIAL HOME LTD","Residential Care"
"Peterborough","http://opendatacommunities.org/id/unitary-authority/peterborough","Peterborough City Council","Adults","Independent Sector Placements","Services",06/12/2017 00:00:00,30156975,2600.8,"Revenue","STAR RESIDENTIAL HOME LTD","Residential Care"
"Peterborough","http://opendatacommunities.org/id/unitary-authority/peterborough","Peterborough City Council","Adults","Independent Sector Placements","Services",06/12/2017 00:00:00,30156976,-2418,"Revenue","STAR RESIDENTIAL HOME LTD","Residential Care"
"Peterborough","http://opendatacommunities.org/id/unitary-authority/peterborough","Peterborough City Council","Adults","Independent Sector Placements","Services",06/12/2017 00:00:00,30157010,2648,"Revenue","PHILIA LODGE REST HOME","Residential Care"
"Peterborough","http://opendatacommunities.org/id/unitary-authority/peterborough","Peterborough City Council","Adults","Independent Sector Placements","Services",06/12/2017 00:00:00,30157017,3474.12,"Revenue","PHILIA LODGE REST HOME","Residential Care"
"Peterborough","http://opendatacommunities.org/id/unitary-authority/peterborough","Peterborough City Council","Adults","Independent Sector Placements","Services",06/12/2017 00:00:00,30157022,1663,"Revenue","PHILIA LODGE REST HOME","Residential Care"
"Peterborough","http://opendatacommunities.org/id/unitary-authority/peterborough","Peterborough City Council","Commissioning and Commercial Operations","Commissioning","Services",06/12/2017 00:00:00,30157023,1052.52,"Revenue","CAPITA Translation and Interpreting","Interpretation Expenses"
"Peterborough","http://opendatacommunities.org/id/unitary-authority/peterborough","Peterborough City Council","Adults","Independent Sector Placements","Services",06/12/2017 00:00:00,30157024,881.44,"Revenue","PHILIA LODGE REST HOME","Residential Care"
"Peterborough","http://opendatacommunities.org/id/unitary-authority/peterborough","Peterborough City Council","Adults","Independent Sector Placements","Services",06/12/2017 00:00:00,30157026,587.84,"Revenue","PHILIA LODGE REST HOME","Residential Care"
"Peterborough","http://opendatacommunities.org/id/unitary-authority/peterborough","Peterborough City Council","Adults","Independent Sector Placements","Services",06/12/2017 00:00:00,30157028,1848.52,"Revenue","PHILIA LODGE REST HOME","Residential Care"
"Peterborough","http://opendatacommunities.org/id/unitary-authority/peterborough","Peterborough City Council","Adults","Independent Sector Placements","Services",06/12/2017 00:00:00,30157029,2021.88,"Revenue","PHILIA LODGE REST HOME","Residential Care"
"Peterborough","http://opendatacommunities.org/id/unitary-authority/peterborough","Peterborough City Council","Adults","Independent Sector Placements","Services",06/12/2017 00:00:00,30157030,1990.2,"Revenue","PHILIA LODGE REST HOME","Residential Care"
"Peterborough","http://opendatacommunities.org/id/unitary-authority/peterborough","Peterborough City Council","Adults","Independent Sector Placements","Services",06/12/2017 00:00:00,30157031,1935.8,"Revenue","PHILIA LODGE REST HOME","Residential Care"
"Peterborough","http://opendatacommunities.org/id/unitary-authority/peterborough","Peterborough City Council","Corporate","Corporate","Non Revenue",06/12/2017 00:00:00,30157032,4628.66,"Capital","NPS Peterborough Ltd","Consultants Fees"
"Peterborough","http://opendatacommunities.org/id/unitary-authority/peterborough","Peterborough City Council","Adults","Independent Sector Placements","Services",06/12/2017 00:00:00,30157033,543.75,"Revenue","Sagecare","Home Care"
"Peterborough","http://opendatacommunities.org/id/unitary-authority/peterborough","Peterborough City Council","Adults","Independent Sector Placements","Services",06/12/2017 00:00:00,30157041,2648,"Revenue","PHILIA LODGE REST HOME","Residential Care"
"Peterborough","http://opendatacommunities.org/id/unitary-authority/peterborough","Peterborough City Council","Legal & Democratic","Legal Services","Services",06/12/2017 00:00:00,30157045,2000,"Revenue","Mr Philip Petchey","Legal Costs"
"Peterborough","http://opendatacommunities.org/id/unitary-authority/peterborough","Peterborough City Council","Adults","Independent Sector Placements","Services",06/12/2017 00:00:00,30157046,794.18,"Revenue","Sagecare","Home Care"
"Peterborough","http://opendatacommunities.org/id/unitary-authority/peterborough","Peterborough City Council","Adults","Independent Sector Placements","Services",06/12/2017 00:00:00,30157048,540,"Revenue","Sagecare","Home Care"
"Peterborough","http://opendatacommunities.org/id/unitary-authority/peterborough","Peterborough City Council","Adults","Independent Sector Placements","Services",06/12/2017 00:00:00,30157049,707.1,"Revenue","MEARS GROUP","Home Care"
"Peterborough","http://opendatacommunities.org/id/unitary-authority/peterborough","Peterborough City Council","Adults","Home Services Delivery Model","Third Party Payments",06/12/2017 00:00:00,30157084,5017.14,"Revenue","Peterborough Womens Aid","Grant-Third Party"
"Peterborough","http://opendatacommunities.org/id/unitary-authority/peterborough","Peterborough City Council","Adults","Home Services Delivery Model","Third Party Payments",06/12/2017 00:00:00,30157092,18343.8,"Revenue","Home Group Ltd","Grant-Third Party"
"Peterborough","http://opendatacommunities.org/id/unitary-authority/peterborough","Peterborough City Council","Adults","Independent Sector Placements","Services",06/12/2017 00:00:00,30157096,1932,"Revenue","SOCIAL CARE SOLUTIONS LTD","Home Care"
"Peterborough","http://opendatacommunities.org/id/unitary-authority/peterborough","Peterborough City Council","Adults","Independent Sector Placements","Services",06/12/2017 00:00:00,30157106,6674.4,"Revenue","SOCIAL CARE SOLUTIONS LTD","Home Care"
"Peterborough","http://opendatacommunities.org/id/unitary-authority/peterborough","Peterborough City Council","Adults","Independent Sector Placements","Services",06/12/2017 00:00:00,30157109,3211.2,"Revenue","SOCIAL CARE SOLUTIONS LTD","Home Care"
"Peterborough","http://opendatacommunities.org/id/unitary-authority/peterborough","Peterborough City Council","Adults","Independent Sector Placements","Services",06/12/2017 00:00:00,30157110,4463.2,"Revenue","SOCIAL CARE SOLUTIONS LTD","Home Care"
"Peterborough","http://opendatacommunities.org/id/unitary-authority/peterborough","Peterborough City Council","Corporate","Corporate","Non Revenue",06/12/2017 00:00:00,30157144,4218.39,"Capital","Anglian Water Services Ltd","Infrastructure"
"Peterborough","http://opendatacommunities.org/id/unitary-authority/peterborough","Peterborough City Council","Education","HTS & CSC Transport","Contract Hire and Operating Leases",06/12/2017 00:00:00,8000101994,2661.6,"Revenue","Goldstar Cabs Ltd","Hired Transport"
"Peterborough","http://opendatacommunities.org/id/unitary-authority/peterborough","Peterborough City Council","Adults","Independent Sector Placements","Services",06/12/2017 00:00:00,8000102002,992.1,"Revenue","MEARS GROUP","Home Care"
"Peterborough","http://opendatacommunities.org/id/unitary-authority/peterborough","Peterborough City Council","Adults","Independent Sector Placements","Services",06/12/2017 00:00:00,8000102004,1796.85,"Revenue","MEARS GROUP","Home Care"
"Peterborough","http://opendatacommunities.org/id/unitary-authority/peterborough","Peterborough City Council","Adults","Independent Sector Placements","Services",06/12/2017 00:00:00,8000102006,1000.2,"Revenue","MEARS GROUP","Home Care"
"Peterborough","http://opendatacommunities.org/id/unitary-authority/peterborough","Peterborough City Council","Adults","Independent Sector Placements","Services",06/12/2017 00:00:00,8000102011,967.2,"Revenue","MEARS GROUP","Home Care"
"Peterborough","http://opendatacommunities.org/id/unitary-authority/peterborough","Peterborough City Council","Commercial Group","Strategic Client Services","Services",07/12/2018 00:00:00,8000104840,1600.14,"Revenue","Argus Software","Computer Software"
"Peterborough","http://opendatacommunities.org/id/unitary-authority/peterborough","Peterborough City Council","Corporate","Corporate","Water Services",08/12/2017 00:00:00,30070919,-652.34,"Revenue","Anglian Water","Water"
"Peterborough","http://opendatacommunities.org/id/unitary-authority/peterborough","Peterborough City Council","Public Health","PH Commissioning","Third Party Payments",08/12/2017 00:00:00,30148590,508.53,"Revenue","Chelsea & Westminster Hospital NHS Foundation Trust","Third Party Payments - Contract"
"Peterborough","http://opendatacommunities.org/id/unitary-authority/peterborough","Peterborough City Council","Corporate","Corporate","Non Revenue",08/12/2017 00:00:00,30154059,48000,"Capital","Display Energy Solutions Ltd","Consultants Fees"
"Peterborough","http://opendatacommunities.org/id/unitary-authority/peterborough","Peterborough City Council","Adults","Block Contracts","Third Party Payments",08/12/2017 00:00:00,30154060,6837.36,"Revenue","Axiom Housing Association","Third Party Payments - Contract"
"Peterborough","http://opendatacommunities.org/id/unitary-authority/peterborough","Peterborough City Council","Public Health","PH Commissioning","Third Party Payments",08/12/2017 00:00:00,30154081,25780,"Revenue","CGL - Change, Grow, Live","Third Party Payments - Contract"
"Peterborough","http://opendatacommunities.org/id/unitary-authority/peterborough","Peterborough City Council","City Servs & Communications","Markets, Tourism & Events","Services",08/12/2017 00:00:00,30154139,745,"Revenue","Manor Marquees & Structures","Conferences/Events"
"Peterborough","http://opendatacommunities.org/id/unitary-authority/peterborough","Peterborough City Council","Westcombe Engineering","Westcombe Engineering","Tools, Equipment, Furniture & Materials",08/12/2017 00:00:00,30154144,3211.65,"Revenue","AALCO","Items For Resale"
"Peterborough","http://opendatacommunities.org/id/unitary-authority/peterborough","Peterborough City Council","Adults","Independent Sector Placements","Services",08/12/2017 00:00:00,30154495,2680,"Revenue","Kemps Place Ltd","Residential Care"
"Peterborough","http://opendatacommunities.org/id/unitary-authority/peterborough","Peterborough City Council","Adults","Independent Sector Placements","Services",08/12/2017 00:00:00,30154496,2480,"Revenue","Kemps Place Ltd","Residential Care"
"Peterborough","http://opendatacommunities.org/id/unitary-authority/peterborough","Peterborough City Council","Adults","Independent Sector Placements","Services",08/12/2017 00:00:00,30154497,1071,"Revenue","Kemps Place Ltd","Residential Care"
"Peterborough","http://opendatacommunities.org/id/unitary-authority/peterborough","Peterborough City Council","Corporate","Corporate","Non Revenue",08/12/2017 00:00:00,30154530,1407.2,"Capital","Enterprise Managed Services Limited","Building And Site Works"
"Peterborough","http://opendatacommunities.org/id/unitary-authority/peterborough","Peterborough City Council","Financial Services","Finance","Agency Staff",08/12/2017 00:00:00,30154589,900.48,"Revenue","Morgan Hunt UK Ltd","External Temporary Staff"
"Peterborough","http://opendatacommunities.org/id/unitary-authority/peterborough","Peterborough City Council","Adults","Independent Sector Placements","Services",08/12/2017 00:00:00,30154625,3999.4,"Revenue","Mencap","Residential Care"
"Peterborough","http://opendatacommunities.org/id/unitary-authority/peterborough","Peterborough City Council","Adults","Independent Sector Placements","Services",08/12/2017 00:00:00,30154626,4966.2,"Revenue","Mencap","Residential Care"
"Peterborough","http://opendatacommunities.org/id/unitary-authority/peterborough","Peterborough City Council","Adults","Independent Sector Placements","Services",08/12/2017 00:00:00,30154627,4606.2,"Revenue","Mencap","Residential Care"
"Peterborough","http://opendatacommunities.org/id/unitary-authority/peterborough","Peterborough City Council","Adults","Independent Sector Placements","Services",08/12/2017 00:00:00,30154628,4853,"Revenue","Mencap","Residential Care"
"Peterborough","http://opendatacommunities.org/id/unitary-authority/peterborough","Peterborough City Council","Children's & Safeguarding","External Education Placements","Services",08/12/2017 00:00:00,30154722,7200,"Revenue","Horizon Care & Education Group","Boarding Out Allowances"
"Peterborough","http://opendatacommunities.org/id/unitary-authority/peterborough","Peterborough City Council","City Servs & Communications","Regulatory Services","Services",08/12/2017 00:00:00,30154852,1365,"Revenue","Mr Michael Coley","Legal Costs"
"Peterborough","http://opendatacommunities.org/id/unitary-authority/peterborough","Peterborough City Council","City Servs & Communications","Regulatory Services","Services",08/12/2017 00:00:00,30154853,6534,"Revenue","Mr Cameron Crowe","Legal Costs"
"Peterborough","http://opendatacommunities.org/id/unitary-authority/peterborough","Peterborough City Council","City Servs & Communications","Regulatory Services","Services",08/12/2017 00:00:00,30154859,1300,"Revenue","Snelling, Mr Charles","Legal Costs"
"Peterborough","http://opendatacommunities.org/id/unitary-authority/peterborough","Peterborough City Council","Corporate","Corporate","Non Revenue",08/12/2017 00:00:00,30154977,2235.48,"Capital","Dolphin Mobility East Midlands Ltd","Grant Payment"
"Peterborough","http://opendatacommunities.org/id/unitary-authority/peterborough","Peterborough City Council","Financial Services","Finance","Agency Staff",08/12/2017 00:00:00,30155032,4875,"Revenue","Green Park Interim and Exec Ltd","External Temporary Staff"
"Peterborough","http://opendatacommunities.org/id/unitary-authority/peterborough","Peterborough City Council","Various","Various","Services",08/12/2017 00:00:00,30155060,1814.49,"Revenue","Whistl UK Ltd","Postage"
"Peterborough","http://opendatacommunities.org/id/unitary-authority/peterborough","Peterborough City Council","Adults","Finance","Agency Staff",08/12/2017 00:00:00,30155130,9750,"Revenue","Badenoch & Clark Ltd","External Temporary Staff"
"Peterborough","http://opendatacommunities.org/id/unitary-authority/peterborough","Peterborough City Council","Adults","Independent Sector Placements","Services",08/12/2017 00:00:00,30155470,1224.08,"Revenue","Stonehaven (Healthcare) Ltd TA The Manor Exminster","Residential Care"
"Peterborough","http://opendatacommunities.org/id/unitary-authority/peterborough","Peterborough City Council","Communities","Other Enforcement","Services",08/12/2017 00:00:00,30155662,2892.93,"Revenue","Quadrant Security Group Ltd","Cctv"
"Peterborough","http://opendatacommunities.org/id/unitary-authority/peterborough","Peterborough City Council","Corporate Property","Office Accomodation","Rents",08/12/2017 00:00:00,30155803,9900,"Revenue","Beeson Wright Ltd","Rent"
"Peterborough","http://opendatacommunities.org/id/unitary-authority/peterborough","Peterborough City Council","Communities","Housing","Services",08/12/2017 00:00:00,30156063,525,"Revenue","Eastfield Guesthouse","Homelessness Bed & Breakfast Costs"
"Peterborough","http://opendatacommunities.org/id/unitary-authority/peterborough","Peterborough City Council","Communities","Housing","Services",08/12/2017 00:00:00,30156091,525,"Revenue","Eastfield Guesthouse","Homelessness Bed & Breakfast Costs"
"Peterborough","http://opendatacommunities.org/id/unitary-authority/peterborough","Peterborough City Council","Communities","Housing","Services",08/12/2017 00:00:00,30156101,507.5,"Revenue","Eastfield Guesthouse","Homelessness Bed & Breakfast Costs"
"Peterborough","http://opendatacommunities.org/id/unitary-authority/peterborough","Peterborough City Council","Communities","Housing","Services",08/12/2017 00:00:00,30156106,525,"Revenue","Eastfield Guesthouse","Homelessness Bed & Breakfast Costs"
"Peterborough","http://opendatacommunities.org/id/unitary-authority/peterborough","Peterborough City Council","Communities","Housing","Services",08/12/2017 00:00:00,30156114,507.5,"Revenue","Eastfield Guesthouse","Homelessness Bed & Breakfast Costs"
"Peterborough","http://opendatacommunities.org/id/unitary-authority/peterborough","Peterborough City Council","Communities","Housing","Services",08/12/2017 00:00:00,30156123,507.5,"Revenue","Eastfield Guesthouse","Homelessness Bed & Breakfast Costs"
"Peterborough","http://opendatacommunities.org/id/unitary-authority/peterborough","Peterborough City Council","Communities","Housing","Services",08/12/2017 00:00:00,30156126,525,"Revenue","Eastfield Guesthouse","Homelessness Bed & Breakfast Costs"
"Peterborough","http://opendatacommunities.org/id/unitary-authority/peterborough","Peterborough City Council","Communities","Housing","Services",08/12/2017 00:00:00,30156128,507.5,"Revenue","Eastfield Guesthouse","Homelessness Bed & Breakfast Costs"
"Peterborough","http://opendatacommunities.org/id/unitary-authority/peterborough","Peterborough City Council","Communities","Housing","Services",08/12/2017 00:00:00,30156133,525,"Revenue","Eastfield Guesthouse","Homelessness Bed & Breakfast Costs"
"Peterborough","http://opendatacommunities.org/id/unitary-authority/peterborough","Peterborough City Council","Corporate","Corporate","Non Revenue",08/12/2017 00:00:00,30156185,198055.79,"Capital","Southview Building Solutions Ltd","Building And Site Works"
"Peterborough","http://opendatacommunities.org/id/unitary-authority/peterborough","Peterborough City Council","Corporate","Corporate","Non Revenue",08/12/2017 00:00:00,30156231,9647.99,"Capital","Regent Maintenance Limited","Grant Payment"
"Peterborough","http://opendatacommunities.org/id/unitary-authority/peterborough","Peterborough City Council","Corporate Property","Commercial Propety","Services",08/12/2017 00:00:00,30156251,812,"Revenue","Oxfam","Legal Costs"
"Peterborough","http://opendatacommunities.org/id/unitary-authority/peterborough","Peterborough City Council","Commissioning and Commercial Operations","Clare Lodge","Agency Staff",08/12/2017 00:00:00,30156299,848,"Revenue","Wrixon Care Services","External Temporary Staff"
"Peterborough","http://opendatacommunities.org/id/unitary-authority/peterborough","Peterborough City Council","Public Health","PH Commissioning","Third Party Payments",08/12/2017 00:00:00,30156358,1157,"Revenue","Cambridgeshire Community Services","Third Party Payments - Contract"
"Peterborough","http://opendatacommunities.org/id/unitary-authority/peterborough","Peterborough City Council","Communities","Community Capacity","Water Services",08/12/2017 00:00:00,30156461,898.4,"Revenue","Anglian Water","Water"
"Peterborough","http://opendatacommunities.org/id/unitary-authority/peterborough","Peterborough City Council","Legal & Democratic","Legal Services","Agency Staff",08/12/2017 00:00:00,30156534,854.4,"Revenue","Reed Specialist Recruitment Limited","External Temporary Staff"
"Peterborough","http://opendatacommunities.org/id/unitary-authority/peterborough","Peterborough City Council","Legal & Democratic","Legal Services","Agency Staff",08/12/2017 00:00:00,30156537,1690.6,"Revenue","Reed Specialist Recruitment Limited","External Temporary Staff"
"Peterborough","http://opendatacommunities.org/id/unitary-authority/peterborough","Peterborough City Council","Legal & Democratic","Legal Services","Agency Staff",08/12/2017 00:00:00,30156549,2025.38,"Revenue","Reed Specialist Recruitment Limited","External Temporary Staff"
"Peterborough","http://opendatacommunities.org/id/unitary-authority/peterborough","Peterborough City Council","Financial Services","Finance","Agency Staff",08/12/2017 00:00:00,30156566,646.76,"Revenue","Reed Specialist Recruitment Limited","External Temporary Staff"
"Peterborough","http://opendatacommunities.org/id/unitary-authority/peterborough","Peterborough City Council","Adults","Independent Sector Placements","Services",08/12/2017 00:00:00,30156645,-1157.59,"Revenue","Mencap","Home Care"
"Peterborough","http://opendatacommunities.org/id/unitary-authority/peterborough","Peterborough City Council","Adults","Independent Sector Placements","Services",08/12/2017 00:00:00,30156646,-3547.29,"Revenue","Mencap","Residential Care"
"Peterborough","http://opendatacommunities.org/id/unitary-authority/peterborough","Peterborough City Council","Adults","Independent Sector Placements","Services",08/12/2017 00:00:00,30156665,3400,"Revenue","LESTER HALL APARTMENTS LTD","Residential Care"
"Peterborough","http://opendatacommunities.org/id/unitary-authority/peterborough","Peterborough City Council","Corporate","Corporate","Non Revenue",08/12/2017 00:00:00,30156711,4373.72,"Capital","Nadeem Construction","Grant Payment"
"Peterborough","http://opendatacommunities.org/id/unitary-authority/peterborough","Peterborough City Council","Corporate","Corporate","Non Revenue",08/12/2017 00:00:00,30156716,4795.2,"Capital","Gaswise Services Ltd","Grant Payment"
"Peterborough","http://opendatacommunities.org/id/unitary-authority/peterborough","Peterborough City Council","Corporate","Corporate","Non Revenue",08/12/2017 00:00:00,30156719,4150,"Capital","EMS Stairlifts","Grant Payment"
"Peterborough","http://opendatacommunities.org/id/unitary-authority/peterborough","Peterborough City Council","Corporate Property","Commercial Propety","Energy Costs",08/12/2017 00:00:00,30156725,739.84,"Revenue","Corona Energy Retail 4 Limited","Gas"
"Peterborough","http://opendatacommunities.org/id/unitary-authority/peterborough","Peterborough City Council","Education","PFI","Energy Costs",08/12/2017 00:00:00,30156731,-880.2,"Revenue","Corona Energy Retail 4 Limited","Gas"
"Peterborough","http://opendatacommunities.org/id/unitary-authority/peterborough","Peterborough City Council","Education","PFI","Energy Costs",08/12/2017 00:00:00,30156731,875.08,"Revenue","Corona Energy Retail 4 Limited","Gas"
"Peterborough","http://opendatacommunities.org/id/unitary-authority/peterborough","Peterborough City Council","Vivacity/Cultural Services","Cultural Services","Energy Costs",08/12/2017 00:00:00,30156731,4920.52,"Revenue","Corona Energy Retail 4 Limited","Gas"
"Peterborough","http://opendatacommunities.org/id/unitary-authority/peterborough","Peterborough City Council","Education","PFI","Energy Costs",08/12/2017 00:00:00,30156736,1594.51,"Revenue","Corona Energy Retail 4 Limited","Gas"
"Peterborough","http://opendatacommunities.org/id/unitary-authority/peterborough","Peterborough City Council","Education","PFI","Energy Costs",08/12/2017 00:00:00,30156736,1823.05,"Revenue","Corona Energy Retail 4 Limited","Gas"
"Peterborough","http://opendatacommunities.org/id/unitary-authority/peterborough","Peterborough City Council","Education","PFI","Energy Costs",08/12/2017 00:00:00,30156736,1138.92,"Revenue","Corona Energy Retail 4 Limited","Gas"
"Peterborough","http://opendatacommunities.org/id/unitary-authority/peterborough","Peterborough City Council","Education","PFI","Energy Costs",08/12/2017 00:00:00,30156736,1775.47,"Revenue","Corona Energy Retail 4 Limited","Gas"
"Peterborough","http://opendatacommunities.org/id/unitary-authority/peterborough","Peterborough City Council","Education","PFI","Energy Costs",08/12/2017 00:00:00,30156736,686.15,"Revenue","Corona Energy Retail 4 Limited","Gas"
"Peterborough","http://opendatacommunities.org/id/unitary-authority/peterborough","Peterborough City Council","Education","PFI","Energy Costs",08/12/2017 00:00:00,30156736,1099.82,"Revenue","Corona Energy Retail 4 Limited","Gas"
"Peterborough","http://opendatacommunities.org/id/unitary-authority/peterborough","Peterborough City Council","Vivacity/Cultural Services","Cultural Services","Energy Costs",08/12/2017 00:00:00,30156746,2066.35,"Revenue","Corona Energy Retail 4 Limited","Gas"
"Peterborough","http://opendatacommunities.org/id/unitary-authority/peterborough","Peterborough City Council","Cemeteries, Cremation & Registrars","Bereavement Service","Energy Costs",08/12/2017 00:00:00,30156746,2587.87,"Revenue","Corona Energy Retail 4 Limited","Gas"
"Peterborough","http://opendatacommunities.org/id/unitary-authority/peterborough","Peterborough City Council","Education","Financing - Resources","Services",08/12/2017 00:00:00,30156750,918.4,"Revenue","St Thomas More Catholic Nursery","Grant Payment"
"Peterborough","http://opendatacommunities.org/id/unitary-authority/peterborough","Peterborough City Council","Commissioning and Commercial Operations","Early Years & Quality Improvement","Services",08/12/2017 00:00:00,30156751,980.46,"Revenue","Bright Bambini  Montessori","Grant Payment"
"Peterborough","http://opendatacommunities.org/id/unitary-authority/peterborough","Peterborough City Council","City Servs & Communications","Markets, Tourism & Events","Energy Costs",08/12/2017 00:00:00,30156789,530.41,"Revenue","British Gas Business","Electricity"
"Peterborough","http://opendatacommunities.org/id/unitary-authority/peterborough","Peterborough City Council","Westcombe Engineering","Westcombe Engineering","Energy Costs",08/12/2017 00:00:00,30156904,504.05,"Revenue","British Gas Business","Electricity"
"Peterborough","http://opendatacommunities.org/id/unitary-authority/peterborough","Peterborough City Council","Westcombe Engineering","Westcombe Engineering","Energy Costs",08/12/2017 00:00:00,30156904,1023.77,"Revenue","British Gas Business","Electricity"
"Peterborough","http://opendatacommunities.org/id/unitary-authority/peterborough","Peterborough City Council","Amey Peterborough & Waste Management","Waste & Operational Svs Mgmt","Energy Costs",08/12/2017 00:00:00,30156992,507.34,"Revenue","British Gas Business","Electricity"
"Peterborough","http://opendatacommunities.org/id/unitary-authority/peterborough","Peterborough City Council","Education","Pupil Referral Unit","Energy Costs",08/12/2017 00:00:00,30156992,619.56,"Revenue","British Gas Business","Electricity"
"Peterborough","http://opendatacommunities.org/id/unitary-authority/peterborough","Peterborough City Council","Amey Peterborough & Waste Management","Waste & Operational Svs Mgmt","Energy Costs",08/12/2017 00:00:00,30156992,669.99,"Revenue","British Gas Business","Electricity"
"Peterborough","http://opendatacommunities.org/id/unitary-authority/peterborough","Peterborough City Council","Adults","Independent Sector Placements","Services",08/12/2017 00:00:00,30157011,11021,"Revenue","PHILIA LODGE REST HOME","Residential Care"
"Peterborough","http://opendatacommunities.org/id/unitary-authority/peterborough","Peterborough City Council","Adults","Independent Sector Placements","Services",08/12/2017 00:00:00,30157019,11021,"Revenue","PHILIA LODGE REST HOME","Residential Care"
"Peterborough","http://opendatacommunities.org/id/unitary-authority/peterborough","Peterborough City Council","Vivacity/Cultural Services","Cultural Services","Energy Costs",08/12/2017 00:00:00,30157086,6491.18,"Revenue","EDF Energy Networks Ltd","Electricity"
"Peterborough","http://opendatacommunities.org/id/unitary-authority/peterborough","Peterborough City Council","Education","Service Director Education","Agency Staff",08/12/2017 00:00:00,30157121,9637.85,"Revenue","Terry Reynolds Education Consulting Ltd","External Temporary Staff"
"Peterborough","http://opendatacommunities.org/id/unitary-authority/peterborough","Peterborough City Council","Adults","Independent Sector Placements","Services",08/12/2017 00:00:00,30157159,2217.86,"Revenue","LAVENDER HOUSE RESIDENTIAL HOME","Residential Care"
"Peterborough","http://opendatacommunities.org/id/unitary-authority/peterborough","Peterborough City Council","Adults","Independent Sector Placements","Services",08/12/2017 00:00:00,30157161,1688.83,"Revenue","Park Vista Care Home","Residential Care"
"Peterborough","http://opendatacommunities.org/id/unitary-authority/peterborough","Peterborough City Council","Adults","Independent Sector Placements","Services",08/12/2017 00:00:00,30157162,520.54,"Revenue","Park Vista Care Home","Residential Care"
"Peterborough","http://opendatacommunities.org/id/unitary-authority/peterborough","Peterborough City Council","Adults","Independent Sector Placements","Services",08/12/2017 00:00:00,30157163,8752,"Revenue","Autism Care (UK) Ltd","Residential Care"
"Peterborough","http://opendatacommunities.org/id/unitary-authority/peterborough","Peterborough City Council","Vivacity/Cultural Services","Cultural Services","Services",08/12/2017 00:00:00,30157245,700,"Revenue","Peterborough Centre for Young Musicians","Hired Services"
"Peterborough","http://opendatacommunities.org/id/unitary-authority/peterborough","Peterborough City Council","Education","School Improvement","Services",08/12/2017 00:00:00,30157285,620,"Revenue","Linchfield Community Primary School","Grant Payment"
"Peterborough","http://opendatacommunities.org/id/unitary-authority/peterborough","Peterborough City Council","Adults","Independent Sector Placements","Services",08/12/2017 00:00:00,30157296,1999.8,"Revenue","Runwood Homes Ltd","Residential Care"
"Peterborough","http://opendatacommunities.org/id/unitary-authority/peterborough","Peterborough City Council","Education","School Improvement","Services",08/12/2017 00:00:00,30157365,1719,"Revenue","Brentside High School","Grant Payment"
"Peterborough","http://opendatacommunities.org/id/unitary-authority/peterborough","Peterborough City Council","Education","School Improvement","Services",08/12/2017 00:00:00,30157366,680,"Revenue","Beccles Free School","Grant Payment"
"Peterborough","http://opendatacommunities.org/id/unitary-authority/peterborough","Peterborough City Council","Education","School Improvement","Services",08/12/2017 00:00:00,30157368,3314,"Revenue","Priory Junior School","Grant Payment"
"Peterborough","http://opendatacommunities.org/id/unitary-authority/peterborough","Peterborough City Council","Education","School Improvement","Services",08/12/2017 00:00:00,30157371,604,"Revenue","Sharnbrook Academy","Grant Payment"
"Peterborough","http://opendatacommunities.org/id/unitary-authority/peterborough","Peterborough City Council","Education","School Improvement","Services",08/12/2017 00:00:00,30157373,500,"Revenue","Rigby Hall School","Grant Payment"
"Peterborough","http://opendatacommunities.org/id/unitary-authority/peterborough","Peterborough City Council","Education","School Improvement","Services",08/12/2017 00:00:00,30157374,1200,"Revenue","Northampton Academy","Grant Payment"
"Peterborough","http://opendatacommunities.org/id/unitary-authority/peterborough","Peterborough City Council","Communities","Housing","Services",08/12/2017 00:00:00,30157375,525,"Revenue","Eastfield Guesthouse","Homelessness Bed & Breakfast Costs"
"Peterborough","http://opendatacommunities.org/id/unitary-authority/peterborough","Peterborough City Council","Communities","Housing","Services",08/12/2017 00:00:00,30157377,525,"Revenue","Eastfield Guesthouse","Homelessness Bed & Breakfast Costs"
"Peterborough","http://opendatacommunities.org/id/unitary-authority/peterborough","Peterborough City Council","Communities","Housing","Services",08/12/2017 00:00:00,30157381,525,"Revenue","Eastfield Guesthouse","Homelessness Bed & Breakfast Costs"
"Peterborough","http://opendatacommunities.org/id/unitary-authority/peterborough","Peterborough City Council","Communities","Housing","Services",08/12/2017 00:00:00,30157382,525,"Revenue","Eastfield Guesthouse","Homelessness Bed & Breakfast Costs"
"Peterborough","http://opendatacommunities.org/id/unitary-authority/peterborough","Peterborough City Council","Communities","Housing","Services",08/12/2017 00:00:00,30157384,525,"Revenue","Eastfield Guesthouse","Homelessness Bed & Breakfast Costs"
"Peterborough","http://opendatacommunities.org/id/unitary-authority/peterborough","Peterborough City Council","Communities","Housing","Services",08/12/2017 00:00:00,30157385,525,"Revenue","Eastfield Guesthouse","Homelessness Bed & Breakfast Costs"
"Peterborough","http://opendatacommunities.org/id/unitary-authority/peterborough","Peterborough City Council","Legal & Democratic","Legal Services","Services",08/12/2017 00:00:00,30157480,1500,"Revenue","Browne Jacobson","Legal Costs"
